Ref No,Fund Type,Dept,Cost Centre Description    ,Description    ,Creditor Name    ,GL Code Net Amount,Payment date        
2,Revenue,CCHD,Under 65s PWLD - KD,Residential Homes,.,6770.72, 23-Dec-2011
3,Revenue,CCHD,Under 65s PWLD - KH,Residential Homes,.,4774.48, 23-Dec-2011
4,Revenue,CCHD,Supporting People Programme,Grants to Voluntary Bodies,1625 Independent People,3658.32, 29-Dec-2011
5,Revenue,CCHD,Supporting People Programme,Grants to Voluntary Bodies,1625 Independent People,14490.12, 29-Dec-2011
6,Revenue,CCHD,Supporting People Programme,Grants to Voluntary Bodies,1625 Independent People,14490.12, 05-Dec-2011
7,Revenue,CCHD,Supporting People Programme,Grants to Voluntary Bodies,1625 Independent People,3658.32, 05-Dec-2011
8,Revenue,CCHD,Supporting People Programme,Grants to Voluntary Bodies,1625 Independent People,522.62, 05-Dec-2011
9,Revenue,CCHD,Supporting People Programme,Grants to Voluntary Bodies,1625 Independent People,2070.02, 05-Dec-2011
10,Revenue,CCHD,Supported Living - KD,Private & Voluntary Home Care,3 Trees Community Support Ltd,7234.71, 05-Dec-2011
11,Revenue,CCHD,Supported Living - KD,Private & Voluntary Home Care,3 Trees Community Support Ltd,2797.95, 08-Dec-2011
12,Revenue,CCHD,Supported Living - PS,Private & Voluntary Home Care,3 Trees Community Support Ltd,591.8, 13-Dec-2011
13,Revenue,CCHD,Supported Living - KH,Private & Voluntary Home Care,3 Trees Community Support Ltd,1204.74, 28-Dec-2011
14,Revenue,CCHD,Supported Living (S28a),Private & Voluntary Home Care,3 Trees Community Support Ltd,6085.56, 07-Dec-2011
15,Revenue,CCHD,Purchase of Non-Res Care - KD,Private & Voluntary Day Care,3 Trees Community Support Ltd,4879.34, 19-Dec-2011
16,Revenue,CCHD,Supported Living - KD,Private & Voluntary Home Care,3 Trees Community Support Ltd,2195.06, 09-Dec-2011
17,Revenue,CCHD,Supported Living - KD,Private & Voluntary Home Care,3 Trees Community Support Ltd,540.05, 09-Dec-2011
18,Revenue,CCHD,Purchase of Non-Res Care - PS,Private & Voluntary Day Care,3 Trees Community Support Ltd,642.08, 13-Dec-2011
19,Revenue,CCHD,Purchase of Non-Res Care - KD,Private & Voluntary Day Care,3 Trees Community Support Ltd,858.76, 15-Dec-2011
20,Revenue,CCHD,Purchase of Non-Res Care - KD,Private & Voluntary Day Care,3 Trees Community Support Ltd,1673.12, 16-Dec-2011
21,Revenue,CCHD,Purchase of Non-Res Care - KD,Private & Voluntary Day Care,3 Trees Community Support Ltd,1661.4, 09-Dec-2011
22,Revenue,CCHD,Purchase of Non-Res Care - KD,Private & Voluntary Day Care,3 Trees Community Support Ltd,1374.8, 16-Dec-2011
23,Revenue,CCHD,Purchase of Non-Res Care - KD,Private & Voluntary Day Care,3 Trees Community Support Ltd,3339.25, 19-Dec-2011
24,Revenue,CCHD,Woodleaze,Prop.Serv. General Repairs,A E Horder (Contracting) Limited,1428.67, 05-Dec-2011
25,Revenue,CCHD,Woodleaze,Prop.Serv. General Repairs,A E Horder (Contracting) Limited,871.54, 29-Dec-2011
26,Revenue,CCHD,PD Direct Payments North,Grants to Voluntary Bodies,A4E Management Limited,22857.93, 19-Dec-2011
27,Revenue,CCHD,Elderly Purchasing - South,Nursing Homes,Aabletone Nursing Home,1177.52, 23-Dec-2011
28,Revenue,CCHD,Elderly Purchasing - South,Residential Homes,Ablecare Homes,903.4, 23-Dec-2011
29,Revenue,CCHD,Southmead Hospital Purchasing,Residential Homes,Ablecare Homes,1418.08, 23-Dec-2011
30,Revenue,CCHD,Elderly Mental Health,Residential Homes,Ablecare Homes,1389, 23-Dec-2011
31,Revenue,CCHD,Elderly Purchasing - North,Residential Homes,Ablecare Homes,871.04, 23-Dec-2011
32,Revenue,CCHD,Frenchay Hospital Purchasing,Residential Homes,Ablecare Homes,1422.8, 23-Dec-2011
33,Revenue,CCHD,Southmead Hospital Purchasing,Residential Homes,Ablecare Homes,1921, 23-Dec-2011
34,Revenue,CCHD,Elderly Purchasing - South,Residential Homes,Ablecare Homes,1572.44, 23-Dec-2011
35,Revenue,CCHD,Elderly Purchasing - North,Residential Homes,Ablecare Homes,1226.72, 23-Dec-2011
36,Revenue,CCHD,Elderly Purchasing - South,Residential Homes,Ablecare Homes,1102.32, 23-Dec-2011
37,Revenue,CCHD,Frenchay Hospital Purchasing,Residential Homes,Ablecare Homes,1232.16, 23-Dec-2011
38,Revenue,CCHD,Southmead Hospital Purchasing,Residential Homes,Ablecare Homes,1152.08, 23-Dec-2011
39,Revenue,CCHD,Elderly Mental Health,Residential Homes,Ablecare Homes,1180.8, 23-Dec-2011
40,Revenue,CCHD,Southmead Hospital Purchasing,Residential Homes,Ablecare Homes,1665.57, 23-Dec-2011
41,Revenue,CCHD,Elderly Mental Health,Residential Homes,Ablecare Homes,1381, 23-Dec-2011
42,Revenue,CCHD,Elderly Purchasing - South,Residential Homes,Ablecare Homes,1263.6, 23-Dec-2011
43,Revenue,CCHD,P&SI - Commissioned Services,Grants to Voluntary Bodies,Action for Blind People,18750, 29-Dec-2011
44,Revenue,CCHD,Elderly MH non-res purchasing,Private & Voluntary Day Care,Age UK South Gloucestershire,577.2, 09-Dec-2011
45,Revenue,CCHD,Elderly MH non-res purchasing,Private & Voluntary Day Care,Age UK South Gloucestershire,769.6, 09-Dec-2011
46,Revenue,CCHD,Elderly MH non-res purchasing,Private & Voluntary Day Care,Age UK South Gloucestershire,615.68, 09-Dec-2011
47,Revenue,CCHD,Day Care - South,Private & Voluntary Day Care,Age UK South Gloucestershire,1711.36, 08-Dec-2011
48,Revenue,CCHD,Day Care - South,Private & Voluntary Day Care,Age UK South Gloucestershire,541.76, 08-Dec-2011
49,Revenue,CCHD,Home Care Purch North,Other Small Contracts,Agincare UK Limited,799.96, 07-Dec-2011
50,Revenue,CCHD,Home Care Purch North,Other Small Contracts,Agincare UK Limited,799.96, 12-Dec-2011
51,Revenue,CCHD,Home Care Purch South,Other Small Contracts,Agincare UK Limited,1474.4, 01-Dec-2011
52,Revenue,CCHD,Home Care Purch North,Other Small Contracts,Agincare UK Limited,1569.4, 01-Dec-2011
53,Revenue,CCHD,Day Care - South,Private & Voluntary Day Care,Agincare UK Limited,262.2, 01-Dec-2011
54,Revenue,CCHD,Day Care - North,Private & Voluntary Day Care,Agincare UK Limited,121.6, 01-Dec-2011
55,Revenue,CCHD,Elderly MH Home Care,Other Small Contracts,Agincare UK Limited,53.2, 01-Dec-2011
56,Revenue,CCHD,Elderly MH non-res purchasing,Private & Voluntary Day Care,Agincare UK Limited,201.4, 01-Dec-2011
57,Revenue,CCHD,Home Care Purch South,Other Small Contracts,Agincare UK Limited,1934.2, 19-Dec-2011
58,Revenue,CCHD,Home Care Purch North,Other Small Contracts,Agincare UK Limited,1512.4, 19-Dec-2011
59,Revenue,CCHD,Day Care - South,Private & Voluntary Day Care,Agincare UK Limited,250.8, 19-Dec-2011
60,Revenue,CCHD,Day Care - North,Private & Voluntary Day Care,Agincare UK Limited,114, 19-Dec-2011
61,Revenue,CCHD,Elderly MH Home Care,Other Small Contracts,Agincare UK Limited,106.4, 19-Dec-2011
62,Revenue,CCHD,Elderly MH non-res purchasing,Private & Voluntary Day Care,Agincare UK Limited,174.8, 19-Dec-2011
63,Revenue,CCHD,Home Care Purch South,Other Small Contracts,Agincare UK Limited,1782.2, 20-Dec-2011
64,Revenue,CCHD,Home Care Purch North,Other Small Contracts,Agincare UK Limited,1573.2, 20-Dec-2011
65,Revenue,CCHD,Day Care - South,Private & Voluntary Day Care,Agincare UK Limited,178.6, 20-Dec-2011
66,Revenue,CCHD,Day Care - North,Private & Voluntary Day Care,Agincare UK Limited,110.2, 20-Dec-2011
67,Revenue,CCHD,Elderly MH Home Care,Other Small Contracts,Agincare UK Limited,53.2, 20-Dec-2011
68,Revenue,CCHD,Elderly MH non-res purchasing,Private & Voluntary Day Care,Agincare UK Limited,212.8, 20-Dec-2011
69,Revenue,CCHD,S117 Placements PCT,Residential Homes,Alexandra House,6697.76, 23-Dec-2011
70,Revenue,CCHD,Home Care Purch North,Other Small Contracts,Allied  Healthcare Group Limited,862.89, 07-Dec-2011
71,Revenue,CCHD,Home Care Purch South,Other Small Contracts,Allied Healthcare Group,1309.93, 06-Dec-2011
72,Revenue,CCHD,Home Care Purch North,Other Small Contracts,Allied Healthcare Group,1095.82, 06-Dec-2011
73,Revenue,CCHD,Day Care - North,Private & Voluntary Day Care,Allied Healthcare Group,48.62, 06-Dec-2011
74,Revenue,CCHD,Home Care Purch South,Other Small Contracts,Allied Healthcare Group,1215.5, 06-Dec-2011
75,Revenue,CCHD,Home Care Purch North,Other Small Contracts,Allied Healthcare Group,1163.6, 06-Dec-2011
76,Revenue,CCHD,Home Care Purch South,Other Small Contracts,Allied Healthcare Group,1264.12, 13-Dec-2011
77,Revenue,CCHD,Home Care Purch North,Other Small Contracts,Allied Healthcare Group,1163.14, 13-Dec-2011
78,Revenue,CCHD,Day Care - North,Private & Voluntary Day Care,Allied Healthcare Group,52.36, 13-Dec-2011
79,Revenue,CCHD,Home Care Purch South,Other Small Contracts,Allied Healthcare Group,1245.42, 20-Dec-2011
80,Revenue,CCHD,Home Care Purch North,Other Small Contracts,Allied Healthcare Group,1032.24, 20-Dec-2011
81,Revenue,CCHD,Day Care - North,Private & Voluntary Day Care,Allied Healthcare Group,52.36, 20-Dec-2011
82,Revenue,CCHD,Elderly MH non-res purchasing,Private & Voluntary Day Care,Alzheimer`s Society Bristol,538.24, 28-Dec-2011
83,Revenue,CCHD,Elderly MH non-res purchasing,Private & Voluntary Day Care,Alzheimer`s Society Bristol,874.64, 28-Dec-2011
84,Revenue,CCHD,Elderly MH non-res purchasing,Private & Voluntary Day Care,Alzheimer`s Society Bristol,874.64, 28-Dec-2011
85,Revenue,CCHD,Elderly MH non-res purchasing,Private & Voluntary Day Care,Alzheimer`s Society Bristol,874.64, 28-Dec-2011
86,Revenue,CCHD,Elderly MH non-res purchasing,Private & Voluntary Day Care,Alzheimer`s Society Bristol,605.52, 28-Dec-2011
87,Revenue,CCHD,Section 117 Placements,Private & Voluntary Day Care,Alzheimer`s Society Bristol,605.52, 28-Dec-2011
88,Revenue,CCHD,Frenchay Hospital Purchasing,Residential Homes,Anbridge Care Home,832, 23-Dec-2011
89,Revenue,CCHD,Downend Day Centre,Maintenance by Contractor,Apre Surfacing Limited,1138, 19-Dec-2011
90,Revenue,CCHD,Downend Day Centre,Maintenance by Contractor,Apre Surfacing Limited,585, 23-Dec-2011
91,Revenue,CCHD,Alexandra Way,Furniture & Fittings Loose,Arjo Limited,880, 16-Dec-2011
92,Revenue,CCHD,Under 65s PWLD - KD,Residential Homes,Ark Care Homes Ltd,10342.92, 23-Dec-2011
93,Revenue,CCHD,Bed and Breakfast,Bed & Breakfast,Ashley Guest House Ltd,936, 12-Dec-2011
94,Revenue,CCHD,Bed and Breakfast,Bed & Breakfast,Ashley Guest House Ltd,696, 14-Dec-2011
95,Revenue,CCHD,Bed and Breakfast,Bed & Breakfast,Ashley Guest House Ltd,528, 14-Dec-2011
96,Revenue,CCHD,S28A - Over 65,Residential Homes,Aspects &  Milestones Trust,3828.08, 23-Dec-2011
97,Revenue,CCHD,Elderly Purchasing - South,Residential Homes,Aspects &  Milestones Trust,1379, 23-Dec-2011
98,Revenue,CCHD,Under 65s PWLD - PS,Residential Homes,Aspects &  Milestones Trust,46173.71, 23-Dec-2011
99,Revenue,CCHD,Section 117 Placements,Residential Homes,Aspects &  Milestones Trust,1304, 23-Dec-2011
100,Revenue,CCHD,Elderly Mental Health,Nursing Homes,Aspects &  Milestones Trust,797.08, 23-Dec-2011
101,Revenue,CCHD,Section 117 Placements,Nursing Homes,Aspects &  Milestones Trust,1911.96, 23-Dec-2011
102,Revenue,CCHD,Elderly PWLD - KD,Residential Homes,Aspects &  Milestones Trust,3505.52, 23-Dec-2011
103,Revenue,CCHD,Under 65s PWLD - PS,Residential Homes,Aspects &  Milestones Trust,5152, 23-Dec-2011
104,Revenue,CCHD,Under 65s PWLD - PS,Residential Homes,Aspects &  Milestones Trust,5601.08, 23-Dec-2011
105,Revenue,CCHD,Under 65s PWLD - KD,Nursing Homes,Aspects &  Milestones Trust,2703.44, 23-Dec-2011
106,Revenue,CCHD,Section 117 Placements,Nursing Homes,Aspects &  Milestones Trust,1912, 23-Dec-2011
107,Revenue,CCHD,Elderly Mental Health,Nursing Homes,Aspects &  Milestones Trust,1453, 23-Dec-2011
108,Revenue,CCHD,Elderly PWLD - PS,Residential Homes,Aspects &  Milestones Trust,4295.72, 23-Dec-2011
109,Revenue,CCHD,S28A - Under 65,Nursing Homes,Aspects &  Milestones Trust,5712.32, 23-Dec-2011
110,Revenue,CCHD,S28A - Under 65,Residential Homes,Aspects &  Milestones Trust,5272.24, 23-Dec-2011
111,Revenue,CCHD,Under 65s PWLD - KH,Residential Homes,Aspects &  Milestones Trust,3441.76, 23-Dec-2011
112,Revenue,CCHD,S28A - Under 65,Residential Homes,Aspects &  Milestones Trust,5251.04, 23-Dec-2011
113,Revenue,CCHD,Under 65s PWLD - KD,Residential Homes,Aspects &  Milestones Trust,5638.32, 23-Dec-2011
114,Revenue,CCHD,Under 65s PWLD - KH,Residential Homes,Aspects &  Milestones Trust,3782.04, 23-Dec-2011
115,Revenue,CCHD,S28A - Under 65,Nursing Homes,Aspects &  Milestones Trust,7624.84, 23-Dec-2011
116,Revenue,CCHD,S28A - Under 65,Nursing Homes,Aspects &  Milestones Trust,72127.11, 23-Dec-2011
117,Revenue,CCHD,MH Purchasing - Younger,Residential Homes,Aspects &  Milestones Trust,1009, 23-Dec-2011
118,Revenue,CCHD,Elderly PWLD - PS,Residential Homes,Aspects &  Milestones Trust,5191.2, 23-Dec-2011
119,Revenue,CCHD,Elderly PWLD - PS,Residential Homes,Aspects &  Milestones Trust,3739.2, 23-Dec-2011
120,Revenue,CCHD,Elderly PWLD - KH,Residential Homes,Aspects &  Milestones Trust,4664.24, 23-Dec-2011
121,Revenue,CCHD,S28A - Under 65,Residential Homes,Aspects &  Milestones Trust,5187.68, 23-Dec-2011
122,Revenue,CCHD,S28A - Under 65,Residential Homes,Aspects &  Milestones Trust,6036, 23-Dec-2011
123,Revenue,CCHD,S28A - Under 65,Nursing Homes,Aspects &  Milestones Trust,6122.48, 23-Dec-2011
124,Revenue,CCHD,Section 117 Placements MH Younger,Residential Homes,Aspects &  Milestones Trust,1304, 23-Dec-2011
125,Revenue,CCHD,Under 65s PWLD - PS,Residential Homes,Aspects &  Milestones Trust,3648.4, 23-Dec-2011
126,Revenue,CCHD,S28A - Under 65,Residential Homes,Aspects &  Milestones Trust,6036, 23-Dec-2011
127,Revenue,CCHD,S28A - Under 65,Residential Homes,Aspects &  Milestones Trust,4787.92, 23-Dec-2011
128,Revenue,CCHD,S28A - Over 65,Residential Homes,Aspects &  Milestones Trust,4664.48, 23-Dec-2011
129,Revenue,CCHD,S28A - Over 65,Residential Homes,Aspects &  Milestones Trust,3959.08, 23-Dec-2011
130,Revenue,CCHD,S28A - Under 65,Residential Homes,Aspects &  Milestones Trust,6036, 23-Dec-2011
131,Revenue,CCHD,S28A - Over 65,Residential Homes,Aspects &  Milestones Trust,4179.08, 23-Dec-2011
132,Revenue,CCHD,S28A - Under 65,Residential Homes,Aspects &  Milestones Trust,6036, 23-Dec-2011
133,Revenue,CCHD,S28A - Over 65,Residential Homes,Aspects &  Milestones Trust,3854.92, 23-Dec-2011
134,Revenue,CCHD,S28A - Under 65,Residential Homes,Aspects &  Milestones Trust,4980, 23-Dec-2011
135,Revenue,CCHD,S28A - Under 65,Residential Homes,Aspects &  Milestones Trust,6528.04, 23-Dec-2011
136,Revenue,CCHD,S28A - Under 65,Residential Homes,Aspects &  Milestones Trust,3992.16, 23-Dec-2011
137,Revenue,CCHD,S28A - Over 65,Residential Homes,Aspects &  Milestones Trust,5737.96, 23-Dec-2011
138,Revenue,CCHD,S28A - Over 65,Residential Homes,Aspects &  Milestones Trust,3351.52, 23-Dec-2011
139,Revenue,CCHD,S28A - Over 65,Residential Homes,Aspects &  Milestones Trust,4691.8, 23-Dec-2011
140,Revenue,CCHD,S28A - Over 65,Residential Homes,Aspects &  Milestones Trust,4837.04, 23-Dec-2011
141,Revenue,CCHD,S28A - Over 65,Residential Homes,Aspects &  Milestones Trust,4556.16, 23-Dec-2011
142,Revenue,CCHD,S28A - Under 65,Residential Homes,Aspects &  Milestones Trust,47234.46, 23-Dec-2011
143,Revenue,CCHD,S28A - Over 65,Residential Homes,Aspects &  Milestones Trust,4112.28, 23-Dec-2011
144,Revenue,CCHD,S28A - Over 65,Residential Homes,Aspects &  Milestones Trust,3419.64, 23-Dec-2011
145,Revenue,CCHD,S28A - Under 65,Residential Homes,Aspects &  Milestones Trust,7200, 23-Dec-2011
146,Revenue,CCHD,S28A - Under 65,Nursing Homes,Aspects &  Milestones Trust,6203.68, 23-Dec-2011
147,Revenue,CCHD,S28A - Over 65,Residential Homes,Aspects &  Milestones Trust,3445.12, 23-Dec-2011
148,Revenue,CCHD,S28A - Over 65,Residential Homes,Aspects &  Milestones Trust,3207.68, 23-Dec-2011
149,Revenue,CCHD,S28A - Over 65,Residential Homes,Aspects &  Milestones Trust,3263.96, 23-Dec-2011
150,Revenue,CCHD,S28A - Over 65,Residential Homes,Aspects &  Milestones Trust,4652.36, 23-Dec-2011
151,Revenue,CCHD,Elderly Mental Health,Residential Homes,Aspects &  Milestones Trust,845.36, 23-Dec-2011
152,Revenue,CCHD,S28A - Under 65,Residential Homes,Aspects &  Milestones Trust,4723.04, 23-Dec-2011
153,Revenue,CCHD,Elderly PWLD - KD,Residential Homes,Aspects &  Milestones Trust,2722.88, 23-Dec-2011
154,Revenue,CCHD,Elderly PWLD - KH,Residential Homes,Aspects &  Milestones Trust,5344.36, 23-Dec-2011
155,Revenue,CCHD,Under 65s PWLD - KD,Residential Homes,Aspects &  Milestones Trust,5420.08, 23-Dec-2011
156,Revenue,CCHD,Elderly PWLD - KD,Residential Homes,Aspects &  Milestones Trust,4180.6, 23-Dec-2011
157,Revenue,CCHD,Under 65s PWLD - PS,Residential Homes,Aspects &  Milestones Trust,3797.04, 23-Dec-2011
158,Revenue,CCHD,S28A - Under 65,Residential Homes,Aspects &  Milestones Trust,5687.48, 23-Dec-2011
159,Revenue,CCHD,S28A - Under 65,Residential Homes,Aspects &  Milestones Trust,41022.72, 23-Dec-2011
160,Revenue,CCHD,S28A - Over 65,Residential Homes,Aspects &  Milestones Trust,3227.36, 23-Dec-2011
161,Revenue,CCHD,Section 117 Placements MH Younger,Residential Homes,Aspects &  Milestones Trust,1688, 23-Dec-2011
162,Revenue,CCHD,MH Purchasing - Younger,Residential Homes,Aspects &  Milestones Trust,1009, 23-Dec-2011
163,Revenue,CCHD,S28A - Over 65,Residential Homes,Aspects &  Milestones Trust,3463.2, 23-Dec-2011
164,Revenue,CCHD,S28A - Under 65,Residential Homes,Aspects &  Milestones Trust,3514.96, 23-Dec-2011
165,Revenue,CCHD,S28A - Under 65,Residential Homes,Aspects &  Milestones Trust,4980, 23-Dec-2011
166,Revenue,CCHD,S28A - Under 65,Residential Homes,Aspects &  Milestones Trust,5936.36, 23-Dec-2011
167,Revenue,CCHD,S28A - Over 65,Residential Homes,Aspects &  Milestones Trust,5810.64, 23-Dec-2011
168,Revenue,CCHD,S28A - Over 65,Residential Homes,Aspects &  Milestones Trust,4106.08, 23-Dec-2011
169,Revenue,CCHD,S28A - Over 65,Residential Homes,Aspects &  Milestones Trust,4652.36, 23-Dec-2011
170,Revenue,CCHD,S28A - Over 65,Residential Homes,Aspects &  Milestones Trust,4693.88, 23-Dec-2011
171,Revenue,CCHD,S28A - Under 65,Residential Homes,Aspects &  Milestones Trust,5524.88, 23-Dec-2011
172,Revenue,CCHD,S28A - Under 65,Residential Homes,Aspects &  Milestones Trust,7621.72, 23-Dec-2011
173,Revenue,CCHD,S28A - Over 65,Residential Homes,Aspects &  Milestones Trust,4831.24, 23-Dec-2011
174,Revenue,CCHD,S28A - Under 65,Residential Homes,Aspects &  Milestones Trust,4675.48, 23-Dec-2011
175,Revenue,CCHD,S28A - Over 65,Residential Homes,Aspects &  Milestones Trust,4814.6, 23-Dec-2011
176,Revenue,CCHD,S28A - Over 65,Residential Homes,Aspects &  Milestones Trust,5393.12, 23-Dec-2011
177,Revenue,CCHD,S28A - Under 65,Residential Homes,Aspects &  Milestones Trust,4546.52, 23-Dec-2011
178,Revenue,CCHD,S28A - Over 65,Residential Homes,Aspects &  Milestones Trust,4814.6, 23-Dec-2011
179,Revenue,CCHD,S28A - Over 65,Residential Homes,Aspects &  Milestones Trust,5200, 23-Dec-2011
180,Revenue,CCHD,S28A - Over 65,Residential Homes,Aspects &  Milestones Trust,38804.57, 23-Dec-2011
181,Revenue,CCHD,S28A - Over 65,Residential Homes,Aspects &  Milestones Trust,4837.04, 23-Dec-2011
182,Revenue,CCHD,S28A - Under 65,Residential Homes,Aspects &  Milestones Trust,4667.44, 23-Dec-2011
183,Revenue,CCHD,S28A - Under 65,Residential Homes,Aspects &  Milestones Trust,6036, 23-Dec-2011
184,Revenue,CCHD,S28A - Over 65,Residential Homes,Aspects &  Milestones Trust,5538.72, 23-Dec-2011
185,Revenue,CCHD,S28A - Under 65,Residential Homes,Aspects &  Milestones Trust,3422.8, 23-Dec-2011
186,Revenue,CCHD,S28A - Under 65,Residential Homes,Aspects &  Milestones Trust,7037.26, 23-Dec-2011
187,Revenue,CCHD,S28A - Over 65,Residential Homes,Aspects &  Milestones Trust,3230.96, 23-Dec-2011
188,Revenue,CCHD,S28A - Over 65,Residential Homes,Aspects &  Milestones Trust,3366.4, 23-Dec-2011
189,Revenue,CCHD,S28A - Over 65,Residential Homes,Aspects &  Milestones Trust,3161.2, 23-Dec-2011
190,Revenue,CCHD,Under 65s PWLD - KH,Residential Homes,Aspects &  Milestones Trust,7047.48, 23-Dec-2011
191,Revenue,CCHD,Section 117 Placements,Residential Homes,Aspects &  Milestones Trust,1913.04, 23-Dec-2011
192,Revenue,CCHD,Elderly Mental Health,Nursing Homes,Aspects &  Milestones Trust,1323.08, 23-Dec-2011
193,Revenue,CCHD,Under 65s PWLD - KD,Residential Homes,Aspects &  Milestones Trust,6036, 23-Dec-2011
194,Revenue,CCHD,MH Purchasing - Younger,Nursing Homes,Aspects &  Milestones Trust,908.88, 23-Dec-2011
195,Revenue,CCHD,MH Purchasing - Younger,Nursing Homes,Aspects &  Milestones Trust,1097, 23-Dec-2011
196,Revenue,CCHD,MH Purchasing - Younger,Residential Homes,Aspects &  Milestones Trust,1009, 23-Dec-2011
197,Revenue,CCHD,Elderly PWLD - PS,Residential Homes,Aspects &  Milestones Trust,3353.52, 23-Dec-2011
198,Revenue,CCHD,Elderly PWLD - PS,Residential Homes,Aspects &  Milestones Trust,34721.16, 23-Dec-2011
199,Revenue,CCHD,Section 117 Placements MH Younger,Nursing Homes,Aspects &  Milestones Trust,1392, 23-Dec-2011
200,Revenue,CCHD,S28A - Under 65,Residential Homes,Aspects &  Milestones Trust,43849.33, 23-Dec-2011
201,Revenue,CCHD,S28A - Under 65,Residential Homes,Aspects &  Milestones Trust,4796.24, 23-Dec-2011
202,Revenue,CCHD,S28A - Over 65,Residential Homes,Aspects &  Milestones Trust,4562.12, 23-Dec-2011
203,Revenue,CCHD,Under 65s PWLD - KH,Residential Homes,Aspects &  Milestones Trust,4115.4, 23-Dec-2011
204,Revenue,CCHD,S28A - Over 65,Residential Homes,Aspects &  Milestones Trust,4037.96, 23-Dec-2011
205,Revenue,CCHD,S28A - Over 65,Residential Homes,Aspects &  Milestones Trust,3748.88, 23-Dec-2011
206,Revenue,CCHD,S28A - Over 65,Residential Homes,Aspects &  Milestones Trust,5810.64, 23-Dec-2011
207,Revenue,CCHD,S28A - Over 65,Residential Homes,Aspects &  Milestones Trust,4409.28, 23-Dec-2011
208,Revenue,CCHD,S28A - Over 65,Residential Homes,Aspects &  Milestones Trust,3917.36, 23-Dec-2011
209,Revenue,CCHD,S28A - Over 65,Residential Homes,Aspects &  Milestones Trust,4343.92, 23-Dec-2011
210,Revenue,CCHD,S28A - Over 65,Residential Homes,Aspects &  Milestones Trust,5080.6, 23-Dec-2011
211,Revenue,CCHD,Section 117 Placements,Nursing Homes,Aspects &  Milestones Trust,769.94, 23-Dec-2011
212,Revenue,CCHD,Elderly Mental Health,Residential Homes,Aspects &  Milestones Trust,1214, 23-Dec-2011
213,Revenue,CCHD,S28A - Over 65,Residential Homes,Aspects &  Milestones Trust,4693.88, 23-Dec-2011
214,Revenue,CCHD,S28A - Under 65,Residential Homes,Aspects &  Milestones Trust,5336.24, 23-Dec-2011
215,Revenue,CCHD,Section 117 Placements,Nursing Homes,Aspects &  Milestones Trust,1912, 23-Dec-2011
216,Revenue,CCHD,Elderly Mental Health,Nursing Homes,Aspects &  Milestones Trust,1425, 23-Dec-2011
217,Revenue,CCHD,Section 117 Placements,Nursing Homes,Aspects &  Milestones Trust,1912, 23-Dec-2011
218,Revenue,CCHD,Section 117 Placements,Residential Homes,Aspects &  Milestones Trust,1304, 23-Dec-2011
219,Revenue,CCHD,Under 65s PWLD - KD,Residential Homes,Aspects & Milestones Trust,8708.64, 23-Dec-2011
220,Revenue,CCHD,Supporting People Programme,Grants to Voluntary Bodies,Aspects and Milestones Trust,3996.4, 23-Dec-2011
221,Revenue,CCHD,Supporting People Programme,Grants to Voluntary Bodies,Aspects and Milestones Trust,1426.32, 23-Dec-2011
222,Revenue,CCHD,Supporting People Programme,Grants to Voluntary Bodies,Aspects and Milestones Trust,1737.24, 23-Dec-2011
223,Revenue,CCHD,Supporting People Programme,Grants to Voluntary Bodies,Aspects and Milestones Trust,2165.04, 23-Dec-2011
224,Revenue,CCHD,Supporting People Programme,Grants to Voluntary Bodies,Aspects and Milestones Trust,2783.52, 23-Dec-2011
225,Revenue,CCHD,Supporting People Programme,Grants to Voluntary Bodies,Aspects and Milestones Trust,2844.96, 23-Dec-2011
226,Revenue,CCHD,Supported Living - PS,Private & Voluntary Home Care,Aspirations Support Bristol Limited,3880.05, 01-Dec-2011
227,Revenue,CCHD,Supported Living - PS,Private & Voluntary Home Care,Aspirations Support Bristol Limited,6062.1, 01-Dec-2011
228,Revenue,CCHD,Supported Living - PS,Private & Voluntary Home Care,Aspirations Support Bristol Limited,4099.02, 01-Dec-2011
229,Revenue,CCHD,Supported Living - PS,Private & Voluntary Home Care,Aspirations Support Bristol Limited,3494.3, 01-Dec-2011
230,Revenue,CCHD,Purchase of Non-Res Care - KH,Private & Voluntary Day Care,Aspirations Support Bristol Limited,3043.5, 28-Dec-2011
231,Revenue,CCHD,Under 65s PWLD - KH,Residential Homes,Autism Specialised Care Homes,5425.76, 23-Dec-2011
232,Revenue,CCHD,Younger Adult Mental Health,Management Contract - Unisys,Avon & Wiltshire Mental Health,8333, 09-Dec-2011
233,Revenue,CCHD,Younger Adult Mental Health,Management Contract - Unisys,Avon & Wiltshire Mental Health,1667, 20-Dec-2011
234,Revenue,CCHD,Purchase of Non-Res Care - KD,Private & Voluntary Day Care,Avon Autistic Foundation Limited,3290.64, 22-Dec-2011
235,Revenue,CCHD,Purchase of Non-Res Care - KD,Private & Voluntary Day Care,Avon Autistic Foundation Limited,2242.08, 22-Dec-2011
236,Revenue,CCHD,Tenancy Start Up Scheme,Other Supplies & Services,B R Property Services,990, 06-Dec-2011
237,Revenue,CCHD,Purchase of RAC places,Other L.A.'s - General,Bath & North East Somerset Dist Council,22099.84, 05-Dec-2011
238,Revenue,CCHD,Purchase of RAC places,Other L.A.'s - General,Bath & North East Somerset Dist Council,3371.78, 05-Dec-2011
239,Revenue,CCHD,Purchase of RAC places,Other L.A.'s - General,Bath & North East Somerset Dist Council,1902.4, 23-Dec-2011
240,Revenue,CCHD,Purchase of RAC places,Other L.A.'s - General,Bath & North East Somerset Dist Council,10432.65, 23-Dec-2011
241,Revenue,CCHD,Minor Adaptations Service,Prop.Serv. General Repairs,Bath Institute of Medical Engineering Ld,475, 05-Dec-2011
242,Revenue,CCHD,Training - Adult Services,Training Expenses,Bawa Healthcare & Leisure,823.12, 29-Dec-2011
243,Revenue,CCHD,Frenchay Hospital Purchasing,Residential Homes,Beaufort House,670.32, 23-Dec-2011
244,Revenue,CCHD,Elderly Mental Health,Residential Homes,Beaufort House,1414.6, 23-Dec-2011
245,Revenue,CCHD,Southmead Hospital Purchasing,Residential Homes,Beaufort House,1545, 23-Dec-2011
246,Revenue,CCHD,Frenchay Hospital Purchasing,Residential Homes,Beaufort House,1258.76, 23-Dec-2011
247,Revenue,CCHD,Elderly Mental Health,Residential Homes,Beaufort House,1285.84, 23-Dec-2011
248,Revenue,CCHD,Southmead Hospital Purchasing,Residential Homes,Beaufort House,5903.25, 23-Dec-2011
249,Revenue,CCHD,Frenchay Hospital Purchasing,Residential Homes,Beaufort House,1263.8, 23-Dec-2011
250,Revenue,CCHD,Elderly Mental Health,Residential Homes,Beaufort House,1288.32, 23-Dec-2011
251,Revenue,CCHD,Elderly Mental Health,Residential Homes,Beaufort House,1307.68, 23-Dec-2011
252,Revenue,CCHD,Elderly Purchasing - North,Residential Homes,Beaufort House,1670.64, 23-Dec-2011
253,Revenue,CCHD,Southmead Hospital Purchasing,Residential Homes,Beaufort House,1992.86, 23-Dec-2011
254,Revenue,CCHD,Elderly Mental Health,Residential Homes,Beaufort House,1328.16, 23-Dec-2011
255,Revenue,CCHD,Elderly Mental Health,Residential Homes,Beaufort House,1032.16, 23-Dec-2011
256,Revenue,CCHD,Elderly Mental Health,Residential Homes,Beaufort House,1654.92, 23-Dec-2011
257,Revenue,CCHD,Elderly PWLD - KH,Residential Homes,Bedrock Lodge,2821.28, 23-Dec-2011
258,Revenue,CCHD,Section 117 Placements MH Younger,Residential Homes,Bedrock Lodge,1790.12, 23-Dec-2011
259,Revenue,CCHD,Frenchay Hospital Purchasing,Nursing Homes,Beech House,1565.08, 23-Dec-2011
260,Revenue,CCHD,Southmead Hospital Purchasing,Nursing Homes,Beech House,1432.36, 23-Dec-2011
261,Revenue,CCHD,Elderly Purchasing - North,Nursing Homes,Beech House,1922.32, 23-Dec-2011
262,Revenue,CCHD,Elderly Purchasing - North,Nursing Homes,Beech House,668.64, 23-Dec-2011
263,Revenue,CCHD,Elderly Purchasing - North,Nursing Homes,Beech House,1370.56, 23-Dec-2011
264,Revenue,CCHD,Southmead Hospital Purchasing,Nursing Homes,Beech House,1571.4, 23-Dec-2011
265,Revenue,CCHD,Elderly Purchasing - North,Nursing Homes,Beech House,1190.56, 23-Dec-2011
266,Revenue,CCHD,Frenchay Hospital Purchasing,Residential Homes,Blossom Field,1449.36, 23-Dec-2011
267,Revenue,CCHD,Frenchay Hospital Purchasing,Residential Homes,Blossom Field,1703.9, 23-Dec-2011
268,Revenue,CCHD,Southmead Hospital Purchasing,Nursing Homes,Blossom Field,2570, 23-Dec-2011
269,Revenue,CCHD,Elderly Mental Health,Nursing Homes,Blossom Field,1378.68, 23-Dec-2011
270,Revenue,CCHD,Southmead Hospital Purchasing,Nursing Homes,Blossom Field,1285, 23-Dec-2011
271,Revenue,CCHD,Training - Adult Services,Training Expenses,Bob Dawson,735, 15-Dec-2011
272,Revenue,CCHD,Frenchay Hospital Purchasing,Nursing Homes,Bradbury House,2700.64, 23-Dec-2011
273,Revenue,CCHD,Home Care Purch South,Other Small Contracts,Bradley House Home Care Services,82, 19-Dec-2011
274,Revenue,CCHD,Home Care Purch North,Other Small Contracts,Bradley House Home Care Services,1890.1, 19-Dec-2011
275,Revenue,CCHD,Day Care - South,Private & Voluntary Day Care,Bradley House Home Care Services,57.4, 19-Dec-2011
276,Revenue,CCHD,Day Care - North,Private & Voluntary Day Care,Bradley House Home Care Services,131.2, 19-Dec-2011
277,Revenue,CCHD,Younger MH non-res purchasing,Private & Voluntary Day Care,Bradley House Home Care Services,61.5, 19-Dec-2011
278,Revenue,CCHD,Home Care Purch South,Other Small Contracts,Bradley House Home Care Services,86.1, 23-Dec-2011
279,Revenue,CCHD,Home Care Purch North,Other Small Contracts,Bradley House Home Care Services,1988.5, 23-Dec-2011
280,Revenue,CCHD,Day Care - South,Private & Voluntary Day Care,Bradley House Home Care Services,57.4, 23-Dec-2011
281,Revenue,CCHD,Day Care - North,Private & Voluntary Day Care,Bradley House Home Care Services,131.2, 23-Dec-2011
282,Revenue,CCHD,Younger MH non-res purchasing,Private & Voluntary Day Care,Bradley House Home Care Services,65.6, 23-Dec-2011
283,Revenue,CCHD,Home Care Purch South,Other Small Contracts,Bradley House Home Care Services,86.1, 01-Dec-2011
284,Revenue,CCHD,Home Care Purch North,Other Small Contracts,Bradley House Home Care Services,2144.3, 01-Dec-2011
285,Revenue,CCHD,Day Care - South,Private & Voluntary Day Care,Bradley House Home Care Services,57.4, 01-Dec-2011
286,Revenue,CCHD,Day Care - North,Private & Voluntary Day Care,Bradley House Home Care Services,131.2, 01-Dec-2011
287,Revenue,CCHD,Younger MH non-res purchasing,Private & Voluntary Day Care,Bradley House Home Care Services,61.5, 01-Dec-2011
288,Revenue,CCHD,Home Care Purch South,Other Small Contracts,Bradley House Home Care Services,82, 08-Dec-2011
289,Revenue,CCHD,Home Care Purch North,Other Small Contracts,Bradley House Home Care Services,2009, 08-Dec-2011
290,Revenue,CCHD,Day Care - South,Private & Voluntary Day Care,Bradley House Home Care Services,57.4, 08-Dec-2011
291,Revenue,CCHD,Day Care - North,Private & Voluntary Day Care,Bradley House Home Care Services,131.2, 08-Dec-2011
292,Revenue,CCHD,Younger MH non-res purchasing,Private & Voluntary Day Care,Bradley House Home Care Services,65.6, 08-Dec-2011
293,Revenue,CCHD,Woodleaze,"Provisions (Food, etc)",Brake Bros,542.86, 15-Dec-2011
294,Revenue,CCHD,Woodleaze,"Provisions (Food, etc)",Brake Bros,708.36, 15-Dec-2011
295,Revenue,CCHD,Woodleaze,"Provisions (Food, etc)",Brake Bros,610.92, 15-Dec-2011
296,Revenue,CCHD,Elderly Purchasing - North,Residential Homes,Bridge House Care Home,1232.6, 23-Dec-2011
297,Revenue,CCHD,Elderly Purchasing - South,Residential Homes,Bridge House Care Home,1074.32, 23-Dec-2011
298,Revenue,CCHD,Elderly Purchasing - North,Residential Homes,Bridge House Care Home,1029.16, 23-Dec-2011
299,Revenue,CCHD,Elderly Mental Health,Residential Homes,Brightbow,2487.2, 23-Dec-2011
300,Revenue,CCHD,MH Purchasing - Younger,Residential Homes,Brightbow,904.84, 23-Dec-2011
301,Revenue,CCHD,Older People's Commissioned Se,Grants to Voluntary Bodies,Bristol Area Stroke Foundation,4500, 29-Dec-2011
302,Revenue,CCHD,Supporting People Programme,Grants to Voluntary Bodies,Bristol Care & Repair,9780.82, 29-Dec-2011
303,Revenue,CCHD,Supporting People Programme,Grants to Voluntary Bodies,Bristol Care & Repair,9780.82, 05-Dec-2011
304,Revenue,CCHD,Purchase of RAC places,Other L.A.'s - General,Bristol City Council,9610.95, 05-Dec-2011
305,Revenue,CCHD,Purchase of RAC places,Other L.A.'s - General,Bristol City Council,9624.35, 05-Dec-2011
306,Revenue,CCHD,Purchase of RAC places,Other L.A.'s - General,Bristol City Council,8787.8, 05-Dec-2011
307,Revenue,CCHD,Purchase of RAC places,Other L.A.'s - General,Bristol City Council,8704.71, 05-Dec-2011
308,Revenue,CCHD,Getting a Life Project,Other Supplies & Services,Bristol City Council,10579.68, 15-Dec-2011
309,Revenue,CCHD,Supported Living - KD,Private & Voluntary Home Care,Bristol Houses UK Ltd,1320.55, 22-Dec-2011
310,Revenue,CCHD,Supported Living - KD,Private & Voluntary Home Care,Bristol Houses UK Ltd,1020.43, 22-Dec-2011
311,Revenue,CCHD,Supported Living - KD,Private & Voluntary Home Care,Bristol Houses UK Ltd,1749.3, 22-Dec-2011
312,Revenue,CCHD,Supported Living - KD,Private & Voluntary Home Care,Bristol Houses UK Ltd,891.8, 22-Dec-2011
313,Revenue,CCHD,Supported Living - KD,Private & Voluntary Home Care,Bristol Houses UK Ltd,944, 22-Dec-2011
314,Revenue,CCHD,Younger MH non-res purchasing,Private & Voluntary Day Care,Bristol Houses UK Ltd,1327.5, 09-Dec-2011
315,Revenue,CCHD,Younger MH non-res purchasing,Private & Voluntary Day Care,Bristol Houses UK Ltd,1062, 09-Dec-2011
316,Revenue,CCHD,Elderly MH non-res purchasing,Private & Voluntary Day Care,Bristol Houses UK Ltd,1062, 09-Dec-2011
317,Revenue,CCHD,Younger MH non-res purchasing,Private & Voluntary Day Care,Bristol Houses UK Ltd,1047.25, 16-Dec-2011
318,Revenue,CCHD,Supported Living - KD,Private & Voluntary Home Care,Bristol Houses UK Ltd,545.75, 22-Dec-2011
319,Revenue,CCHD,Bed and Breakfast,Bed & Breakfast,Bristol Housing & Support Limited,672, 12-Dec-2011
320,Revenue,CCHD,Bed and Breakfast,Bed & Breakfast,Bristol Housing & Support Limited,816, 14-Dec-2011
321,Revenue,CCHD,Bed and Breakfast,Bed & Breakfast,Bristol Housing & Support Limited,840, 14-Dec-2011
322,Revenue,CCHD,Blackhorse RAC,Water Charges,Bristol Wessex Billing Services Limited,1325.82, 16-Dec-2011
323,Revenue,CCHD,Section 117 Placements,Residential Homes,Brockley Court Care Home,1788, 23-Dec-2011
324,Revenue,CCHD,Supporting People Programme,Grants to Voluntary Bodies,Bromford Housing Group,14293.2, 29-Dec-2011
325,Revenue,CCHD,Supporting People Programme,Grants to Voluntary Bodies,Bromford Housing Group,14293.2, 05-Dec-2011
326,Revenue,CCHD,Elderly Purchasing - North,Residential Homes,Brook Lane Residential Home,886.4, 23-Dec-2011
327,Revenue,CCHD,Southmead Hospital Purchasing,Nursing Homes,Brunel Care,1326.08, 23-Dec-2011
328,Revenue,CCHD,Section 117 Placements,Nursing Homes,Brunel Care,1744, 23-Dec-2011
329,Revenue,CCHD,Southmead Hospital Purchasing,Residential Homes,Brunel Care,1237.12, 23-Dec-2011
330,Revenue,CCHD,Southmead Hospital Purchasing,Residential Homes,Brunel Care,1300.32, 23-Dec-2011
331,Revenue,CCHD,Elderly Purchasing - South,Residential Homes,Brunel Care,1366.32, 23-Dec-2011
332,Revenue,CCHD,Elderly Purchasing - South,Nursing Homes,Brunelcare,10813.03, 23-Dec-2011
333,Revenue,CCHD,Elderly Purchasing - North,Nursing Homes,Brunelcare,3046.71, 23-Dec-2011
334,Revenue,CCHD,Frenchay Hospital Purchasing,Nursing Homes,Brunelcare,1418.36, 23-Dec-2011
335,Revenue,CCHD,Southmead Hospital Purchasing,Nursing Homes,Brunelcare,4087.97, 23-Dec-2011
336,Revenue,CCHD,South Glos Users in South Glos Homes,Nursing Homes,Brunelcare,10233.33, 23-Dec-2011
337,Revenue,CCHD,Elderly Mental Health,Nursing Homes,Brunelcare,16048.02, 23-Dec-2011
338,Revenue,CCHD,Section 117 Placements,Nursing Homes,Brunelcare,6471.86, 23-Dec-2011
339,Revenue,CCHD,Elderly MH non-res purchasing,Private & Voluntary Day Care,Brunelcare,712.4, 09-Dec-2011
340,Revenue,CCHD,Home Care Purch South,Other Small Contracts,Brunelcare,3073.74, 12-Dec-2011
341,Revenue,CCHD,Home Care Purch North,Other Small Contracts,Brunelcare,4684.68, 12-Dec-2011
342,Revenue,CCHD,Day Care - South,Private & Voluntary Day Care,Brunelcare,304.92, 12-Dec-2011
343,Revenue,CCHD,Day Care - North,Private & Voluntary Day Care,Brunelcare,31.68, 12-Dec-2011
344,Revenue,CCHD,Elderly MH Home Care,Other Small Contracts,Brunelcare,654.44, 12-Dec-2011
345,Revenue,CCHD,Elderly MH non-res purchasing,Private & Voluntary Day Care,Brunelcare,514.8, 12-Dec-2011
346,Revenue,CCHD,Home Care Purch South,Other Small Contracts,Brunelcare,3256.68, 12-Dec-2011
347,Revenue,CCHD,Home Care Purch North,Other Small Contracts,Brunelcare,4577.76, 12-Dec-2011
348,Revenue,CCHD,Day Care - South,Private & Voluntary Day Care,Brunelcare,360.36, 12-Dec-2011
349,Revenue,CCHD,Day Care - North,Private & Voluntary Day Care,Brunelcare,31.68, 12-Dec-2011
350,Revenue,CCHD,Elderly MH Home Care,Other Small Contracts,Brunelcare,673.2, 12-Dec-2011
351,Revenue,CCHD,Elderly MH non-res purchasing,Private & Voluntary Day Care,Brunelcare,483.12, 12-Dec-2011
352,Revenue,CCHD,Home Care Purch South,Other Small Contracts,Brunelcare,2998.5, 20-Dec-2011
353,Revenue,CCHD,Home Care Purch North,Other Small Contracts,Brunelcare,4486.68, 20-Dec-2011
354,Revenue,CCHD,Day Care - South,Private & Voluntary Day Care,Brunelcare,360.36, 20-Dec-2011
355,Revenue,CCHD,Day Care - North,Private & Voluntary Day Care,Brunelcare,27.72, 20-Dec-2011
356,Revenue,CCHD,Carer`s Grant - North,Carers Breaks & Services,Brunelcare,15.84, 20-Dec-2011
357,Revenue,CCHD,Elderly MH Home Care,Other Small Contracts,Brunelcare,665.28, 20-Dec-2011
358,Revenue,CCHD,Elderly MH non-res purchasing,Private & Voluntary Day Care,Brunelcare,491.04, 20-Dec-2011
359,Revenue,CCHD,Information Systems - Software,Computer Equipment - Purchase,BT Global Services Solutions,759.31, 14-Dec-2011
360,Revenue,CCHD,Woodleaze,Cleaning & Domestic Supplies,Bunzl Cleaning & Hygiene Supplies,418.84, 15-Dec-2011
361,Revenue,CCHD,Alexandra Way,Maintenance by Contractor,C B Decorators,680, 01-Dec-2011
362,Revenue,CCHD,Woodleaze,Prop.Serv. General Repairs,C B Decorators,675, 14-Dec-2011
363,Revenue,CCHD,Community Support ACM - North,Preventative Assistance,C S Cleaning Services Limited,480, 29-Dec-2011
364,Revenue,CCHD,Supported Living - KH,Private & Voluntary Home Care,Camphill Communities Thornbury Limited,853.86, 08-Dec-2011
365,Revenue,CCHD,Supported Living - KD,Private & Voluntary Home Care,Camphill Communities Thornbury Limited,1017.22, 05-Dec-2011
366,Revenue,CCHD,Supported Living - KH,Private & Voluntary Home Care,Camphill Communities Thornbury Limited,1707.72, 08-Dec-2011
367,Revenue,CCHD,Supported Living - KD,Private & Voluntary Home Care,Camphill Communities Thornbury Limited,2231.64, 09-Dec-2011
368,Revenue,CCHD,Supported Living - KD,Private & Voluntary Home Care,Camphill Communities Thornbury Limited,1996.72, 09-Dec-2011
369,Revenue,CCHD,Supported Living - KD,Private & Voluntary Home Care,Camphill Communities Thornbury Limited,2211.36, 09-Dec-2011
370,Revenue,CCHD,Supported Living - KD,Private & Voluntary Home Care,Camphill Communities Thornbury Limited,1964.32, 09-Dec-2011
371,Revenue,CCHD,Supported Living - KD,Private & Voluntary Home Care,Camphill Communities Thornbury Limited,2077.72, 16-Dec-2011
372,Revenue,CCHD,Supported Living - KD,Private & Voluntary Home Care,Camphill Communities Thornbury Limited,1017.22, 16-Dec-2011
373,Revenue,CCHD,Supported Living - KD,Private & Voluntary Home Care,Camphill Communities Thornbury Limited,1964.32, 19-Dec-2011
374,Revenue,CCHD,Supported Living - KD,Private & Voluntary Home Care,Camphill Communities Thornbury Limited,2179.44, 19-Dec-2011
375,Revenue,CCHD,Supported Living - KD,Private & Voluntary Home Care,Camphill Communities Thornbury Limited,1017.22, 29-Dec-2011
376,Revenue,CCHD,Under 65s PWLD - KD,Residential Homes,Camphill Devon Community,3143.88, 23-Dec-2011
377,Revenue,CCHD,Under 65s PWLD - KD,Residential Homes,Camphill Devon Community,2208.44, 23-Dec-2011
378,Revenue,CCHD,Supported Living - PS,Private & Voluntary Home Care,Camphill Village Trust,1449.11, 06-Dec-2011
379,Revenue,CCHD,Home Care Purch South,Other Small Contracts,Care 1st Homecare,4875.5, 14-Dec-2011
380,Revenue,CCHD,Home Care Purch North,Other Small Contracts,Care 1st Homecare,5396.88, 14-Dec-2011
381,Revenue,CCHD,Day Care - South,Private & Voluntary Day Care,Care 1st Homecare,406, 14-Dec-2011
382,Revenue,CCHD,Day Care - North,Private & Voluntary Day Care,Care 1st Homecare,394.76, 14-Dec-2011
383,Revenue,CCHD,Elderly MH Home Care,Other Small Contracts,Care 1st Homecare,191.04, 14-Dec-2011
384,Revenue,CCHD,Elderly MH non-res purchasing,Private & Voluntary Day Care,Care 1st Homecare,54.72, 14-Dec-2011
385,Revenue,CCHD,PWLD Home Care - Under 65 - PS,Private & Voluntary Home Care,Care 1st Homecare,31.84, 14-Dec-2011
386,Revenue,CCHD,PWLD Home Care - Under 65 - KH,Private & Voluntary Home Care,Care 1st Homecare,167.16, 14-Dec-2011
387,Revenue,CCHD,Home Care Purch South,Other Small Contracts,Care 1st Homecare,4795.9, 08-Dec-2011
388,Revenue,CCHD,Home Care Purch North,Other Small Contracts,Care 1st Homecare,5170.02, 08-Dec-2011
389,Revenue,CCHD,Day Care - South,Private & Voluntary Day Care,Care 1st Homecare,351.96, 08-Dec-2011
390,Revenue,CCHD,Day Care - North,Private & Voluntary Day Care,Care 1st Homecare,414.66, 08-Dec-2011
391,Revenue,CCHD,Elderly MH Home Care,Other Small Contracts,Care 1st Homecare,195.02, 08-Dec-2011
392,Revenue,CCHD,Elderly MH non-res purchasing,Private & Voluntary Day Care,Care 1st Homecare,58.14, 08-Dec-2011
393,Revenue,CCHD,PWLD Home Care - Under 65 - PS,Private & Voluntary Home Care,Care 1st Homecare,27.86, 08-Dec-2011
394,Revenue,CCHD,PWLD Home Care - Under 65 - KH,Private & Voluntary Home Care,Care 1st Homecare,151.24, 08-Dec-2011
395,Revenue,CCHD,Home Care Purch South,Other Small Contracts,Care 1st Homecare,4517.3, 08-Dec-2011
396,Revenue,CCHD,Home Care Purch North,Other Small Contracts,Care 1st Homecare,5050.62, 08-Dec-2011
397,Revenue,CCHD,Day Care - South,Private & Voluntary Day Care,Care 1st Homecare,311.04, 08-Dec-2011
398,Revenue,CCHD,Day Care - North,Private & Voluntary Day Care,Care 1st Homecare,292.96, 08-Dec-2011
399,Revenue,CCHD,Elderly MH Home Care,Other Small Contracts,Care 1st Homecare,178.6, 08-Dec-2011
400,Revenue,CCHD,Elderly MH non-res purchasing,Private & Voluntary Day Care,Care 1st Homecare,15.92, 08-Dec-2011
401,Revenue,CCHD,PWLD Home Care - Under 65 - PS,Private & Voluntary Home Care,Care 1st Homecare,27.86, 08-Dec-2011
402,Revenue,CCHD,PWLD Home Care - Under 65 - KH,Private & Voluntary Home Care,Care 1st Homecare,127.36, 08-Dec-2011
403,Revenue,CCHD,Home Care Purch South,Other Small Contracts,Care 1st Homecare,4489.44, 12-Dec-2011
404,Revenue,CCHD,Home Care Purch North,Other Small Contracts,Care 1st Homecare,5034.7, 12-Dec-2011
405,Revenue,CCHD,Day Care - South,Private & Voluntary Day Care,Care 1st Homecare,212.04, 12-Dec-2011
406,Revenue,CCHD,Day Care - North,Private & Voluntary Day Care,Care 1st Homecare,371.44, 12-Dec-2011
407,Revenue,CCHD,Elderly MH Home Care,Other Small Contracts,Care 1st Homecare,151.24, 12-Dec-2011
408,Revenue,CCHD,Elderly MH non-res purchasing,Private & Voluntary Day Care,Care 1st Homecare,27.36, 12-Dec-2011
409,Revenue,CCHD,PWLD Home Care - Under 65 - PS,Private & Voluntary Home Care,Care 1st Homecare,31.84, 12-Dec-2011
410,Revenue,CCHD,PWLD Home Care - Under 65 - KH,Private & Voluntary Home Care,Care 1st Homecare,167.16, 12-Dec-2011
411,Revenue,CCHD,Home Care Purch South,Other Small Contracts,Care 1st Homecare,4366.06, 19-Dec-2011
412,Revenue,CCHD,Home Care Purch North,Other Small Contracts,Care 1st Homecare,4939.18, 19-Dec-2011
413,Revenue,CCHD,Day Care - South,Private & Voluntary Day Care,Care 1st Homecare,208.62, 19-Dec-2011
414,Revenue,CCHD,Day Care - North,Private & Voluntary Day Care,Care 1st Homecare,328.22, 19-Dec-2011
415,Revenue,CCHD,Elderly MH Home Care,Other Small Contracts,Care 1st Homecare,147.26, 19-Dec-2011
416,Revenue,CCHD,PWLD Home Care - Under 65 - PS,Private & Voluntary Home Care,Care 1st Homecare,31.84, 19-Dec-2011
417,Revenue,CCHD,PWLD Home Care - Under 65 - KH,Private & Voluntary Home Care,Care 1st Homecare,71.64, 19-Dec-2011
418,Revenue,CCHD,PWLD S 117 Placements,Residential Homes,Care Community Ltd,7341.4, 23-Dec-2011
419,Revenue,CCHD,Supported Living - PS,Private & Voluntary Home Care,Care Horizons Limited,527.51, 08-Dec-2011
420,Revenue,CCHD,Purchase of Non-Res Care - PS,Private & Voluntary Day Care,Care Horizons Limited,1543.42, 08-Dec-2011
421,Revenue,CCHD,Supported Living - KD,Private & Voluntary Home Care,Care Horizons Limited,5268.36, 15-Dec-2011
422,Revenue,CCHD,Purchase of Non-Res Care - KD,Private & Voluntary Day Care,Care Horizons Limited,1167.46, 16-Dec-2011
423,Revenue,CCHD,Purchase of Non-Res Care - KD,Private & Voluntary Day Care,Care Horizons Limited,1703.62, 15-Dec-2011
424,Revenue,CCHD,Purchase of Non-Res Care - KD,Private & Voluntary Day Care,Care Horizons Limited,1273.57, 19-Dec-2011
425,Revenue,CCHD,Purchase of Non-Res Care - KD,Private & Voluntary Day Care,Care Horizons Limited,511.08, 19-Dec-2011
426,Revenue,CCHD,Electronic Home Care Monitoring,Other Supplies & Services,Care Monitoring 2000 Limited,5035.9, 23-Dec-2011
427,Revenue,CCHD,Home Care - General,Other Supplies & Services,Care Monitoring 2000 Limited,7052, 23-Dec-2011
428,Revenue,CCHD,Home Care Purch South,Other Small Contracts,Care UK,9613.95, 19-Dec-2011
429,Revenue,CCHD,Home Care Purch North,Other Small Contracts,Care UK,4597.5, 19-Dec-2011
430,Revenue,CCHD,Day Care - South,Private & Voluntary Day Care,Care UK,461.25, 19-Dec-2011
431,Revenue,CCHD,Day Care - North,Private & Voluntary Day Care,Care UK,888.75, 19-Dec-2011
432,Revenue,CCHD,Elderly MH Home Care,Other Small Contracts,Care UK,870, 19-Dec-2011
433,Revenue,CCHD,Elderly MH non-res purchasing,Private & Voluntary Day Care,Care UK,225, 19-Dec-2011
434,Revenue,CCHD,Home Care Purch South,Other Small Contracts,Care UK,9571.35, 19-Dec-2011
435,Revenue,CCHD,Home Care Purch North,Other Small Contracts,Care UK,4943.85, 19-Dec-2011
436,Revenue,CCHD,Day Care - South,Private & Voluntary Day Care,Care UK,431.25, 19-Dec-2011
437,Revenue,CCHD,Day Care - North,Private & Voluntary Day Care,Care UK,855, 19-Dec-2011
438,Revenue,CCHD,Elderly MH Home Care,Other Small Contracts,Care UK,858.75, 19-Dec-2011
439,Revenue,CCHD,Elderly MH non-res purchasing,Private & Voluntary Day Care,Care UK,221.25, 19-Dec-2011
440,Revenue,CCHD,Home Care Purch South,Other Small Contracts,Care UK,9561.45, 19-Dec-2011
441,Revenue,CCHD,Home Care Purch North,Other Small Contracts,Care UK,4488.75, 19-Dec-2011
442,Revenue,CCHD,Day Care - South,Private & Voluntary Day Care,Care UK,438.75, 19-Dec-2011
443,Revenue,CCHD,Day Care - North,Private & Voluntary Day Care,Care UK,686.25, 19-Dec-2011
444,Revenue,CCHD,Elderly MH Home Care,Other Small Contracts,Care UK,866.25, 19-Dec-2011
445,Revenue,CCHD,Elderly MH non-res purchasing,Private & Voluntary Day Care,Care UK,217.5, 19-Dec-2011
446,Revenue,CCHD,Home Care Purch South,Other Small Contracts,Care UK,9578.85, 19-Dec-2011
447,Revenue,CCHD,Home Care Purch North,Other Small Contracts,Care UK,4951.35, 19-Dec-2011
448,Revenue,CCHD,Day Care - South,Private & Voluntary Day Care,Care UK,438.75, 19-Dec-2011
449,Revenue,CCHD,Day Care - North,Private & Voluntary Day Care,Care UK,825, 19-Dec-2011
450,Revenue,CCHD,Elderly MH Home Care,Other Small Contracts,Care UK,412.5, 19-Dec-2011
451,Revenue,CCHD,Elderly MH non-res purchasing,Private & Voluntary Day Care,Care UK,82.5, 19-Dec-2011
452,Revenue,CCHD,Home Care Purch South,Other Small Contracts,Carewatch (Bristol),223.56, 19-Dec-2011
453,Revenue,CCHD,Home Care Purch North,Other Small Contracts,Carewatch (Bristol),223.56, 19-Dec-2011
454,Revenue,CCHD,Elderly MH Home Care,Other Small Contracts,Carewatch (Bristol),327.06, 19-Dec-2011
455,Revenue,CCHD,Elderly MH non-res purchasing,Private & Voluntary Day Care,Carewatch (Bristol),62.1, 19-Dec-2011
456,Revenue,CCHD,Home Care Purch South,Other Small Contracts,Carewatch (Bristol),215.28, 12-Dec-2011
457,Revenue,CCHD,Home Care Purch North,Other Small Contracts,Carewatch (Bristol),215.28, 12-Dec-2011
458,Revenue,CCHD,Elderly MH Home Care,Other Small Contracts,Carewatch (Bristol),314.64, 12-Dec-2011
459,Revenue,CCHD,Elderly MH non-res purchasing,Private & Voluntary Day Care,Carewatch (Bristol),99.36, 12-Dec-2011
460,Revenue,CCHD,Home Care Purch South,Other Small Contracts,Carewatch (Bristol),223.56, 12-Dec-2011
461,Revenue,CCHD,Home Care Purch North,Other Small Contracts,Carewatch (Bristol),231.84, 12-Dec-2011
462,Revenue,CCHD,Elderly MH Home Care,Other Small Contracts,Carewatch (Bristol),339.48, 12-Dec-2011
463,Revenue,CCHD,Elderly MH non-res purchasing,Private & Voluntary Day Care,Carewatch (Bristol),82.8, 12-Dec-2011
464,Revenue,CCHD,Home Care Purch South,Other Small Contracts,Carewatch (Bristol),235.98, 23-Dec-2011
465,Revenue,CCHD,Home Care Purch North,Other Small Contracts,Carewatch (Bristol),351.9, 23-Dec-2011
466,Revenue,CCHD,Elderly MH Home Care,Other Small Contracts,Carewatch (Bristol),298.08, 23-Dec-2011
467,Revenue,CCHD,Elderly MH non-res purchasing,Private & Voluntary Day Care,Carewatch (Bristol),57.96, 23-Dec-2011
468,Revenue,CCHD,Home Care Purch South,Other Small Contracts,Cash Friday at Lloyds TSB,113.7, 06-Dec-2011
469,Revenue,CCHD,Home Care Purch North,Other Small Contracts,Cash Friday at Lloyds TSB,2057.97, 06-Dec-2011
470,Revenue,CCHD,Day Care - North,Private & Voluntary Day Care,Cash Friday at Lloyds TSB,90.96, 06-Dec-2011
471,Revenue,CCHD,Home Care Purch South,Other Small Contracts,Cash Friday at Lloyds TSB,181.92, 06-Dec-2011
472,Revenue,CCHD,Home Care Purch North,Other Small Contracts,Cash Friday at Lloyds TSB,1830.57, 06-Dec-2011
473,Revenue,CCHD,Day Care - South,Private & Voluntary Day Care,Cash Friday at Lloyds TSB,30.32, 06-Dec-2011
474,Revenue,CCHD,Day Care - North,Private & Voluntary Day Care,Cash Friday at Lloyds TSB,90.96, 06-Dec-2011
475,Revenue,CCHD,Home Care Purch South,Other Small Contracts,Cash Friday at Lloyds TSB,181.92, 08-Dec-2011
476,Revenue,CCHD,Home Care Purch North,Other Small Contracts,Cash Friday at Lloyds TSB,1443.99, 08-Dec-2011
477,Revenue,CCHD,Day Care - South,Private & Voluntary Day Care,Cash Friday at Lloyds TSB,30.32, 08-Dec-2011
478,Revenue,CCHD,Day Care - North,Private & Voluntary Day Care,Cash Friday at Lloyds TSB,94.75, 08-Dec-2011
479,Revenue,CCHD,Home Care Purch South,Other Small Contracts,Cash Friday at Lloyds TSB,185.71, 08-Dec-2011
480,Revenue,CCHD,Home Care Purch North,Other Small Contracts,Cash Friday at Lloyds TSB,1773.72, 08-Dec-2011
481,Revenue,CCHD,Day Care - South,Private & Voluntary Day Care,Cash Friday at Lloyds TSB,30.32, 08-Dec-2011
482,Revenue,CCHD,Day Care - North,Private & Voluntary Day Care,Cash Friday at Lloyds TSB,87.17, 08-Dec-2011
483,Revenue,CCHD,Home Care Purch South,Other Small Contracts,Cash Friday at Lloyds TSB,181.92, 08-Dec-2011
484,Revenue,CCHD,Home Care Purch North,Other Small Contracts,Cash Friday at Lloyds TSB,1766.14, 08-Dec-2011
485,Revenue,CCHD,Day Care - South,Private & Voluntary Day Care,Cash Friday at Lloyds TSB,30.32, 08-Dec-2011
486,Revenue,CCHD,Day Care - North,Private & Voluntary Day Care,Cash Friday at Lloyds TSB,87.17, 08-Dec-2011
487,Revenue,CCHD,Home Care Purch South,Other Small Contracts,Cash Friday at Lloyds TSB,181.92, 21-Dec-2011
488,Revenue,CCHD,Home Care Purch North,Other Small Contracts,Cash Friday at Lloyds TSB,1489.47, 21-Dec-2011
489,Revenue,CCHD,Day Care - South,Private & Voluntary Day Care,Cash Friday at Lloyds TSB,37.9, 21-Dec-2011
490,Revenue,CCHD,Day Care - North,Private & Voluntary Day Care,Cash Friday at Lloyds TSB,75.8, 21-Dec-2011
491,Revenue,CCHD,Detained,Nursing Homes,Castlebeck Care (Teesdale) Limited,16218.98, 01-Dec-2011
492,Revenue,CCHD,Detained,Nursing Homes,Castlebeck Care (Teesdale) Limited,16218.98, 15-Dec-2011
493,Revenue,CCHD,Frenchay Hospital Purchasing,Nursing Homes,Cedar Care Homes Ltd,1051.8, 23-Dec-2011
494,Revenue,CCHD,Bed and Breakfast,Storage & Removal,Cedar Lodge Kennels,807.29, 22-Dec-2011
495,Revenue,CCHD,Frenchay Hospital Purchasing,Residential Homes,Centenary Care Homes Ltd,1229, 23-Dec-2011
496,Revenue,CCHD,Elderly Purchasing - South,Residential Homes,Cepen Lodge Care Home,2120, 23-Dec-2011
497,Revenue,CCHD,Elderly Purchasing - South,Residential Homes,Cepen Lodge Care Home,2120, 23-Dec-2011
498,Revenue,CCHD,Frenchay Hospital Purchasing,Residential Homes,Chatsworth House,1389, 23-Dec-2011
499,Revenue,CCHD,Southmead Hospital Purchasing,Residential Homes,Chatsworth House,1008.6, 23-Dec-2011
500,Revenue,CCHD,S28A - Under 65,Residential Homes,Chescombe Lodge,8360.04, 23-Dec-2011
501,Revenue,CCHD,Under 65s PWLD - PS,Residential Homes,Chosen Court,7040.44, 23-Dec-2011
502,Revenue,CCHD,Under 65s PWLD - KD,Residential Homes,Church House,5668, 23-Dec-2011
503,Revenue,CCHD,Under 65s PWLD - KH,Nursing Homes,Churchill House,9504.88, 23-Dec-2011
504,Revenue,CCHD,Under 65s PWLD - PS,Residential Homes,Churchill House,12402.6, 23-Dec-2011
505,Revenue,CCHD,Supported Living - PS,Private & Voluntary Home Care,Cintre Community,548.13, 15-Dec-2011
506,Revenue,CCHD,Training - Adult Services,Training Expenses,City & Guilds,1010, 08-Dec-2011
507,Revenue,CCHD,Elderly Purchasing - North,Residential Homes,Cleeve Lodge,1596.44, 23-Dec-2011
508,Revenue,CCHD,Elderly Purchasing - North,Residential Homes,Cleeve Lodge,790.06, 23-Dec-2011
509,Revenue,CCHD,Southmead Hospital Purchasing,Residential Homes,Cleeve Lodge,1065.6, 23-Dec-2011
510,Revenue,CCHD,Southmead Hospital Purchasing,Residential Homes,Cleeve Lodge,1406.2, 23-Dec-2011
511,Revenue,CCHD,Elderly Purchasing - North,Residential Homes,Cleeve Lodge,1639.24, 23-Dec-2011
512,Revenue,CCHD,Elderly Purchasing - South,Residential Homes,Cleeve Lodge,2019.07, 23-Dec-2011
513,Revenue,CCHD,Elderly Purchasing - North,Residential Homes,Cleeve Lodge,1497.16, 23-Dec-2011
514,Revenue,CCHD,Elderly Purchasing - South,Residential Homes,Cleeve Lodge,1272.24, 23-Dec-2011
515,Revenue,CCHD,Elderly Purchasing - North,Residential Homes,Cleeve Lodge,1647.6, 23-Dec-2011
516,Revenue,CCHD,Elderly Purchasing - South,Residential Homes,Cleeve Lodge,1439.52, 23-Dec-2011
517,Revenue,CCHD,Elderly Purchasing - South,Residential Homes,Cleeve Lodge,2200, 23-Dec-2011
518,Revenue,CCHD,Southmead Hospital Purchasing,Residential Homes,Cleeve Lodge,2458, 23-Dec-2011
519,Revenue,CCHD,Elderly Purchasing - North,Residential Homes,Cleeve Lodge,1752.2, 23-Dec-2011
520,Revenue,CCHD,Southmead Hospital Purchasing,Residential Homes,Cleeve Lodge,1419.76, 23-Dec-2011
521,Revenue,CCHD,Day Care - South,Private & Voluntary Day Care,Cleeve Lodge Care Limited,585, 13-Dec-2011
522,Revenue,CCHD,Southmead Hospital Purchasing,Residential Homes,Clifftop Care Home,1175.72, 23-Dec-2011
523,Revenue,CCHD,Frenchay Hospital Purchasing,Residential Homes,Collingwood Residential Home,1035.92, 23-Dec-2011
524,Revenue,CCHD,Elderly Purchasing - South,Residential Homes,Collingwood Residential Home,1253.4, 23-Dec-2011
525,Revenue,CCHD,Elderly Purchasing - South,Residential Homes,Collingwood Residential Home,859.12, 23-Dec-2011
526,Revenue,CCHD,Elderly Purchasing - South,Residential Homes,Collingwood Residential Home,1242.91, 23-Dec-2011
527,Revenue,CCHD,Elderly Purchasing - South,Residential Homes,Collingwood Residential Home,1066.44, 23-Dec-2011
528,Revenue,CCHD,Elderly Purchasing - South,Residential Homes,Collingwood Residential Home,1297.84, 23-Dec-2011
529,Revenue,CCHD,Frenchay Hospital Purchasing,Residential Homes,Collingwood Residential Home,1214.6, 23-Dec-2011
530,Revenue,CCHD,Elderly Mental Health,Residential Homes,Collingwood Residential Home,1286.88, 23-Dec-2011
531,Revenue,CCHD,Elderly Purchasing - South,Residential Homes,Collingwood Residential Home,1231, 23-Dec-2011
532,Revenue,CCHD,Elderly Purchasing - South,Residential Homes,Collingwood Residential Home,1652.64, 23-Dec-2011
533,Revenue,CCHD,Elderly Purchasing - South,Residential Homes,Collingwood Residential Home,1361, 23-Dec-2011
534,Revenue,CCHD,Elderly Purchasing - South,Residential Homes,Collingwood Residential Home,1176.32, 23-Dec-2011
535,Revenue,CCHD,Elderly Purchasing - South,Residential Homes,Collingwood Residential Home,1363.88, 23-Dec-2011
536,Revenue,CCHD,S28A - Under 65,Residential Homes,Compass Care,9441.64, 23-Dec-2011
537,Revenue,CCHD,Bed and Breakfast,Bed & Breakfast,Connolly & Callaghan Limited,511, 12-Dec-2011
538,Revenue,CCHD,Bed and Breakfast,Bed & Breakfast,Connolly & Callaghan Limited,476, 12-Dec-2011
539,Revenue,CCHD,Bed and Breakfast,Bed & Breakfast,Connolly & Callaghan Limited,581, 12-Dec-2011
540,Revenue,CCHD,Bed and Breakfast,Bed & Breakfast,Connolly & Callaghan Limited,441, 12-Dec-2011
541,Revenue,CCHD,Bed and Breakfast,Bed & Breakfast,Connolly & Callaghan Limited,476, 12-Dec-2011
542,Revenue,CCHD,Bed and Breakfast,Bed & Breakfast,Connolly & Callaghan Limited,686, 12-Dec-2011
543,Revenue,CCHD,Bed and Breakfast,Bed & Breakfast,Connolly & Callaghan Limited,441, 16-Dec-2011
544,Revenue,CCHD,Bed and Breakfast,Bed & Breakfast,Connolly & Callaghan Limited,476, 16-Dec-2011
545,Revenue,CCHD,Bed and Breakfast,Bed & Breakfast,Connolly & Callaghan Limited,686, 16-Dec-2011
546,Revenue,CCHD,Bed and Breakfast,Bed & Breakfast,Connolly & Callaghan Limited,441, 16-Dec-2011
547,Revenue,CCHD,Bed and Breakfast,Bed & Breakfast,Connolly & Callaghan Limited,476, 16-Dec-2011
548,Revenue,CCHD,Bed and Breakfast,Bed & Breakfast,Connolly & Callaghan Limited,686, 16-Dec-2011
549,Revenue,CCHD,Bed and Breakfast,Bed & Breakfast,Connolly & Callaghan Limited,861, 19-Dec-2011
550,Revenue,CCHD,Bed and Breakfast,Bed & Breakfast,Connolly & Callaghan Limited,441, 19-Dec-2011
551,Revenue,CCHD,Bed and Breakfast,Bed & Breakfast,Connolly & Callaghan Limited,476, 19-Dec-2011
552,Revenue,CCHD,Bed and Breakfast,Bed & Breakfast,Connolly & Callaghan Limited,559, 19-Dec-2011
553,Revenue,CCHD,Bed and Breakfast,Bed & Breakfast,Connolly & Callaghan Limited,1431, 19-Dec-2011
554,Revenue,CCHD,Under 65s PWLD - KD,Residential Homes,Consensus Support Services Ltd,8938, 14-Dec-2011
555,Revenue,CCHD,Getting a Life Project,Other Supplies & Services,Council of the Isles of Scilly,1111.87, 06-Dec-2011
556,Revenue,CCHD,Research & Conferences,Consultation Expenses,CPEA Ltd,1951.2, 14-Dec-2011
557,Revenue,CCHD,S28A - Under 65,Residential Homes,Cream Ii Ltd,7725.68, 23-Dec-2011
558,Revenue,CCHD,S28A - Under 65,Residential Homes,Creedy Court,8934.84, 23-Dec-2011
559,Revenue,CCHD,S28A - Over 65,Residential Homes,Creedy Court,7434.12, 23-Dec-2011
560,Revenue,CCHD,Brokerage and Information Service,Grants to Voluntary Bodies,D H I,9738.71, 23-Dec-2011
561,Revenue,CCHD,Purchase of Non-Res Care - KH,Private & Voluntary Day Care,Daneswood,5187, 08-Dec-2011
562,Revenue,CCHD,Under 65s PWLD - PS,Residential Homes,Daneswood,10588.2, 23-Dec-2011
563,Revenue,CCHD,Under 65s PWLD - KD,Residential Homes,Daneswood,8756, 23-Dec-2011
564,Revenue,CCHD,Learning Difficulties PSL,Rent,Individual,1800, 22-Dec-2011
565,Revenue,CCHD,Day Care - South,Private & Voluntary Day Care,Deafblind UK,1800, 12-Dec-2011
566,Revenue,CCHD,Day Care - South,Private & Voluntary Day Care,Deafblind UK,720.72, 05-Dec-2011
567,Revenue,CCHD,Day Care - South,Private & Voluntary Day Care,Deafblind UK,2000, 05-Dec-2011
568,Revenue,CCHD,Training - Adult Services,Training Expenses,Dennis Casling,550, 08-Dec-2011
569,Revenue,CCHD,Training - Adult Services,Training Expenses,Dennis Casling,550, 13-Dec-2011
570,Revenue,CCHD,Day Care - South,Private & Voluntary Day Care,Dhek Bhal,877.38, 05-Dec-2011
571,Revenue,CCHD,Day Care - South,Private & Voluntary Day Care,Dhek Bhal,835.6, 05-Dec-2011
572,Revenue,CCHD,Day Care - South,Private & Voluntary Day Care,Dhek Bhal,835.6, 05-Dec-2011
573,Revenue,CCHD,Supported Living - PS,Private & Voluntary Home Care,Dimensions (UK) Ltd,8806.68, 13-Dec-2011
574,Revenue,CCHD,Under 65s PWLD - KH,Residential Homes,Dimensions(Uk) Ltd,4696, 23-Dec-2011
575,Revenue,CCHD,Under 65s PWLD - PS,Residential Homes,Dimensions(Uk) Ltd,1708.92, 23-Dec-2011
576,Revenue,CCHD,Home Care Purch South,Other Small Contracts,DoCare Ltd,1352.92, 05-Dec-2011
577,Revenue,CCHD,Home Care Purch North,Other Small Contracts,DoCare Ltd,3414.08, 05-Dec-2011
578,Revenue,CCHD,Day Care - South,Private & Voluntary Day Care,DoCare Ltd,190.68, 05-Dec-2011
579,Revenue,CCHD,Day Care - North,Private & Voluntary Day Care,DoCare Ltd,390.44, 05-Dec-2011
580,Revenue,CCHD,Elderly MH Home Care,Other Small Contracts,DoCare Ltd,90.8, 05-Dec-2011
581,Revenue,CCHD,Elderly MH non-res purchasing,Private & Voluntary Day Care,DoCare Ltd,108.96, 05-Dec-2011
582,Revenue,CCHD,Home Care Purch South,Other Small Contracts,DoCare Ltd,1557.22, 19-Dec-2011
583,Revenue,CCHD,Home Care Purch North,Other Small Contracts,DoCare Ltd,3305.12, 19-Dec-2011
584,Revenue,CCHD,Day Care - South,Private & Voluntary Day Care,DoCare Ltd,172.52, 19-Dec-2011
585,Revenue,CCHD,Day Care - North,Private & Voluntary Day Care,DoCare Ltd,385.9, 19-Dec-2011
586,Revenue,CCHD,Elderly MH Home Care,Other Small Contracts,DoCare Ltd,145.28, 19-Dec-2011
587,Revenue,CCHD,Elderly MH non-res purchasing,Private & Voluntary Day Care,DoCare Ltd,54.48, 19-Dec-2011
588,Revenue,CCHD,Home Care Purch South,Other Small Contracts,DoCare Ltd,1326.12, 05-Dec-2011
589,Revenue,CCHD,Home Care Purch North,Other Small Contracts,DoCare Ltd,3473.32, 05-Dec-2011
590,Revenue,CCHD,Day Care - South,Private & Voluntary Day Care,DoCare Ltd,263.32, 05-Dec-2011
591,Revenue,CCHD,Day Care - North,Private & Voluntary Day Care,DoCare Ltd,290.56, 05-Dec-2011
592,Revenue,CCHD,Elderly MH Home Care,Other Small Contracts,DoCare Ltd,163.44, 05-Dec-2011
593,Revenue,CCHD,Elderly MH non-res purchasing,Private & Voluntary Day Care,DoCare Ltd,54.48, 05-Dec-2011
594,Revenue,CCHD,Home Care Purch South,Other Small Contracts,DoCare Ltd,1339.3, 05-Dec-2011
595,Revenue,CCHD,Home Care Purch North,Other Small Contracts,DoCare Ltd,3237.02, 05-Dec-2011
596,Revenue,CCHD,Day Care - South,Private & Voluntary Day Care,DoCare Ltd,208.84, 05-Dec-2011
597,Revenue,CCHD,Day Care - North,Private & Voluntary Day Care,DoCare Ltd,236.08, 05-Dec-2011
598,Revenue,CCHD,Elderly MH Home Care,Other Small Contracts,DoCare Ltd,181.6, 05-Dec-2011
599,Revenue,CCHD,Elderly MH non-res purchasing,Private & Voluntary Day Care,DoCare Ltd,108.96, 05-Dec-2011
600,Revenue,CCHD,Home Care Purch South,Other Small Contracts,DoCare Ltd,1302.98, 05-Dec-2011
601,Revenue,CCHD,Home Care Purch North,Other Small Contracts,DoCare Ltd,2383.5, 05-Dec-2011
602,Revenue,CCHD,Day Care - South,Private & Voluntary Day Care,DoCare Ltd,149.82, 05-Dec-2011
603,Revenue,CCHD,Day Care - North,Private & Voluntary Day Care,DoCare Ltd,363.2, 05-Dec-2011
604,Revenue,CCHD,Elderly MH Home Care,Other Small Contracts,DoCare Ltd,163.44, 05-Dec-2011
605,Revenue,CCHD,Elderly MH non-res purchasing,Private & Voluntary Day Care,DoCare Ltd,54.48, 05-Dec-2011
606,Revenue,CCHD,Home Care Purch South,Other Small Contracts,DoCare Ltd,1738.82, 05-Dec-2011
607,Revenue,CCHD,Home Care Purch North,Other Small Contracts,DoCare Ltd,3137.14, 05-Dec-2011
608,Revenue,CCHD,Day Care - South,Private & Voluntary Day Care,DoCare Ltd,208.84, 05-Dec-2011
609,Revenue,CCHD,Day Care - North,Private & Voluntary Day Care,DoCare Ltd,381.36, 05-Dec-2011
610,Revenue,CCHD,Elderly MH Home Care,Other Small Contracts,DoCare Ltd,154.36, 05-Dec-2011
611,Revenue,CCHD,Elderly MH non-res purchasing,Private & Voluntary Day Care,DoCare Ltd,54.48, 05-Dec-2011
612,Revenue,CCHD,Home Care Purch South,Other Small Contracts,DoCare Ltd,1643.48, 05-Dec-2011
613,Revenue,CCHD,Home Care Purch North,Other Small Contracts,DoCare Ltd,3355.06, 05-Dec-2011
614,Revenue,CCHD,Day Care - South,Private & Voluntary Day Care,DoCare Ltd,145.28, 05-Dec-2011
615,Revenue,CCHD,Day Care - North,Private & Voluntary Day Care,DoCare Ltd,376.82, 05-Dec-2011
616,Revenue,CCHD,Elderly MH Home Care,Other Small Contracts,DoCare Ltd,181.6, 05-Dec-2011
617,Revenue,CCHD,Elderly MH non-res purchasing,Private & Voluntary Day Care,DoCare Ltd,54.48, 05-Dec-2011
618,Revenue,CCHD,Elderly Purchasing - South,Nursing Homes,Dunkirk Memorial House,1163.84, 23-Dec-2011
619,Revenue,CCHD,MH Purchasing - Younger,Residential Homes,Dunraven House,1791.6, 23-Dec-2011
620,Revenue,CCHD,Bed and Breakfast,Bed & Breakfast,E J Bartlett,455, 05-Dec-2011
621,Revenue,CCHD,Bed and Breakfast,Bed & Breakfast,E J Bartlett,546, 05-Dec-2011
622,Revenue,CCHD,Bed and Breakfast,Bed & Breakfast,E J Bartlett,728, 05-Dec-2011
623,Revenue,CCHD,Bed and Breakfast,Bed & Breakfast,E J Bartlett,936, 05-Dec-2011
624,Revenue,CCHD,Bed and Breakfast,Bed & Breakfast,E J Bartlett,546, 05-Dec-2011
625,Revenue,CCHD,Bed and Breakfast,Bed & Breakfast,E J Bartlett,546, 05-Dec-2011
626,Revenue,CCHD,Bed and Breakfast,Bed & Breakfast,E J Bartlett,455, 14-Dec-2011
627,Revenue,CCHD,Bed and Breakfast,Bed & Breakfast,E J Bartlett,546, 09-Dec-2011
628,Revenue,CCHD,Bed and Breakfast,Bed & Breakfast,E J Bartlett,520, 09-Dec-2011
629,Revenue,CCHD,Bed and Breakfast,Bed & Breakfast,E J Bartlett,819, 09-Dec-2011
630,Revenue,CCHD,Bed and Breakfast,Bed & Breakfast,E J Bartlett,546, 09-Dec-2011
631,Revenue,CCHD,Bed and Breakfast,Bed & Breakfast,E J Bartlett,546, 09-Dec-2011
632,Revenue,CCHD,Bed and Breakfast,Bed & Breakfast,E J Bartlett,455, 16-Dec-2011
633,Revenue,CCHD,Bed and Breakfast,Bed & Breakfast,E J Bartlett,546, 16-Dec-2011
634,Revenue,CCHD,Bed and Breakfast,Bed & Breakfast,E J Bartlett,819, 16-Dec-2011
635,Revenue,CCHD,Bed and Breakfast,Bed & Breakfast,E J Bartlett,546, 16-Dec-2011
636,Revenue,CCHD,Bed and Breakfast,Bed & Breakfast,E J Bartlett,546, 16-Dec-2011
637,Revenue,CCHD,Bed and Breakfast,Bed & Breakfast,E J Bartlett,546, 22-Dec-2011
638,Revenue,CCHD,Bed and Breakfast,Bed & Breakfast,E J Bartlett,819, 22-Dec-2011
639,Revenue,CCHD,Bed and Breakfast,Bed & Breakfast,E J Bartlett,546, 22-Dec-2011
640,Revenue,CCHD,Bed and Breakfast,Bed & Breakfast,E J Bartlett,546, 23-Dec-2011
641,Revenue,CCHD,Cambrian Drive,Electricity,E.ON,794.68, 16-Dec-2011
642,Revenue,CCHD,Charlton,Electricity,EDF Energy 1 Limited,1190.68, 29-Dec-2011
643,Revenue,CCHD,Kerr House,Electricity,EDF Energy 1 Limited,532.15, 29-Dec-2011
644,Revenue,CCHD,Woodleaze,Electricity,EDF Energy 1 Limited,1144.24, 20-Dec-2011
645,Revenue,CCHD,Newton House,Electricity,EDF Energy 1 Limited,1384.48, 29-Dec-2011
646,Revenue,CCHD,Alexandra Way,Electricity,EDF Energy 1 Limited,1283.74, 20-Dec-2011
647,Revenue,CCHD,Section 117 Placements,Residential Homes,Edgecumbe Lodge,1879.56, 23-Dec-2011
648,Revenue,CCHD,Frenchay Hospital Purchasing,Residential Homes,Edgecumbe Lodge,1170, 23-Dec-2011
649,Revenue,CCHD,Elderly Purchasing - South,Residential Homes,Edgecumbe Lodge,1216.68, 23-Dec-2011
650,Revenue,CCHD,Frenchay Hospital Purchasing,Residential Homes,Edgecumbe Lodge,1100.32, 23-Dec-2011
651,Revenue,CCHD,Frenchay Hospital Purchasing,Residential Homes,Edgecumbe Lodge,1062.8, 23-Dec-2011
652,Revenue,CCHD,Elderly Mental Health,Residential Homes,Edgecumbe Lodge,1146.36, 23-Dec-2011
653,Revenue,CCHD,Elderly Mental Health,Residential Homes,Edgecumbe Lodge,1350.6, 23-Dec-2011
654,Revenue,CCHD,Frenchay Hospital Purchasing,Residential Homes,Edgemont House Ltd,1187.84, 23-Dec-2011
655,Revenue,CCHD,Elderly PWLD - PS,Residential Homes,Edgemont House Ltd,1299.16, 23-Dec-2011
656,Revenue,CCHD,Elderly Purchasing - South,Residential Homes,Edgemont House Ltd,1122.4, 23-Dec-2011
657,Revenue,CCHD,Elderly Purchasing - South,Residential Homes,Edgemont House Ltd,967.64, 23-Dec-2011
658,Revenue,CCHD,Elderly Purchasing - South,Nursing Homes,Edgemont View Nursing Home,1405, 23-Dec-2011
659,Revenue,CCHD,Frenchay Hospital Purchasing,Nursing Homes,Edgemont View Nursing Home,1335.8, 23-Dec-2011
660,Revenue,CCHD,Elderly Purchasing - North,Nursing Homes,Edgemont View Nursing Home,1440.84, 23-Dec-2011
661,Revenue,CCHD,Elderly Purchasing - South,Nursing Homes,Edgemont View Nursing Home,1247.8, 23-Dec-2011
662,Revenue,CCHD,Elderly Purchasing - South,Nursing Homes,Edgemont View Nursing Home,1586.2, 23-Dec-2011
663,Revenue,CCHD,Frenchay Hospital Purchasing,Nursing Homes,Edgemont View Nursing Home,636.04, 23-Dec-2011
664,Revenue,CCHD,Frenchay Hospital Purchasing,Nursing Homes,Edgemont View Nursing Home,1253.16, 23-Dec-2011
665,Revenue,CCHD,Training - Adult Services,Training Expenses,Effective Training & Consultancy Limited,778.5, 21-Dec-2011
666,Revenue,CCHD,Supporting People Programme,Grants to Voluntary Bodies,Elim Housing Association Ltd,4434.56, 19-Dec-2011
667,Revenue,CCHD,Elderly Purchasing - South,Residential Homes,Elmbridge Residential Home Ltd,1294.4, 23-Dec-2011
668,Revenue,CCHD,Frenchay Hospital Purchasing,Nursing Homes,Elmwood Nursing Home,2162.96, 23-Dec-2011
669,Revenue,CCHD,Supporting People Programme,Grants to Voluntary Bodies,English Churches Housing Group,616.97, 05-Dec-2011
670,Revenue,CCHD,Supporting People Programme,Grants to Voluntary Bodies,English Churches Housing Group,630.93, 05-Dec-2011
671,Revenue,CCHD,Supporting People Programme,Grants to Voluntary Bodies,English Churches Housing Group,646.57, 05-Dec-2011
672,Revenue,CCHD,Supporting People Programme,Grants to Voluntary Bodies,English Churches Housing Group,534.7, 05-Dec-2011
673,Revenue,CCHD,Younger MH non-res purchasing,Private & Voluntary Day Care,Enham,638.72, 16-Dec-2011
674,Revenue,CCHD,Elderly Mental Health,Residential Homes,Exmouth House,1305.6, 23-Dec-2011
675,Revenue,CCHD,Southmead Hospital Purchasing,Residential Homes,Fairview Court,1661.48, 23-Dec-2011
676,Revenue,CCHD,Frenchay Hospital Purchasing,Residential Homes,Fairview Court,2062.97, 23-Dec-2011
677,Revenue,CCHD,Elderly Mental Health,Nursing Homes,Fairview Court,645.11, 23-Dec-2011
678,Revenue,CCHD,Elderly Mental Health,Residential Homes,Fairview Court,1389, 23-Dec-2011
679,Revenue,CCHD,Frenchay Hospital Purchasing,Residential Homes,Fairview Court,1507.64, 23-Dec-2011
680,Revenue,CCHD,Frenchay Hospital Purchasing,Nursing Homes,Fairview Court,878.32, 23-Dec-2011
681,Revenue,CCHD,Elderly Purchasing - South,Residential Homes,Fairview Court,2093, 23-Dec-2011
682,Revenue,CCHD,Southmead Hospital Purchasing,Nursing Homes,Fairview Court Care Home,1576.8, 13-Dec-2011
683,Revenue,CCHD,South Glos Users in South Glos Homes,Nursing Homes,Fairview Court Care Home,2142.94, 13-Dec-2011
684,Revenue,CCHD,Purchasing Phys Dis - North,Nursing Homes,Fairview Court Care Home,1886.4, 13-Dec-2011
685,Revenue,CCHD,Elderly Mental Health,Nursing Homes,Fairview Court Care Home,5565.26, 13-Dec-2011
686,Revenue,CCHD,Section 117 Placements,Nursing Homes,Fairview Court Care Home,2427, 13-Dec-2011
687,Revenue,CCHD,Elderly Purchasing - South,Residential Homes,Fairview House,637.28, 23-Dec-2011
688,Revenue,CCHD,Frenchay Hospital Purchasing,Residential Homes,Fairview House,1234.4, 23-Dec-2011
689,Revenue,CCHD,Frenchay Hospital Purchasing,Residential Homes,Fairview House,1105, 23-Dec-2011
690,Revenue,CCHD,Frenchay Hospital Purchasing,Residential Homes,Fairview House,1005.24, 23-Dec-2011
691,Revenue,CCHD,Section 117 Placements,Residential Homes,Fairview House,1840, 23-Dec-2011
692,Revenue,CCHD,Southmead Hospital Purchasing,Residential Homes,Fairview House,1229, 23-Dec-2011
693,Revenue,CCHD,Southmead Hospital Purchasing,Residential Homes,Fairview House,1101.04, 23-Dec-2011
694,Revenue,CCHD,Elderly Mental Health,Residential Homes,Fairview House,1084.72, 23-Dec-2011
695,Revenue,CCHD,Frenchay Hospital Purchasing,Residential Homes,Fairview House,1229, 23-Dec-2011
696,Revenue,CCHD,Southmead Hospital Purchasing,Residential Homes,Fairview House,588.92, 23-Dec-2011
697,Revenue,CCHD,Elderly Mental Health,Residential Homes,Fairview House,1049.28, 23-Dec-2011
698,Revenue,CCHD,Elderly Mental Health,Residential Homes,Fairview House,1163.88, 23-Dec-2011
699,Revenue,CCHD,Frenchay Hospital Purchasing,Residential Homes,Fairview House,1269.32, 23-Dec-2011
700,Revenue,CCHD,Elderly Mental Health,Residential Homes,Fairview House,1061.72, 23-Dec-2011
701,Revenue,CCHD,Elderly Purchasing - North,Residential Homes,Faith House,892.2, 23-Dec-2011
702,Revenue,CCHD,Frenchay Hospital Purchasing,Residential Homes,Faith House,1284.48, 23-Dec-2011
703,Revenue,CCHD,Elderly Purchasing - North,Residential Homes,Faith House,1110.8, 23-Dec-2011
704,Revenue,CCHD,Under 65s PWLD - KD,Residential Homes,Fernbank,8350.56, 23-Dec-2011
705,Revenue,CCHD,Southmead Hospital Purchasing,Residential Homes,Four Seasons Health Care,1136.2, 23-Dec-2011
706,Revenue,CCHD,Frenchay Hospital Purchasing,Residential Homes,Four Seasons Health Care,907.04, 23-Dec-2011
707,Revenue,CCHD,Elderly Mental Health,Nursing Homes,Four Seasons Health Care,1349, 23-Dec-2011
708,Revenue,CCHD,Frenchay Hospital Purchasing,Nursing Homes,Four Seasons Health Care,1349, 23-Dec-2011
709,Revenue,CCHD,Frenchay Hospital Purchasing,Nursing Homes,Four Seasons Health Care,1808, 23-Dec-2011
710,Revenue,CCHD,Southmead Hospital Purchasing,Nursing Homes,Four Seasons Health Care,1349, 23-Dec-2011
711,Revenue,CCHD,Southmead Hospital Purchasing,Nursing Homes,Four Seasons Health Care,4287.9, 23-Dec-2011
712,Revenue,CCHD,Southmead Hospital Purchasing,Nursing Homes,Four Seasons Health Care,1349, 23-Dec-2011
713,Revenue,CCHD,Under 65s PWLD - KH,Residential Homes,Four Seasons Health Care,29494.31, 23-Dec-2011
714,Revenue,CCHD,Elderly Purchasing - South,Nursing Homes,Four Seasons Health Care,8454.86, 23-Dec-2011
715,Revenue,CCHD,Elderly Purchasing - South,Nursing Homes,Four Seasons Health Care,1611.49, 23-Dec-2011
716,Revenue,CCHD,Southmead Hospital Purchasing,Nursing Homes,Four Seasons Health Care,1349, 23-Dec-2011
717,Revenue,CCHD,Elderly Purchasing - South,Nursing Homes,Four Seasons Health Care,1345.8, 23-Dec-2011
718,Revenue,CCHD,Frenchay Hospital Purchasing,Nursing Homes,Four Seasons Health Care,1136.22, 23-Dec-2011
719,Revenue,CCHD,Cash for Change Discharges,Nursing Homes,Four Seasons Health Care,1349, 23-Dec-2011
720,Revenue,CCHD,Elderly Purchasing - South,Nursing Homes,Four Seasons Health Care,1205, 23-Dec-2011
721,Revenue,CCHD,Southmead Hospital Purchasing,Nursing Homes,Four Seasons Health Care,1349, 23-Dec-2011
722,Revenue,CCHD,Elderly Purchasing - South,Nursing Homes,Four Seasons Health Care,1245.4, 23-Dec-2011
723,Revenue,CCHD,Southmead Hospital Purchasing,Residential Homes,Four Seasons Health Care,580.48, 23-Dec-2011
724,Revenue,CCHD,Frenchay Hospital Purchasing,Nursing Homes,Four Seasons Health Care,1349, 23-Dec-2011
725,Revenue,CCHD,Elderly Purchasing - South,Nursing Homes,Four Seasons Health Care,1046.64, 23-Dec-2011
726,Revenue,CCHD,Southmead Hospital Purchasing,Nursing Homes,Four Seasons Health Care,1253.28, 23-Dec-2011
727,Revenue,CCHD,Elderly Purchasing - South,Nursing Homes,Four Seasons Health Care,1349, 23-Dec-2011
728,Revenue,CCHD,Elderly Purchasing - South,Nursing Homes,Four Seasons Health Care,1290.4, 23-Dec-2011
729,Revenue,CCHD,Elderly Mental Health,Nursing Homes,Four Seasons Health Care,1342.84, 23-Dec-2011
730,Revenue,CCHD,Elderly Purchasing - South,Residential Homes,Four Seasons Health Care,948.64, 23-Dec-2011
731,Revenue,CCHD,Elderly Purchasing - North,Nursing Homes,Four Seasons Health Care,1313, 23-Dec-2011
732,Revenue,CCHD,Frenchay Hospital Purchasing,Nursing Homes,Four Seasons Health Care,1052.2, 23-Dec-2011
733,Revenue,CCHD,Elderly Mental Health,Residential Homes,Four Seasons Health Care,1056.64, 23-Dec-2011
734,Revenue,CCHD,Frenchay Hospital Purchasing,Nursing Homes,Four Seasons Health Care,1349, 23-Dec-2011
735,Revenue,CCHD,Frenchay Hospital Purchasing,Residential Homes,Four Seasons Health Care,1063.88, 23-Dec-2011
736,Revenue,CCHD,Elderly Purchasing - South,Nursing Homes,Four Seasons Health Care,1349, 23-Dec-2011
737,Revenue,CCHD,Elderly Purchasing - South,Nursing Homes,Four Seasons Health Care,1291.44, 23-Dec-2011
738,Revenue,CCHD,Elderly Mental Health,Nursing Homes,Four Seasons Health Care,1302.2, 23-Dec-2011
739,Revenue,CCHD,Elderly Purchasing - South,Nursing Homes,Four Seasons Health Care,1341.32, 23-Dec-2011
740,Revenue,CCHD,Frenchay Hospital Purchasing,Nursing Homes,Four Seasons Health Care,1297, 23-Dec-2011
741,Revenue,CCHD,Elderly Mental Health,Nursing Homes,Four Seasons Health Care,1199.32, 23-Dec-2011
742,Revenue,CCHD,Elderly Purchasing - North,Nursing Homes,Four Seasons Health Care,1000, 23-Dec-2011
743,Revenue,CCHD,Frenchay Hospital Purchasing,Nursing Homes,Four Seasons Health Care,1517, 23-Dec-2011
744,Revenue,CCHD,Frenchay Hospital Purchasing,Nursing Homes,Four Seasons Health Care,1283.16, 23-Dec-2011
745,Revenue,CCHD,Southmead Hospital Purchasing,Nursing Homes,Four Seasons Health Care,1507.68, 23-Dec-2011
746,Revenue,CCHD,Elderly Mental Health,Residential Homes,Four Seasons Health Care,1763.65, 23-Dec-2011
747,Revenue,CCHD,Southmead Hospital Purchasing,Residential Homes,Four Seasons Health Care,1232, 23-Dec-2011
748,Revenue,CCHD,Elderly Purchasing - North,Residential Homes,Four Seasons Health Care,1022.72, 23-Dec-2011
749,Revenue,CCHD,Elderly Purchasing - South,Nursing Homes,Four Seasons Health Care,1206.96, 23-Dec-2011
750,Revenue,CCHD,Elderly Mental Health,Nursing Homes,Four Seasons Health Care,1313, 23-Dec-2011
751,Revenue,CCHD,Frenchay Hospital Purchasing,Nursing Homes,Four Seasons Health Care,1268.08, 23-Dec-2011
752,Revenue,CCHD,Elderly Purchasing - South,Nursing Homes,Four Seasons Health Care,1349, 23-Dec-2011
753,Revenue,CCHD,Elderly Purchasing - South,Nursing Homes,Four Seasons Health Care,1459.32, 23-Dec-2011
754,Revenue,CCHD,Southmead Hospital Purchasing,Nursing Homes,Four Seasons Health Care,1349, 23-Dec-2011
755,Revenue,CCHD,Elderly Purchasing - South,Nursing Homes,Four Seasons Health Care,1349, 23-Dec-2011
756,Revenue,CCHD,Elderly Mental Health,Nursing Homes,Four Seasons Health Care,1431.72, 23-Dec-2011
757,Revenue,CCHD,Elderly Purchasing - North,Nursing Homes,Four Seasons Health Care,1248.52, 23-Dec-2011
758,Revenue,CCHD,Elderly Purchasing - North,Nursing Homes,Four Seasons Health Care,1103.48, 23-Dec-2011
759,Revenue,CCHD,Southmead Hospital Purchasing,Nursing Homes,Four Seasons Health Care,1336.4, 23-Dec-2011
760,Revenue,CCHD,Frenchay Hospital Purchasing,Nursing Homes,Four Seasons Health Care,1284.56, 23-Dec-2011
761,Revenue,CCHD,Elderly Purchasing - North,Nursing Homes,Four Seasons Health Care,719.68, 23-Dec-2011
762,Revenue,CCHD,Elderly Mental Health,Nursing Homes,Four Seasons Health Care,1416, 23-Dec-2011
763,Revenue,CCHD,Frenchay Hospital Purchasing,Nursing Homes,Four Seasons Health Care,1323.8, 23-Dec-2011
764,Revenue,CCHD,Southmead Hospital Purchasing,Nursing Homes,Four Seasons Health Care,1397.36, 23-Dec-2011
765,Revenue,CCHD,Elderly Purchasing - North,Nursing Homes,Four Seasons Health Care,1517, 23-Dec-2011
766,Revenue,CCHD,Elderly Purchasing - North,Nursing Homes,Four Seasons Health Care,1349, 23-Dec-2011
767,Revenue,CCHD,Elderly Purchasing - South,Residential Homes,Four Seasons Health Care,1229, 23-Dec-2011
768,Revenue,CCHD,Elderly Purchasing - North,Nursing Homes,Four Seasons Health Care,1412.48, 23-Dec-2011
769,Revenue,CCHD,Southmead Hospital Purchasing,Residential Homes,Four Seasons Health Care,3667.43, 23-Dec-2011
770,Revenue,CCHD,Southmead Hospital Purchasing,Residential Homes,Four Seasons Health Care,729.36, 23-Dec-2011
771,Revenue,CCHD,Elderly Mental Health,Nursing Homes,Four Seasons Health Care,1402.52, 23-Dec-2011
772,Revenue,CCHD,Southmead Hospital Purchasing,Nursing Homes,Four Seasons Health Care,1422.32, 23-Dec-2011
773,Revenue,CCHD,Frenchay Hospital Purchasing,Nursing Homes,Four Seasons Health Care,1199.6, 23-Dec-2011
774,Revenue,CCHD,Southmead Hospital Purchasing,Nursing Homes,Four Seasons Health Care,1517, 23-Dec-2011
775,Revenue,CCHD,Elderly Purchasing - North,Nursing Homes,Four Seasons Health Care,820.24, 23-Dec-2011
776,Revenue,CCHD,Frenchay Hospital Purchasing,Nursing Homes,Four Seasons Health Care,1161.72, 23-Dec-2011
777,Revenue,CCHD,Elderly Mental Health,Residential Homes,Four Seasons Health Care,1202.24, 23-Dec-2011
778,Revenue,CCHD,Southmead Hospital Purchasing,Nursing Homes,Four Seasons Health Care,1349, 23-Dec-2011
779,Revenue,CCHD,Southmead Hospital Purchasing,Residential Homes,Four Seasons Health Care,1229, 23-Dec-2011
780,Revenue,CCHD,Southmead Hospital Purchasing,Nursing Homes,Four Seasons Health Care,1349, 23-Dec-2011
781,Revenue,CCHD,Elderly Mental Health,Residential Homes,Four Seasons Health Care,1344.16, 23-Dec-2011
782,Revenue,CCHD,Elderly Purchasing - North,Nursing Homes,Four Seasons Health Care,1341.32, 23-Dec-2011
783,Revenue,CCHD,Elderly Mental Health,Nursing Homes,Four Seasons Health Care,1034.84, 23-Dec-2011
784,Revenue,CCHD,Frenchay Hospital Purchasing,Nursing Homes,Four Seasons Health Care,1349, 23-Dec-2011
785,Revenue,CCHD,South Glos Users in South Glos Homes,Nursing Homes,Four Seasons Health Care,5683.46, 23-Dec-2011
786,Revenue,CCHD,Elderly Mental Health,Residential Homes,Four Seasons Health Care,1139.16, 23-Dec-2011
787,Revenue,CCHD,Southmead Hospital Purchasing,Nursing Homes,Four Seasons Health Care,833.4, 23-Dec-2011
788,Revenue,CCHD,South Glos Users in South Glos Homes,Nursing Homes,Four Seasons Health Care,2111.89, 23-Dec-2011
789,Revenue,CCHD,Frenchay Hospital Purchasing,Nursing Homes,Four Seasons Health Care,1349, 23-Dec-2011
790,Revenue,CCHD,Elderly Purchasing - South,Nursing Homes,Four Seasons Health Care,1251.72, 23-Dec-2011
791,Revenue,CCHD,Elderly Mental Health,Nursing Homes,Four Seasons Health Care,1224.72, 23-Dec-2011
792,Revenue,CCHD,Frenchay Hospital Purchasing,Nursing Homes,Four Seasons Health Care,1277, 23-Dec-2011
793,Revenue,CCHD,Frenchay Hospital Purchasing,Nursing Homes,Four Seasons Health Care,803.08, 23-Dec-2011
794,Revenue,CCHD,Elderly Purchasing - North,Nursing Homes,Four Seasons Health Care,1349, 23-Dec-2011
795,Revenue,CCHD,Elderly Purchasing - North,Nursing Homes,Four Seasons Health Care,1734.44, 23-Dec-2011
796,Revenue,CCHD,Frenchay Hospital Purchasing,Nursing Homes,Four Seasons Health Care,1349, 23-Dec-2011
797,Revenue,CCHD,Elderly Purchasing - North,Nursing Homes,Four Seasons Health Care,1385, 23-Dec-2011
798,Revenue,CCHD,Frenchay Hospital Purchasing,Nursing Homes,Four Seasons Health Care,1349, 23-Dec-2011
799,Revenue,CCHD,Frenchay Hospital Purchasing,Nursing Homes,Four Seasons Health Care,1349, 23-Dec-2011
800,Revenue,CCHD,Frenchay Hospital Purchasing,Nursing Homes,Four Seasons Health Care,1365, 23-Dec-2011
801,Revenue,CCHD,Elderly Purchasing - South,Nursing Homes,Four Seasons Health Care,1057.92, 23-Dec-2011
802,Revenue,CCHD,Southmead Hospital Purchasing,Nursing Homes,Four Seasons Health Care,1205, 23-Dec-2011
803,Revenue,CCHD,Elderly Purchasing - North,Nursing Homes,Four Seasons Health Care,857.96, 23-Dec-2011
804,Revenue,CCHD,Southmead Hospital Purchasing,Residential Homes,Four Seasons Health Care,1103.44, 23-Dec-2011
805,Revenue,CCHD,Southmead Hospital Purchasing,Nursing Homes,Four Seasons Health Care,1349, 23-Dec-2011
806,Revenue,CCHD,Southmead Hospital Purchasing,Nursing Homes,Four Seasons Health Care,3791.86, 23-Dec-2011
807,Revenue,CCHD,Southmead Hospital Purchasing,Nursing Homes,Four Seasons Health Care,1397, 23-Dec-2011
808,Revenue,CCHD,Purchasing Phys Dis - North,Nursing Homes,Four Seasons Health Care,1152.8, 23-Dec-2011
809,Revenue,CCHD,Southmead Hospital Purchasing,Nursing Homes,Four Seasons Health Care,1317.56, 23-Dec-2011
810,Revenue,CCHD,Purchasing Phys Dis - North,Nursing Homes,Four Seasons Health Care,1355.08, 23-Dec-2011
811,Revenue,CCHD,Elderly Purchasing - South,Nursing Homes,Four Seasons Health Care,1225.28, 23-Dec-2011
812,Revenue,CCHD,Southmead Hospital Purchasing,Nursing Homes,Four Seasons Health Care,1275.28, 23-Dec-2011
813,Revenue,CCHD,Elderly Mental Health,Residential Homes,Four Seasons Health Care,1375.96, 23-Dec-2011
814,Revenue,CCHD,Elderly Mental Health,Residential Homes,Four Seasons Health Care,1280.12, 23-Dec-2011
815,Revenue,CCHD,Southmead Hospital Purchasing,Residential Homes,Four Seasons Health Care,1151.56, 23-Dec-2011
816,Revenue,CCHD,Frenchay Hospital Purchasing,Nursing Homes,Four Seasons Health Care,1211.8, 23-Dec-2011
817,Revenue,CCHD,Southmead Hospital Purchasing,Nursing Homes,Four Seasons Health Care,3640.25, 23-Dec-2011
818,Revenue,CCHD,Southmead Hospital Purchasing,Nursing Homes,Four Seasons Health Care,1185.2, 23-Dec-2011
819,Revenue,CCHD,Elderly PWLD - PS,Residential Homes,Four Seasons Health Care,1229, 23-Dec-2011
820,Revenue,CCHD,Frenchay Hospital Purchasing,Nursing Homes,Four Seasons Health Care,1349, 23-Dec-2011
821,Revenue,CCHD,Southmead Hospital Purchasing,Nursing Homes,Four Seasons Health Care,1349, 23-Dec-2011
822,Revenue,CCHD,Elderly Purchasing - South,Nursing Homes,Four Seasons Health Care,1265.52, 23-Dec-2011
823,Revenue,CCHD,Elderly Purchasing - South,Nursing Homes,Four Seasons Health Care,1335.64, 23-Dec-2011
824,Revenue,CCHD,Southmead Hospital Purchasing,Nursing Homes,Four Seasons Health Care,1125.12, 23-Dec-2011
825,Revenue,CCHD,Elderly Purchasing - South,Residential Homes,Four Seasons Health Care,859.68, 23-Dec-2011
826,Revenue,CCHD,Southmead Hospital Purchasing,Nursing Homes,Four Seasons Health Care,1287.24, 23-Dec-2011
827,Revenue,CCHD,Southmead Hospital Purchasing,Residential Homes,Four Seasons Health Care,1367.48, 23-Dec-2011
828,Revenue,CCHD,Frenchay Hospital Purchasing,Nursing Homes,Four Seasons Health Care,774.32, 23-Dec-2011
829,Revenue,CCHD,Elderly Purchasing - South,Residential Homes,Four Seasons Health Care,1102.04, 23-Dec-2011
830,Revenue,CCHD,Elderly Purchasing - South,Nursing Homes,Four Seasons Health Care,960.32, 23-Dec-2011
831,Revenue,CCHD,Frenchay Hospital Purchasing,Residential Homes,Four Seasons Health Care,1227.8, 23-Dec-2011
832,Revenue,CCHD,Section 117 Placements,Nursing Homes,Four Seasons Health Care,1808, 23-Dec-2011
833,Revenue,CCHD,Frenchay Hospital Purchasing,Residential Homes,Four Seasons Health Care,1092.96, 23-Dec-2011
834,Revenue,CCHD,Frenchay Hospital Purchasing,Residential Homes,Four Seasons Health Care,1237.4, 23-Dec-2011
835,Revenue,CCHD,Elderly Purchasing - South,Residential Homes,Four Seasons Health Care,562.76, 23-Dec-2011
836,Revenue,CCHD,Southmead Hospital Purchasing,Nursing Homes,Four Seasons Health Care,1250.76, 23-Dec-2011
837,Revenue,CCHD,Frenchay Hospital Purchasing,Nursing Homes,Four Seasons Health Care,1345.8, 23-Dec-2011
838,Revenue,CCHD,Southmead Hospital Purchasing,Nursing Homes,Four Seasons Health Care,1337.68, 23-Dec-2011
839,Revenue,CCHD,Elderly Purchasing - South,Residential Homes,Four Seasons Health Care,921.75, 23-Dec-2011
840,Revenue,CCHD,Elderly Purchasing - South,Nursing Homes,Four Seasons Health Care,1189.52, 23-Dec-2011
841,Revenue,CCHD,Elderly Mental Health,Residential Homes,Four Seasons Health Care,954.64, 23-Dec-2011
842,Revenue,CCHD,Southmead Hospital Purchasing,Nursing Homes,Four Seasons Health Care,739, 23-Dec-2011
843,Revenue,CCHD,Elderly Purchasing - North,Nursing Homes,Four Seasons Health Care,1285.16, 23-Dec-2011
844,Revenue,CCHD,Elderly Mental Health,Nursing Homes,Four Seasons Health Care,833.4, 23-Dec-2011
845,Revenue,CCHD,Southmead Hospital Purchasing,Nursing Homes,Four Seasons Health Care,1349, 23-Dec-2011
846,Revenue,CCHD,Freeways,Residential Homes,Freeways Trust Limited,43582.29, 16-Dec-2011
847,Revenue,CCHD,Purchase of Non-Res Care - KD,Private & Voluntary Day Care,Freeways Trust Limited,620.88, 23-Dec-2011
848,Revenue,CCHD,Purchase of Non-Res Care - KD,Private & Voluntary Day Care,Freeways Trust Limited,620.88, 23-Dec-2011
849,Revenue,CCHD,Under 65s PWLD - KD,Residential Homes,Freeways Trust Ltd,2757, 23-Dec-2011
850,Revenue,CCHD,S28A - Under 65,Residential Homes,Freeways Trust Ltd,2838.8, 23-Dec-2011
851,Revenue,CCHD,Under 65s PWLD - KD,Residential Homes,Freeways Trust Ltd,2206.88, 23-Dec-2011
852,Revenue,CCHD,Under 65s PWLD - KD,Residential Homes,Freeways Trust Ltd,2625, 23-Dec-2011
853,Revenue,CCHD,Under 65s PWLD - KD,Residential Homes,Freeways Trust Ltd,2217.28, 23-Dec-2011
854,Revenue,CCHD,Under 65s PWLD - KD,Residential Homes,Freeways Trust Ltd,2633.48, 23-Dec-2011
855,Revenue,CCHD,Under 65s PWLD - KH,Residential Homes,Freeways Trust Ltd,3216.52, 23-Dec-2011
856,Revenue,CCHD,Elderly PWLD - KD,Residential Homes,Freeways Trust Ltd,2192.48, 23-Dec-2011
857,Revenue,CCHD,Under 65s PWLD - KH,Residential Homes,Freeways Trust Ltd,2335.12, 23-Dec-2011
858,Revenue,CCHD,Under 65s PWLD - KH,Residential Homes,Freeways Trust Ltd,2633.48, 23-Dec-2011
859,Revenue,CCHD,Section 117 Placements MH Younger,Residential Homes,Freeways Trust Ltd,3238, 23-Dec-2011
860,Revenue,CCHD,Frenchay Hospital Purchasing,Nursing Homes,Frenchay Park Nursing Home,1198, 23-Dec-2011
861,Revenue,CCHD,Directorate,Directorate (JNC Staff) Pay,Gatenby Sanderson Limited,17455, 23-Dec-2011
862,Revenue,CCHD,Newton House,Prop.Serv. General Repairs,Geoff Lewis Flooring Limited,754, 01-Dec-2011
863,Revenue,CCHD,Newton House,Prop.Serv. General Repairs,Geoff Lewis Flooring Limited,1260, 05-Dec-2011
864,Revenue,CCHD,Alexandra Way,Prop.Serv. General Repairs,Geoff Lewis Flooring Limited,1046, 16-Dec-2011
865,Revenue,CCHD,Under 65s PWLD - PS,Residential Homes,Glasallt Fawr,4442.2, 23-Dec-2011
866,Revenue,CCHD,Southmead Hospital Purchasing,Nursing Homes,Glebe House Nursing Home,3120.72, 23-Dec-2011
867,Revenue,CCHD,Elderly Purchasing - North,Nursing Homes,Glebe House Nursing Home,1366.64, 23-Dec-2011
868,Revenue,CCHD,South Glos Users in South Glos Homes,Nursing Homes,Glebe House Nursing Home,1785.79, 23-Dec-2011
869,Revenue,CCHD,Elderly Purchasing - South,Residential Homes,Glebe House Nursing Home,1941, 23-Dec-2011
870,Revenue,CCHD,Elderly Purchasing - South,Residential Homes,Glebe House Nursing Home,970.5, 23-Dec-2011
871,Revenue,CCHD,Elderly Purchasing - South,Nursing Homes,Glebe House Nursing Home,1906.2, 23-Dec-2011
872,Revenue,CCHD,Elderly Purchasing - South,Nursing Homes,Glebe House Nursing Home,953.1, 23-Dec-2011
873,Revenue,CCHD,Elderly Purchasing - North,Nursing Homes,Glebe House Nursing Home,1285, 23-Dec-2011
874,Revenue,CCHD,Elderly Purchasing - North,Nursing Homes,Glebe House Nursing Home,1285, 23-Dec-2011
875,Revenue,CCHD,Southmead Hospital Purchasing,Nursing Homes,Glebe House Nursing Home,1644, 23-Dec-2011
876,Revenue,CCHD,South Glos Users in South Glos Homes,Nursing Homes,Glebe House Nursing Home,1583.91, 23-Dec-2011
877,Revenue,CCHD,Purchasing Phys Dis - South,Nursing Homes,Glenside Centre For Brain Injury,6955.52, 23-Dec-2011
878,Revenue,CCHD,Under 65s PWLD - KH,Residential Homes,Gordena Care Home,2040.52, 23-Dec-2011
879,Revenue,CCHD,Elderly PWLD - KH,Residential Homes,Gordena Care Home,4624.36, 23-Dec-2011
880,Revenue,CCHD,Elderly PWLD - KH,Residential Homes,Gordena Care Home,2866.12, 23-Dec-2011
881,Revenue,CCHD,Under 65s PWLD - KH,Residential Homes,Gordena Care Home,2036.68, 23-Dec-2011
882,Revenue,CCHD,Home Care Purch South,Other Small Contracts,Greenbanks Homecare (Western) Limited,4033.7, 01-Dec-2011
883,Revenue,CCHD,Home Care Purch North,Other Small Contracts,Greenbanks Homecare (Western) Limited,243.18, 01-Dec-2011
884,Revenue,CCHD,Day Care - South,Private & Voluntary Day Care,Greenbanks Homecare (Western) Limited,154.4, 01-Dec-2011
885,Revenue,CCHD,Day Care - North,Private & Voluntary Day Care,Greenbanks Homecare (Western) Limited,81.06, 01-Dec-2011
886,Revenue,CCHD,Carer`s Grant - South,Carers Breaks & Services,Greenbanks Homecare (Western) Limited,54.04, 01-Dec-2011
887,Revenue,CCHD,Elderly MH Home Care,Other Small Contracts,Greenbanks Homecare (Western) Limited,382.14, 01-Dec-2011
888,Revenue,CCHD,Elderly MH non-res purchasing,Private & Voluntary Day Care,Greenbanks Homecare (Western) Limited,27.02, 01-Dec-2011
889,Revenue,CCHD,Home Care Purch South,Other Small Contracts,Greenbanks Homecare (Western) Limited,4037.56, 12-Dec-2011
890,Revenue,CCHD,Home Care Purch North,Other Small Contracts,Greenbanks Homecare (Western) Limited,204.58, 12-Dec-2011
891,Revenue,CCHD,Day Care - South,Private & Voluntary Day Care,Greenbanks Homecare (Western) Limited,270.2, 12-Dec-2011
892,Revenue,CCHD,Day Care - North,Private & Voluntary Day Care,Greenbanks Homecare (Western) Limited,61.76, 12-Dec-2011
893,Revenue,CCHD,Carer`s Grant - South,Carers Breaks & Services,Greenbanks Homecare (Western) Limited,108.08, 12-Dec-2011
894,Revenue,CCHD,Elderly MH Home Care,Other Small Contracts,Greenbanks Homecare (Western) Limited,362.84, 12-Dec-2011
895,Revenue,CCHD,Elderly MH non-res purchasing,Private & Voluntary Day Care,Greenbanks Homecare (Western) Limited,27.02, 12-Dec-2011
896,Revenue,CCHD,Home Care Purch South,Other Small Contracts,Greenbanks Homecare (Western) Limited,4056.86, 12-Dec-2011
897,Revenue,CCHD,Home Care Purch North,Other Small Contracts,Greenbanks Homecare (Western) Limited,285.64, 12-Dec-2011
898,Revenue,CCHD,Day Care - South,Private & Voluntary Day Care,Greenbanks Homecare (Western) Limited,258.62, 12-Dec-2011
899,Revenue,CCHD,Day Care - North,Private & Voluntary Day Care,Greenbanks Homecare (Western) Limited,88.78, 12-Dec-2011
900,Revenue,CCHD,Carer`s Grant - South,Carers Breaks & Services,Greenbanks Homecare (Western) Limited,46.32, 12-Dec-2011
901,Revenue,CCHD,Elderly MH Home Care,Other Small Contracts,Greenbanks Homecare (Western) Limited,378.28, 12-Dec-2011
902,Revenue,CCHD,Elderly MH non-res purchasing,Private & Voluntary Day Care,Greenbanks Homecare (Western) Limited,23.16, 12-Dec-2011
903,Revenue,CCHD,Home Care Purch South,Other Small Contracts,Greenbanks Homecare (Western) Limited,3736.48, 12-Dec-2011
904,Revenue,CCHD,Home Care Purch North,Other Small Contracts,Greenbanks Homecare (Western) Limited,235.46, 12-Dec-2011
905,Revenue,CCHD,Day Care - South,Private & Voluntary Day Care,Greenbanks Homecare (Western) Limited,285.64, 12-Dec-2011
906,Revenue,CCHD,Day Care - North,Private & Voluntary Day Care,Greenbanks Homecare (Western) Limited,88.78, 12-Dec-2011
907,Revenue,CCHD,Elderly MH Home Care,Other Small Contracts,Greenbanks Homecare (Western) Limited,304.94, 12-Dec-2011
908,Revenue,CCHD,Elderly MH non-res purchasing,Private & Voluntary Day Care,Greenbanks Homecare (Western) Limited,23.16, 12-Dec-2011
909,Revenue,CCHD,Elderly Purchasing - North,Residential Homes,Greensleeves,1291.92, 23-Dec-2011
910,Revenue,CCHD,Under 65s PWLD - KD,Residential Homes,Greyhound Care Home,3557.96, 23-Dec-2011
911,Revenue,CCHD,Frenchay Hospital Purchasing,Residential Homes,Gwendoline House,5333.47, 23-Dec-2011
912,Revenue,CCHD,Frenchay Hospital Purchasing,Residential Homes,Gwendoline House,1176.84, 23-Dec-2011
913,Revenue,CCHD,Elderly Purchasing - South,Residential Homes,Gwendoline House,1465, 23-Dec-2011
914,Revenue,CCHD,Elderly Purchasing - South,Residential Homes,Gwendoline House,1146.28, 23-Dec-2011
915,Revenue,CCHD,Elderly Purchasing - South,Residential Homes,Gwendoline House,1202.32, 23-Dec-2011
916,Revenue,CCHD,Elderly Mental Health,Residential Homes,Gwendoline House,1219.6, 23-Dec-2011
917,Revenue,CCHD,Elderly Purchasing - South,Residential Homes,Gwendoline House,1413.96, 23-Dec-2011
918,Revenue,CCHD,Elderly Purchasing - South,Residential Homes,Gwendoline House,1111.56, 23-Dec-2011
919,Revenue,CCHD,Elderly Purchasing - South,Residential Homes,Gwendoline House,987.72, 23-Dec-2011
920,Revenue,CCHD,Newton House,Prop.Serv. General Repairs,H Mealing & Sons Limited,4971, 08-Dec-2011
921,Revenue,CCHD,Elderly Purchasing - South,Residential Homes,Harefield Hall,1471.92, 23-Dec-2011
922,Revenue,CCHD,Elderly Purchasing - South,Residential Homes,Harefield Hall,658.4, 23-Dec-2011
923,Revenue,CCHD,Elderly Mental Health,Residential Homes,Harefield Hall,1109.4, 23-Dec-2011
924,Revenue,CCHD,Newton House,Equipment Maintenance,Harvey Servicing & Engineering Limited,638.2, 01-Dec-2011
925,Revenue,CCHD,Southmead Hospital Purchasing,Nursing Homes,Hc-One Ltd,1586.2, 23-Dec-2011
926,Revenue,CCHD,Section 117 Placements,Nursing Homes,Hc-One Ltd,1912, 23-Dec-2011
927,Revenue,CCHD,Southmead Hospital Purchasing,Nursing Homes,Hc-One Ltd,6490.7, 23-Dec-2011
928,Revenue,CCHD,Elderly Purchasing - North,Nursing Homes,Hc-One Ltd,1463.32, 23-Dec-2011
929,Revenue,CCHD,Elderly Mental Health,Nursing Homes,Hc-One Ltd,1453, 23-Dec-2011
930,Revenue,CCHD,South Glos Users in Gloucestershire Home,Nursing Homes,Hc-One Ltd,652.2, 23-Dec-2011
931,Revenue,CCHD,South Glos Users in B&NES Homes,Nursing Homes,Hc-One Ltd,652.2, 23-Dec-2011
932,Revenue,CCHD,Elderly Mental Health,Nursing Homes,Hc-One Ltd,1210.72, 23-Dec-2011
933,Revenue,CCHD,Elderly Mental Health,Nursing Homes,Hc-One Ltd,1453, 23-Dec-2011
934,Revenue,CCHD,South Glos Users in Gloucestershire Home,Nursing Homes,Hc-One Ltd,652.2, 23-Dec-2011
935,Revenue,CCHD,Elderly Mental Health,Nursing Homes,Hc-One Ltd,1166.48, 23-Dec-2011
936,Revenue,CCHD,Elderly Mental Health,Nursing Homes,Hc-One Ltd,874.28, 23-Dec-2011
937,Revenue,CCHD,South Glos Users in Gloucestershire Home,Nursing Homes,Hc-One Ltd,652.2, 23-Dec-2011
938,Revenue,CCHD,South Glos Users in B&NES Homes,Nursing Homes,Hc-One Ltd,652.2, 23-Dec-2011
939,Revenue,CCHD,Supported Living - KD,Private & Voluntary Home Care,HFT,2209.88, 23-Dec-2011
940,Revenue,CCHD,Supported Living - KH,Private & Voluntary Home Care,HFT,3660.6, 23-Dec-2011
941,Revenue,CCHD,Southmead Hospital Purchasing,Residential Homes,Highgate Studios,680.59, 23-Dec-2011
942,Revenue,CCHD,Under 65s PWLD - KD,Residential Homes,Holmleigh Care Homes Ltd,3908.68, 23-Dec-2011
943,Revenue,CCHD,Under 65s PWLD - KH,Residential Homes,Holmleigh Care Homes Ltd,4909.68, 23-Dec-2011
944,Revenue,CCHD,South Glos Users in South Glos Homes,Nursing Homes,Holmwood House,1273.34, 23-Dec-2011
945,Revenue,CCHD,Under 65s PWLD - KD,Residential Homes,Home Farm Trust Ltd  5-6 Brook Office Pa,2749.36, 23-Dec-2011
946,Revenue,CCHD,Under 65s PWLD - PS,Residential Homes,Home Farm Trust Ltd  5-6 Brook Office Pa,2398.8, 23-Dec-2011
947,Revenue,CCHD,Under 65s PWLD - PS,Residential Homes,Home Farm Trust Ltd  5-6 Brook Office Pa,3017.96, 23-Dec-2011
948,Revenue,CCHD,Under 65s PWLD - KD,Residential Homes,Home Farm Trust Ltd  5-6 Brook Office Pa,3319.88, 23-Dec-2011
949,Revenue,CCHD,Under 65s PWLD - PS,Residential Homes,Home Farm Trust Ltd  5-6 Brook Office Pa,4428.64, 23-Dec-2011
950,Revenue,CCHD,Under 65s PWLD - KD,Residential Homes,Home From Home Care Ltd,8770.4, 23-Dec-2011
951,Revenue,CCHD,Elderly Purchasing - North,Nursing Homes,Horfield Care Limited,5084.27, 08-Dec-2011
952,Revenue,CCHD,Frenchay Hospital Purchasing,Nursing Homes,Horfield Care Limited,5629.63, 08-Dec-2011
953,Revenue,CCHD,Southmead Hospital Purchasing,Nursing Homes,Horfield Care Limited,3396.28, 08-Dec-2011
954,Revenue,CCHD,Supporting People Programme,Grants to Voluntary Bodies,Housing 21,828, 29-Dec-2011
955,Revenue,CCHD,Supporting People Programme,Grants to Voluntary Bodies,Housing 21,828, 01-Dec-2011
956,Revenue,CCHD,Home Care Purch North,Private & Voluntary Home Care,Housing 21,35220.9, 09-Dec-2011
957,Revenue,CCHD,Home Care Purch South,Private & Voluntary Home Care,Housing 21,22092.54, 01-Dec-2011
958,Revenue,CCHD,Home Care Purch South,Private & Voluntary Home Care,Housing 21,22092.54, 29-Dec-2011
959,Revenue,CCHD,Elderly Purchasing - South,Residential Homes,Jah-Jireh Charity Homes,1241, 23-Dec-2011
960,Revenue,CCHD,Training - Adult Services,Training Expenses,Jo Williams,510, 20-Dec-2011
961,Revenue,CCHD,Under 65s PWLD - KD,Residential Homes,Kelly House,3482.2, 23-Dec-2011
962,Revenue,CCHD,S28A - Under 65,Residential Homes,Kelly House,3366.04, 23-Dec-2011
963,Revenue,CCHD,Elderly Purchasing - South,Residential Homes,Kenver House Residential Home,810.5, 23-Dec-2011
964,Revenue,CCHD,Elderly Mental Health,Residential Homes,Kenver House Residential Home,1496.44, 23-Dec-2011
965,Revenue,CCHD,Section 117 Placements,Residential Homes,Kenver House Residential Home,1848, 23-Dec-2011
966,Revenue,CCHD,Elderly Mental Health,Residential Homes,Kenver House Residential Home,1358.84, 23-Dec-2011
967,Revenue,CCHD,Elderly Mental Health,Residential Homes,Kenver House Residential Home,2026.25, 23-Dec-2011
968,Revenue,CCHD,Elderly Mental Health,Residential Homes,Kenver House Residential Home,1621, 23-Dec-2011
969,Revenue,CCHD,Elderly Mental Health,Residential Homes,Kenver House Residential Home,899.52, 23-Dec-2011
970,Revenue,CCHD,Frenchay Hospital Purchasing,Residential Homes,Kenver House Residential Home,1621, 23-Dec-2011
971,Revenue,CCHD,Southmead Hospital Purchasing,Residential Homes,Kenver House Residential Home,1510.32, 23-Dec-2011
972,Revenue,CCHD,Elderly Mental Health,Residential Homes,Kenver House Residential Home,1968.35, 23-Dec-2011
973,Revenue,CCHD,Elderly Mental Health,Residential Homes,Kenver House Residential Home,1621, 23-Dec-2011
974,Revenue,CCHD,Frenchay Hospital Purchasing,Residential Homes,Kenver House Residential Home,1621, 23-Dec-2011
975,Revenue,CCHD,Frenchay Hospital Purchasing,Residential Homes,Kenver House Residential Home,1105.4, 23-Dec-2011
976,Revenue,CCHD,Frenchay Hospital Purchasing,Residential Homes,Kenver House Residential Home,1046.32, 23-Dec-2011
977,Revenue,CCHD,Elderly Mental Health,Residential Homes,Kenver House Residential Home,1178.52, 23-Dec-2011
978,Revenue,CCHD,Elderly Mental Health,Residential Homes,Kenver House Residential Home,1210.44, 23-Dec-2011
979,Revenue,CCHD,Frenchay Hospital Purchasing,Residential Homes,Kenver House Residential Home,1409.04, 23-Dec-2011
980,Revenue,CCHD,Elderly Mental Health,Residential Homes,Kenver House Residential Home,1174.16, 23-Dec-2011
981,Revenue,CCHD,Elderly Mental Health,Residential Homes,Kenver House Residential Home,1387.64, 23-Dec-2011
982,Revenue,CCHD,Elderly Purchasing - South,Residential Homes,Kenver House Residential Home,1382.24, 23-Dec-2011
983,Revenue,CCHD,Frenchay Hospital Purchasing,Residential Homes,Kenver House Residential Home,1536.6, 23-Dec-2011
984,Revenue,CCHD,Elderly Purchasing - South,Residential Homes,Kenver House Residential Home,1565.12, 23-Dec-2011
985,Revenue,CCHD,Elderly Mental Health,Residential Homes,Kenver House Residential Home,1447.92, 23-Dec-2011
986,Revenue,CCHD,Elderly Mental Health,Residential Homes,Kenver House Residential Home,1284.48, 23-Dec-2011
987,Revenue,CCHD,Elderly Purchasing - North,Residential Homes,Keyers Bridge House,2266.96, 23-Dec-2011
988,Revenue,CCHD,Supporting People Programme,Grants to Voluntary Bodies,Keyring Living Support Networks,2577.6, 29-Dec-2011
989,Revenue,CCHD,Supporting People Programme,Grants to Voluntary Bodies,Keyring Living Support Networks,2577.6, 01-Dec-2011
990,Revenue,CCHD,Tenancy Start Up Scheme,Other Supplies & Services,Kingswood Accomodation Limited,1325, 23-Dec-2011
991,Revenue,CCHD,Supporting People Programme,Grants to Voluntary Bodies,Kingswood Young Homeless Project,2502.72, 29-Dec-2011
992,Revenue,CCHD,Supporting People Programme,Grants to Voluntary Bodies,Kingswood Young Homeless Project,5133.12, 29-Dec-2011
993,Revenue,CCHD,Supporting People Programme,Grants to Voluntary Bodies,Kingswood Young Homeless Project,5133.12, 06-Dec-2011
994,Revenue,CCHD,Supporting People Programme,Grants to Voluntary Bodies,Kingswood Young Homeless Project,733.3, 06-Dec-2011
995,Revenue,CCHD,Supporting People Programme,Grants to Voluntary Bodies,Kingswood Young Homeless Project,2502.72, 06-Dec-2011
996,Revenue,CCHD,Supporting People Programme,Grants to Voluntary Bodies,Kingswood Young Homeless Project,1608.89, 06-Dec-2011
997,Revenue,CCHD,Under 65s PWLD - KH,Residential Homes,Kisimul Group,11078.72, 23-Dec-2011
998,Revenue,CCHD,Supporting People Programme,Grants to Voluntary Bodies,Knightstone Housing Association Limited,516.64, 29-Dec-2011
999,Revenue,CCHD,Supporting People Programme,Grants to Voluntary Bodies,Knightstone Housing Association Limited,1387.68, 29-Dec-2011
1000,Revenue,CCHD,Supporting People Programme,Grants to Voluntary Bodies,Knightstone Housing Association Limited,1968, 29-Dec-2011
1001,Revenue,CCHD,Supporting People Programme,Grants to Voluntary Bodies,Knightstone Housing Association Limited,2193.84, 29-Dec-2011
1002,Revenue,CCHD,Supporting People Programme,Grants to Voluntary Bodies,Knightstone Housing Association Limited,2194.4, 29-Dec-2011
1003,Revenue,CCHD,Supporting People Programme,Grants to Voluntary Bodies,Knightstone Housing Association Limited,6717.92, 29-Dec-2011
1004,Revenue,CCHD,Supporting People Programme,Grants to Voluntary Bodies,Knightstone Housing Association Limited,19485.84, 29-Dec-2011
1005,Revenue,CCHD,Supporting People Programme,Grants to Voluntary Bodies,Knightstone Housing Association Limited,1968, 05-Dec-2011
1006,Revenue,CCHD,Supporting People Programme,Grants to Voluntary Bodies,Knightstone Housing Association Limited,2193.84, 05-Dec-2011
1007,Revenue,CCHD,Supporting People Programme,Grants to Voluntary Bodies,Knightstone Housing Association Limited,2194.4, 05-Dec-2011
1008,Revenue,CCHD,Supporting People Programme,Grants to Voluntary Bodies,Knightstone Housing Association Limited,6717.92, 05-Dec-2011
1009,Revenue,CCHD,Supporting People Programme,Grants to Voluntary Bodies,Knightstone Housing Association Limited,19485.84, 05-Dec-2011
1010,Revenue,CCHD,Supporting People Programme,Grants to Voluntary Bodies,Knightstone Housing Association Limited,516.64, 05-Dec-2011
1011,Revenue,CCHD,Supporting People Programme,Grants to Voluntary Bodies,Knightstone Housing Association Limited,1387.68, 05-Dec-2011
1012,Revenue,CCHD,Home Care Purch North,Other Small Contracts,Kumari Care Limited,809.87, 07-Dec-2011
1013,Revenue,CCHD,Home Care Purch North,Other Small Contracts,Kumari Care Limited,809.87, 07-Dec-2011
1014,Revenue,CCHD,Home Care Purch North,Other Small Contracts,Kumari Care Limited,809.87, 21-Dec-2011
1015,Revenue,CCHD,Home Care Purch South,Other Small Contracts,Kumari Care Limited,5058.75, 12-Dec-2011
1016,Revenue,CCHD,Home Care Purch North,Other Small Contracts,Kumari Care Limited,52.5, 12-Dec-2011
1017,Revenue,CCHD,Day Care - South,Private & Voluntary Day Care,Kumari Care Limited,330, 12-Dec-2011
1018,Revenue,CCHD,Under 65s -MH  Home Care Purch,Other Small Contracts,Kumari Care Limited,105, 12-Dec-2011
1019,Revenue,CCHD,Elderly MH Home Care,Other Small Contracts,Kumari Care Limited,52.5, 12-Dec-2011
1020,Revenue,CCHD,PWLD Home Care - Under 65 - KH,Private & Voluntary Home Care,Kumari Care Limited,285, 12-Dec-2011
1021,Revenue,CCHD,Home Care Purch South,Other Small Contracts,Kumari Care Limited,5107.5, 01-Dec-2011
1022,Revenue,CCHD,Home Care Purch North,Other Small Contracts,Kumari Care Limited,52.5, 01-Dec-2011
1023,Revenue,CCHD,Day Care - South,Private & Voluntary Day Care,Kumari Care Limited,315, 01-Dec-2011
1024,Revenue,CCHD,Under 65s -MH  Home Care Purch,Other Small Contracts,Kumari Care Limited,97.5, 01-Dec-2011
1025,Revenue,CCHD,Elderly MH Home Care,Other Small Contracts,Kumari Care Limited,52.5, 01-Dec-2011
1026,Revenue,CCHD,PWLD Home Care - Under 65 - KH,Private & Voluntary Home Care,Kumari Care Limited,221.25, 01-Dec-2011
1027,Revenue,CCHD,Home Care Purch South,Other Small Contracts,Kumari Care Limited,5137.5, 05-Dec-2011
1028,Revenue,CCHD,Home Care Purch North,Other Small Contracts,Kumari Care Limited,52.5, 05-Dec-2011
1029,Revenue,CCHD,Day Care - South,Private & Voluntary Day Care,Kumari Care Limited,273.75, 05-Dec-2011
1030,Revenue,CCHD,Under 65s -MH  Home Care Purch,Other Small Contracts,Kumari Care Limited,112.5, 05-Dec-2011
1031,Revenue,CCHD,Elderly MH Home Care,Other Small Contracts,Kumari Care Limited,30, 05-Dec-2011
1032,Revenue,CCHD,PWLD Home Care - Under 65 - KH,Private & Voluntary Home Care,Kumari Care Limited,292.5, 05-Dec-2011
1033,Revenue,CCHD,Home Care Purch South,Other Small Contracts,Kumari Care Limited,4743.75, 08-Dec-2011
1034,Revenue,CCHD,Home Care Purch North,Other Small Contracts,Kumari Care Limited,52.5, 08-Dec-2011
1035,Revenue,CCHD,Day Care - South,Private & Voluntary Day Care,Kumari Care Limited,202.5, 08-Dec-2011
1036,Revenue,CCHD,Under 65s -MH  Home Care Purch,Other Small Contracts,Kumari Care Limited,112.5, 08-Dec-2011
1037,Revenue,CCHD,Elderly MH Home Care,Other Small Contracts,Kumari Care Limited,22.5, 08-Dec-2011
1038,Revenue,CCHD,PWLD Home Care - Under 65 - KH,Private & Voluntary Home Care,Kumari Care Limited,56.25, 08-Dec-2011
1039,Revenue,CCHD,Home Care Purch South,Other Small Contracts,Kumari Care Limited,4856.25, 19-Dec-2011
1040,Revenue,CCHD,Home Care Purch North,Other Small Contracts,Kumari Care Limited,52.5, 19-Dec-2011
1041,Revenue,CCHD,Day Care - South,Private & Voluntary Day Care,Kumari Care Limited,221.25, 19-Dec-2011
1042,Revenue,CCHD,Under 65s -MH  Home Care Purch,Other Small Contracts,Kumari Care Limited,123.75, 19-Dec-2011
1043,Revenue,CCHD,Elderly MH Home Care,Other Small Contracts,Kumari Care Limited,37.5, 19-Dec-2011
1044,Revenue,CCHD,PWLD Home Care - Under 65 - KH,Private & Voluntary Home Care,Kumari Care Limited,292.5, 19-Dec-2011
1045,Revenue,CCHD,Home Care Purch South,Other Small Contracts,Kumari Care Limited,4713.75, 28-Dec-2011
1046,Revenue,CCHD,Home Care Purch North,Other Small Contracts,Kumari Care Limited,45, 28-Dec-2011
1047,Revenue,CCHD,Day Care - South,Private & Voluntary Day Care,Kumari Care Limited,330, 28-Dec-2011
1048,Revenue,CCHD,Under 65s -MH  Home Care Purch,Other Small Contracts,Kumari Care Limited,108.75, 28-Dec-2011
1049,Revenue,CCHD,Elderly MH Home Care,Other Small Contracts,Kumari Care Limited,37.5, 28-Dec-2011
1050,Revenue,CCHD,PWLD Home Care - Under 65 - KH,Private & Voluntary Home Care,Kumari Care Limited,75, 28-Dec-2011
1051,Revenue,CCHD,Purchasing Phys Dis - North,Nursing Homes,Leonard Cheshire  National Account Centr,2588.28, 23-Dec-2011
1052,Revenue,CCHD,Purchasing Phys Dis - North,Residential Homes,Leonard Cheshire  National Account Centr,2303.36, 23-Dec-2011
1053,Revenue,CCHD,Under 65s PWLD - KH,Residential Homes,Leonard Cheshire  National Account Centr,2894.92, 23-Dec-2011
1054,Revenue,CCHD,Purchasing Phys Dis - North,Nursing Homes,Leonard Cheshire  National Account Centr,2693.2, 23-Dec-2011
1055,Revenue,CCHD,Elderly Purchasing - North,Residential Homes,Leonard Cheshire  National Account Centr,3084.48, 23-Dec-2011
1056,Revenue,CCHD,Under 65s PWLD - KD,Residential Homes,Leonard Cheshire  National Account Centr,17196.72, 23-Dec-2011
1057,Revenue,CCHD,Under 65s PWLD - KD,Residential Homes,Leonard Cheshire  National Account Centr,17192.16, 23-Dec-2011
1058,Revenue,CCHD,Purchasing Phys Dis - North,Nursing Homes,Leonard Cheshire  National Account Centr,2777.24, 23-Dec-2011
1059,Revenue,CCHD,Purchasing Phys Dis - North,Nursing Homes,Leonard Cheshire  National Account Centr,3143.8, 23-Dec-2011
1060,Revenue,CCHD,Purchasing Phys Dis - North,Residential Homes,Leonard Cheshire  National Account Centr,2837.08, 23-Dec-2011
1061,Revenue,CCHD,Elderly Purchasing - North,Nursing Homes,Leonard Cheshire  National Account Centr,17548.92, 23-Dec-2011
1062,Revenue,CCHD,Elderly Purchasing - South,Nursing Homes,Leonard Cheshire  National Account Centr,2878.32, 23-Dec-2011
1063,Revenue,CCHD,Southmead Hospital Purchasing,Nursing Homes,Leonard Cheshire  National Account Centr,2940.48, 23-Dec-2011
1064,Revenue,CCHD,South Glos Users in all other LA Homes,Nursing Homes,Leonard Cheshire  National Account Centr,598.4, 23-Dec-2011
1065,Revenue,CCHD,Purchasing Phys Dis - North,Nursing Homes,Leonard Cheshire  National Account Centr,3235.6, 23-Dec-2011
1066,Revenue,CCHD,Frenchay Hospital Purchasing,Residential Homes,Leonard Cheshire  National Account Centr,3687.8, 23-Dec-2011
1067,Revenue,CCHD,Under 65s PWLD - KD,Residential Homes,Littlecroft Residential Homes  Longcroft,6427.88, 23-Dec-2011
1068,Revenue,CCHD,Home Care Purch South,Other Small Contracts,Lloyds TSB Commercial Finance Limited,999.63, 12-Dec-2011
1069,Revenue,CCHD,Home Care Purch North,Other Small Contracts,Lloyds TSB Commercial Finance Limited,6265.42, 12-Dec-2011
1070,Revenue,CCHD,Day Care - South,Private & Voluntary Day Care,Lloyds TSB Commercial Finance Limited,122.56, 12-Dec-2011
1071,Revenue,CCHD,Day Care - North,Private & Voluntary Day Care,Lloyds TSB Commercial Finance Limited,421.3, 12-Dec-2011
1072,Revenue,CCHD,Elderly MH Home Care,Other Small Contracts,Lloyds TSB Commercial Finance Limited,589.82, 12-Dec-2011
1073,Revenue,CCHD,Elderly MH non-res purchasing,Private & Voluntary Day Care,Lloyds TSB Commercial Finance Limited,45.96, 12-Dec-2011
1074,Revenue,CCHD,Supported Living - KH,Private & Voluntary Home Care,Lloyds TSB Commercial Finance Limited,5452.26, 28-Dec-2011
1075,Revenue,CCHD,Supported Living - KD,Private & Voluntary Home Care,Lloyds TSB Commercial Finance Limited,3788.98, 08-Dec-2011
1076,Revenue,CCHD,Supported Living - KD,Private & Voluntary Home Care,Lloyds TSB Commercial Finance Limited,3556.08, 13-Dec-2011
1077,Revenue,CCHD,Supported Living - KD,Private & Voluntary Home Care,Lloyds TSB Commercial Finance Limited,3834.36, 08-Dec-2011
1078,Revenue,CCHD,Supported Living - PS,Private & Voluntary Home Care,Lloyds TSB Commercial Finance Limited,3959.25, 13-Dec-2011
1079,Revenue,CCHD,Supported Living - PS,Private & Voluntary Home Care,Lloyds TSB Commercial Finance Limited,3558.29, 13-Dec-2011
1080,Revenue,CCHD,Supported Living - PS,Private & Voluntary Home Care,Lloyds TSB Commercial Finance Limited,3553.1, 13-Dec-2011
1081,Revenue,CCHD,Home Care Purch South,Other Small Contracts,Lloyds TSB Commercial Finance Limited,1284.4, 19-Dec-2011
1082,Revenue,CCHD,Home Care Purch North,Other Small Contracts,Lloyds TSB Commercial Finance Limited,6259.74, 19-Dec-2011
1083,Revenue,CCHD,Day Care - South,Private & Voluntary Day Care,Lloyds TSB Commercial Finance Limited,121.6, 19-Dec-2011
1084,Revenue,CCHD,Day Care - North,Private & Voluntary Day Care,Lloyds TSB Commercial Finance Limited,725.8, 19-Dec-2011
1085,Revenue,CCHD,Elderly MH Home Care,Other Small Contracts,Lloyds TSB Commercial Finance Limited,520.6, 19-Dec-2011
1086,Revenue,CCHD,Elderly MH non-res purchasing,Private & Voluntary Day Care,Lloyds TSB Commercial Finance Limited,41.8, 19-Dec-2011
1087,Revenue,CCHD,Home Care Purch South,Other Small Contracts,Lloyds TSB Commercial Finance Limited,1235, 19-Dec-2011
1088,Revenue,CCHD,Home Care Purch North,Other Small Contracts,Lloyds TSB Commercial Finance Limited,6246.87, 19-Dec-2011
1089,Revenue,CCHD,Day Care - South,Private & Voluntary Day Care,Lloyds TSB Commercial Finance Limited,125.4, 19-Dec-2011
1090,Revenue,CCHD,Day Care - North,Private & Voluntary Day Care,Lloyds TSB Commercial Finance Limited,718.2, 19-Dec-2011
1091,Revenue,CCHD,Elderly MH Home Care,Other Small Contracts,Lloyds TSB Commercial Finance Limited,528.2, 19-Dec-2011
1092,Revenue,CCHD,Elderly MH non-res purchasing,Private & Voluntary Day Care,Lloyds TSB Commercial Finance Limited,41.8, 19-Dec-2011
1093,Revenue,CCHD,Home Care Purch South,Other Small Contracts,Lloyds TSB Commercial Finance Limited,1349, 19-Dec-2011
1094,Revenue,CCHD,Home Care Purch North,Other Small Contracts,Lloyds TSB Commercial Finance Limited,6141.11, 19-Dec-2011
1095,Revenue,CCHD,Day Care - South,Private & Voluntary Day Care,Lloyds TSB Commercial Finance Limited,125.4, 19-Dec-2011
1096,Revenue,CCHD,Day Care - North,Private & Voluntary Day Care,Lloyds TSB Commercial Finance Limited,733.4, 19-Dec-2011
1097,Revenue,CCHD,Elderly MH Home Care,Other Small Contracts,Lloyds TSB Commercial Finance Limited,41.8, 19-Dec-2011
1098,Revenue,CCHD,Elderly MH non-res purchasing,Private & Voluntary Day Care,Lloyds TSB Commercial Finance Limited,41.8, 19-Dec-2011
1099,Revenue,CCHD,Home Care Purch South,Other Small Contracts,Lloyds TSB Commercial Finance Limited,1390.8, 19-Dec-2011
1100,Revenue,CCHD,Home Care Purch North,Other Small Contracts,Lloyds TSB Commercial Finance Limited,6203.07, 19-Dec-2011
1101,Revenue,CCHD,Day Care - South,Private & Voluntary Day Care,Lloyds TSB Commercial Finance Limited,106.4, 19-Dec-2011
1102,Revenue,CCHD,Day Care - North,Private & Voluntary Day Care,Lloyds TSB Commercial Finance Limited,668.8, 19-Dec-2011
1103,Revenue,CCHD,Elderly MH Home Care,Other Small Contracts,Lloyds TSB Commercial Finance Limited,402.8, 19-Dec-2011
1104,Revenue,CCHD,Elderly MH non-res purchasing,Private & Voluntary Day Care,Lloyds TSB Commercial Finance Limited,45.6, 19-Dec-2011
1105,Revenue,CCHD,Supported Living - KD,Private & Voluntary Home Care,Lloyds TSB Commercial Finance Limited,3544.09, 23-Dec-2011
1106,Revenue,CCHD,Supported Living - KD,Private & Voluntary Home Care,Lloyds TSB Commercial Finance Limited,3317.42, 13-Dec-2011
1107,Revenue,CCHD,Supported Living - KH,Private & Voluntary Home Care,Lloyds TSB Commercial Finance Limited,854.18, 28-Dec-2011
1108,Revenue,CCHD,Home Care Purch South,Other Small Contracts,Lloyds TSB Commercial Finance Limited,1034.1, 05-Dec-2011
1109,Revenue,CCHD,Home Care Purch North,Other Small Contracts,Lloyds TSB Commercial Finance Limited,5548.71, 05-Dec-2011
1110,Revenue,CCHD,Day Care - South,Private & Voluntary Day Care,Lloyds TSB Commercial Finance Limited,65.11, 05-Dec-2011
1111,Revenue,CCHD,Day Care - North,Private & Voluntary Day Care,Lloyds TSB Commercial Finance Limited,325.55, 05-Dec-2011
1112,Revenue,CCHD,Elderly MH Home Care,Other Small Contracts,Lloyds TSB Commercial Finance Limited,386.83, 05-Dec-2011
1113,Revenue,CCHD,Elderly MH non-res purchasing,Private & Voluntary Day Care,Lloyds TSB Commercial Finance Limited,61.28, 05-Dec-2011
1114,Revenue,CCHD,Home Care Purch South,Other Small Contracts,Lloyds TSB Commercial Finance Limited,1099.21, 05-Dec-2011
1115,Revenue,CCHD,Home Care Purch North,Other Small Contracts,Lloyds TSB Commercial Finance Limited,5941.57, 05-Dec-2011
1116,Revenue,CCHD,Day Care - South,Private & Voluntary Day Care,Lloyds TSB Commercial Finance Limited,61.28, 05-Dec-2011
1117,Revenue,CCHD,Day Care - North,Private & Voluntary Day Care,Lloyds TSB Commercial Finance Limited,497.9, 05-Dec-2011
1118,Revenue,CCHD,Elderly MH Home Care,Other Small Contracts,Lloyds TSB Commercial Finance Limited,38.3, 05-Dec-2011
1119,Revenue,CCHD,Elderly MH non-res purchasing,Private & Voluntary Day Care,Lloyds TSB Commercial Finance Limited,42.13, 05-Dec-2011
1120,Revenue,CCHD,Home Care Purch South,Other Small Contracts,Lloyds TSB Commercial Finance Limited,1246.4, 05-Dec-2011
1121,Revenue,CCHD,Home Care Purch North,Other Small Contracts,Lloyds TSB Commercial Finance Limited,6206.33, 05-Dec-2011
1122,Revenue,CCHD,Day Care - South,Private & Voluntary Day Care,Lloyds TSB Commercial Finance Limited,91.2, 05-Dec-2011
1123,Revenue,CCHD,Day Care - North,Private & Voluntary Day Care,Lloyds TSB Commercial Finance Limited,653.6, 05-Dec-2011
1124,Revenue,CCHD,Elderly MH Home Care,Other Small Contracts,Lloyds TSB Commercial Finance Limited,53.2, 05-Dec-2011
1125,Revenue,CCHD,Elderly MH non-res purchasing,Private & Voluntary Day Care,Lloyds TSB Commercial Finance Limited,41.8, 05-Dec-2011
1126,Revenue,CCHD,Home Care Purch South,Other Small Contracts,Lloyds TSB Commercial Finance Limited,1295.8, 19-Dec-2011
1127,Revenue,CCHD,Home Care Purch North,Other Small Contracts,Lloyds TSB Commercial Finance Limited,6062.25, 19-Dec-2011
1128,Revenue,CCHD,Day Care - South,Private & Voluntary Day Care,Lloyds TSB Commercial Finance Limited,110.2, 19-Dec-2011
1129,Revenue,CCHD,Day Care - North,Private & Voluntary Day Care,Lloyds TSB Commercial Finance Limited,725.8, 19-Dec-2011
1130,Revenue,CCHD,Elderly MH Home Care,Other Small Contracts,Lloyds TSB Commercial Finance Limited,482.6, 19-Dec-2011
1131,Revenue,CCHD,Elderly MH non-res purchasing,Private & Voluntary Day Care,Lloyds TSB Commercial Finance Limited,41.8, 19-Dec-2011
1132,Revenue,CCHD,Home Care Purch South,Other Small Contracts,Lloyds TSB Commercial Finance Limited,1288.2, 05-Dec-2011
1133,Revenue,CCHD,Home Care Purch North,Other Small Contracts,Lloyds TSB Commercial Finance Limited,6105.52, 05-Dec-2011
1134,Revenue,CCHD,Day Care - South,Private & Voluntary Day Care,Lloyds TSB Commercial Finance Limited,117.8, 05-Dec-2011
1135,Revenue,CCHD,Day Care - North,Private & Voluntary Day Care,Lloyds TSB Commercial Finance Limited,680.2, 05-Dec-2011
1136,Revenue,CCHD,Elderly MH Home Care,Other Small Contracts,Lloyds TSB Commercial Finance Limited,41.8, 05-Dec-2011
1137,Revenue,CCHD,Elderly MH non-res purchasing,Private & Voluntary Day Care,Lloyds TSB Commercial Finance Limited,45.6, 05-Dec-2011
1138,Revenue,CCHD,Supported Living - KH,Private & Voluntary Home Care,Lloyds TSB Commercial Finance Limited,588.75, 28-Dec-2011
1139,Revenue,CCHD,Under 65s PWLD - KH,Residential Homes,Longton Court,9361.2, 23-Dec-2011
1140,Revenue,CCHD,Social Lettings Agency,Other Supplies & Services,Individual,565, 16-Dec-2011
1141,Revenue,CCHD,Southmead Hospital Purchasing,Nursing Homes,Majestic 3 Limited,1017.44, 23-Dec-2011
1142,Revenue,CCHD,Minor Adaptations Service,Operational Equipment,Manner (UK) Ltd,545, 20-Dec-2011
1143,Revenue,CCHD,Section 117 Placements MH Younger,Private & Voluntary Day Care,Manor Community Care Homes,912.8, 13-Dec-2011
1144,Revenue,CCHD,Elderly Purchasing - South,Residential Homes,Manor Cottage,738.68, 23-Dec-2011
1145,Revenue,CCHD,Elderly Purchasing - South,Residential Homes,Manor Cottage,723.24, 23-Dec-2011
1146,Revenue,CCHD,Elderly Purchasing - South,Residential Homes,Manor Cottage,1421.44, 23-Dec-2011
1147,Revenue,CCHD,Elderly Purchasing - South,Residential Homes,Manor Cottage,1296.68, 23-Dec-2011
1148,Revenue,CCHD,Elderly Purchasing - North,Residential Homes,Manton Hall Residential Home,1460.76, 23-Dec-2011
1149,Revenue,CCHD,Supporting People Programme,Grants to Voluntary Bodies,Maples Community Housing Limited,2401.2, 29-Dec-2011
1150,Revenue,CCHD,Supporting People Programme,Grants to Voluntary Bodies,Maples Community Housing Limited,2401.2, 06-Dec-2011
1151,Revenue,CCHD,Tenancy Start Up Scheme,Other Supplies & Services,Individual,625, 06-Dec-2011
1152,Revenue,CCHD,Under 65s PWLD - PS,Residential Homes,Marsden Healthcare Limited,865.12, 21-Dec-2011
1153,Revenue,CCHD,Elderly PWLD - KH,Residential Homes,Marsden Healthcare Limited,3134.56, 21-Dec-2011
1154,Revenue,CCHD,Elderly PWLD - KH,Residential Homes,Marsden Healthcare Limited,1481.4, 21-Dec-2011
1155,Revenue,CCHD,Elderly Mental Health,Nursing Homes,Meadow Care Home,1452.96, 23-Dec-2011
1156,Revenue,CCHD,Home Care Purch South,Private & Voluntary Home Care,Mears Care,47442.58, 28-Dec-2011
1157,Revenue,CCHD,Home Care Purch South,Other Small Contracts,Mears Care,866.7, 12-Dec-2011
1158,Revenue,CCHD,Home Care Purch North,Other Small Contracts,Mears Care,9105.5, 12-Dec-2011
1159,Revenue,CCHD,Day Care - South,Private & Voluntary Day Care,Mears Care,277.3, 12-Dec-2011
1160,Revenue,CCHD,Day Care - North,Private & Voluntary Day Care,Mears Care,357.2, 12-Dec-2011
1161,Revenue,CCHD,Under 65s -MH  Home Care Purch,Other Small Contracts,Mears Care,138.8, 12-Dec-2011
1162,Revenue,CCHD,Elderly MH Home Care,Other Small Contracts,Mears Care,781.6, 12-Dec-2011
1163,Revenue,CCHD,Elderly MH non-res purchasing,Private & Voluntary Day Care,Mears Care,122.2, 12-Dec-2011
1164,Revenue,CCHD,Home Care - Elderly LD - KH,Private & Voluntary Home Care,Mears Care,65.8, 12-Dec-2011
1165,Revenue,CCHD,Home Care Purch South,Other Small Contracts,Mears Care,709.2, 12-Dec-2011
1166,Revenue,CCHD,Home Care Purch North,Other Small Contracts,Mears Care,7507.8, 12-Dec-2011
1167,Revenue,CCHD,Day Care - South,Private & Voluntary Day Care,Mears Care,201.6, 12-Dec-2011
1168,Revenue,CCHD,Day Care - North,Private & Voluntary Day Care,Mears Care,295.2, 12-Dec-2011
1169,Revenue,CCHD,Under 65s -MH  Home Care Purch,Other Small Contracts,Mears Care,108, 12-Dec-2011
1170,Revenue,CCHD,Elderly MH Home Care,Other Small Contracts,Mears Care,637.2, 12-Dec-2011
1171,Revenue,CCHD,Elderly MH non-res purchasing,Private & Voluntary Day Care,Mears Care,93.6, 12-Dec-2011
1172,Revenue,CCHD,Home Care - Elderly LD - KH,Private & Voluntary Home Care,Mears Care,50.4, 12-Dec-2011
1173,Revenue,CCHD,Home Care Purch South,Other Small Contracts,Mears Care,669.4, 12-Dec-2011
1174,Revenue,CCHD,Home Care Purch North,Other Small Contracts,Mears Care,7548, 12-Dec-2011
1175,Revenue,CCHD,Day Care - South,Private & Voluntary Day Care,Mears Care,136.8, 12-Dec-2011
1176,Revenue,CCHD,Day Care - North,Private & Voluntary Day Care,Mears Care,313.2, 12-Dec-2011
1177,Revenue,CCHD,Under 65s -MH  Home Care Purch,Other Small Contracts,Mears Care,93.2, 12-Dec-2011
1178,Revenue,CCHD,Elderly MH Home Care,Other Small Contracts,Mears Care,662.4, 12-Dec-2011
1179,Revenue,CCHD,Elderly MH non-res purchasing,Private & Voluntary Day Care,Mears Care,57.6, 12-Dec-2011
1180,Revenue,CCHD,Home Care - Elderly LD - KH,Private & Voluntary Home Care,Mears Care,50.4, 12-Dec-2011
1181,Revenue,CCHD,Home Care Purch South,Other Small Contracts,Mears Care,626.4, 12-Dec-2011
1182,Revenue,CCHD,Home Care Purch North,Other Small Contracts,Mears Care,7335.2, 12-Dec-2011
1183,Revenue,CCHD,Day Care - South,Private & Voluntary Day Care,Mears Care,205.2, 12-Dec-2011
1184,Revenue,CCHD,Day Care - North,Private & Voluntary Day Care,Mears Care,316.8, 12-Dec-2011
1185,Revenue,CCHD,Under 65s -MH  Home Care Purch,Other Small Contracts,Mears Care,108, 12-Dec-2011
1186,Revenue,CCHD,Elderly MH Home Care,Other Small Contracts,Mears Care,640.8, 12-Dec-2011
1187,Revenue,CCHD,Elderly MH non-res purchasing,Private & Voluntary Day Care,Mears Care,28.8, 12-Dec-2011
1188,Revenue,CCHD,Home Care - Elderly LD - KH,Private & Voluntary Home Care,Mears Care,50.4, 12-Dec-2011
1189,Revenue,CCHD,Home Care Purch South,Other Small Contracts,Mears Care,626.4, 12-Dec-2011
1190,Revenue,CCHD,Home Care Purch North,Other Small Contracts,Mears Care,7403.2, 12-Dec-2011
1191,Revenue,CCHD,Day Care - South,Private & Voluntary Day Care,Mears Care,208.8, 12-Dec-2011
1192,Revenue,CCHD,Day Care - North,Private & Voluntary Day Care,Mears Care,277.2, 12-Dec-2011
1193,Revenue,CCHD,Under 65s -MH  Home Care Purch,Other Small Contracts,Mears Care,108, 12-Dec-2011
1194,Revenue,CCHD,Elderly MH Home Care,Other Small Contracts,Mears Care,655.2, 12-Dec-2011
1195,Revenue,CCHD,Elderly MH non-res purchasing,Private & Voluntary Day Care,Mears Care,57.6, 12-Dec-2011
1196,Revenue,CCHD,Home Care - Elderly LD - KH,Private & Voluntary Home Care,Mears Care,50.4, 12-Dec-2011
1197,Revenue,CCHD,Home Care Purch South,Other Small Contracts,Mears Care,626.4, 12-Dec-2011
1198,Revenue,CCHD,Home Care Purch North,Other Small Contracts,Mears Care,7642.2, 12-Dec-2011
1199,Revenue,CCHD,Day Care - South,Private & Voluntary Day Care,Mears Care,201.6, 12-Dec-2011
1200,Revenue,CCHD,Day Care - North,Private & Voluntary Day Care,Mears Care,313.2, 12-Dec-2011
1201,Revenue,CCHD,Under 65s -MH  Home Care Purch,Other Small Contracts,Mears Care,108, 12-Dec-2011
1202,Revenue,CCHD,Elderly MH Home Care,Other Small Contracts,Mears Care,648, 12-Dec-2011
1203,Revenue,CCHD,Elderly MH non-res purchasing,Private & Voluntary Day Care,Mears Care,86.4, 12-Dec-2011
1204,Revenue,CCHD,Home Care Purch South,Other Small Contracts,Mears Care,702, 12-Dec-2011
1205,Revenue,CCHD,Home Care Purch North,Other Small Contracts,Mears Care,7156.2, 12-Dec-2011
1206,Revenue,CCHD,Day Care - South,Private & Voluntary Day Care,Mears Care,205.2, 12-Dec-2011
1207,Revenue,CCHD,Day Care - North,Private & Voluntary Day Care,Mears Care,313.2, 12-Dec-2011
1208,Revenue,CCHD,Under 65s -MH  Home Care Purch,Other Small Contracts,Mears Care,111.6, 12-Dec-2011
1209,Revenue,CCHD,Elderly MH Home Care,Other Small Contracts,Mears Care,655.2, 12-Dec-2011
1210,Revenue,CCHD,Elderly MH non-res purchasing,Private & Voluntary Day Care,Mears Care,93.6, 12-Dec-2011
1211,Revenue,CCHD,Home Care - Elderly LD - KH,Private & Voluntary Home Care,Mears Care,43.2, 12-Dec-2011
1212,Revenue,CCHD,Home Care Purch South,Other Small Contracts,Mears Care,691.2, 12-Dec-2011
1213,Revenue,CCHD,Home Care Purch North,Other Small Contracts,Mears Care,7131, 12-Dec-2011
1214,Revenue,CCHD,Day Care - South,Private & Voluntary Day Care,Mears Care,201.6, 12-Dec-2011
1215,Revenue,CCHD,Day Care - North,Private & Voluntary Day Care,Mears Care,313.2, 12-Dec-2011
1216,Revenue,CCHD,Under 65s -MH  Home Care Purch,Other Small Contracts,Mears Care,108, 12-Dec-2011
1217,Revenue,CCHD,Elderly MH Home Care,Other Small Contracts,Mears Care,651.6, 12-Dec-2011
1218,Revenue,CCHD,Elderly MH non-res purchasing,Private & Voluntary Day Care,Mears Care,86.4, 12-Dec-2011
1219,Revenue,CCHD,Home Care - Elderly LD - KH,Private & Voluntary Home Care,Mears Care,54, 12-Dec-2011
1220,Revenue,CCHD,Home Care Purch South,Other Small Contracts,Mears Care,669.6, 28-Dec-2011
1221,Revenue,CCHD,Home Care Purch North,Other Small Contracts,Mears Care,6815.4, 28-Dec-2011
1222,Revenue,CCHD,Day Care - South,Private & Voluntary Day Care,Mears Care,172.8, 28-Dec-2011
1223,Revenue,CCHD,Day Care - North,Private & Voluntary Day Care,Mears Care,280.8, 28-Dec-2011
1224,Revenue,CCHD,Under 65s -MH  Home Care Purch,Other Small Contracts,Mears Care,108, 28-Dec-2011
1225,Revenue,CCHD,Elderly MH Home Care,Other Small Contracts,Mears Care,669.6, 28-Dec-2011
1226,Revenue,CCHD,Elderly MH non-res purchasing,Private & Voluntary Day Care,Mears Care,28.8, 28-Dec-2011
1227,Revenue,CCHD,Home Care - Elderly LD - KH,Private & Voluntary Home Care,Mears Care,50.4, 28-Dec-2011
1228,Revenue,CCHD,Home Care Purch South,Other Small Contracts,Mears Care,691.2, 28-Dec-2011
1229,Revenue,CCHD,Home Care Purch North,Other Small Contracts,Mears Care,6400.4, 28-Dec-2011
1230,Revenue,CCHD,Day Care - South,Private & Voluntary Day Care,Mears Care,201.6, 28-Dec-2011
1231,Revenue,CCHD,Day Care - North,Private & Voluntary Day Care,Mears Care,306, 28-Dec-2011
1232,Revenue,CCHD,Under 65s -MH  Home Care Purch,Other Small Contracts,Mears Care,108, 28-Dec-2011
1233,Revenue,CCHD,Elderly MH Home Care,Other Small Contracts,Mears Care,648, 28-Dec-2011
1234,Revenue,CCHD,Elderly MH non-res purchasing,Private & Voluntary Day Care,Mears Care,86.4, 28-Dec-2011
1235,Revenue,CCHD,Home Care - Elderly LD - KH,Private & Voluntary Home Care,Mears Care,50.4, 28-Dec-2011
1236,Revenue,CCHD,Home Care Purch South,Other Small Contracts,Medacs Home Care,54.4, 12-Dec-2011
1237,Revenue,CCHD,Home Care Purch North,Other Small Contracts,Medacs Home Care,1139, 12-Dec-2011
1238,Revenue,CCHD,Day Care - North,Private & Voluntary Day Care,Medacs Home Care,40.8, 12-Dec-2011
1239,Revenue,CCHD,Elderly MH Home Care,Other Small Contracts,Medacs Home Care,122.4, 12-Dec-2011
1240,Revenue,CCHD,Elderly MH non-res purchasing,Private & Voluntary Day Care,Medacs Home Care,34, 12-Dec-2011
1241,Revenue,CCHD,Home Care Purch North,Other Small Contracts,Medico Nursing & Homecare Ltd,1937.77, 07-Dec-2011
1242,Revenue,CCHD,Home Care Purch North,Other Small Contracts,Medico Nursing & Homecare Ltd,1927.73, 05-Dec-2011
1243,Revenue,CCHD,Home Care Purch North,Other Small Contracts,Medico Nursing & Homecare Ltd,1927.73, 09-Dec-2011
1244,Revenue,CCHD,Home Care Purch North,Other Small Contracts,Medico Nursing & Homecare Ltd,1927.73, 07-Dec-2011
1245,Revenue,CCHD,Home Care Purch South,Other Small Contracts,Medico Nursing & Homecare Ltd,2261.75, 16-Dec-2011
1246,Revenue,CCHD,Home Care Purch North,Other Small Contracts,Medico Nursing & Homecare Ltd,8304.15, 16-Dec-2011
1247,Revenue,CCHD,Day Care - South,Private & Voluntary Day Care,Medico Nursing & Homecare Ltd,66.4, 16-Dec-2011
1248,Revenue,CCHD,Day Care - North,Private & Voluntary Day Care,Medico Nursing & Homecare Ltd,709.65, 16-Dec-2011
1249,Revenue,CCHD,Elderly MH Home Care,Other Small Contracts,Medico Nursing & Homecare Ltd,1012.6, 16-Dec-2011
1250,Revenue,CCHD,Elderly MH non-res purchasing,Private & Voluntary Day Care,Medico Nursing & Homecare Ltd,149.4, 16-Dec-2011
1251,Revenue,CCHD,PWLD Home Care - Under 65 - PS,Private & Voluntary Home Care,Medico Nursing & Homecare Ltd,265.6, 16-Dec-2011
1252,Revenue,CCHD,PWLD Home Care - Under 65 - KD,Private & Voluntary Home Care,Medico Nursing & Homecare Ltd,124.5, 16-Dec-2011
1253,Revenue,CCHD,PWLD Home Care - Under 65 - KH,Private & Voluntary Home Care,Medico Nursing & Homecare Ltd,659.85, 16-Dec-2011
1254,Revenue,CCHD,Home Care Purch South,Other Small Contracts,Medico Nursing & Homecare Ltd,2207.8, 29-Dec-2011
1255,Revenue,CCHD,Home Care Purch North,Other Small Contracts,Medico Nursing & Homecare Ltd,8059.3, 29-Dec-2011
1256,Revenue,CCHD,Day Care - South,Private & Voluntary Day Care,Medico Nursing & Homecare Ltd,49.8, 29-Dec-2011
1257,Revenue,CCHD,Day Care - North,Private & Voluntary Day Care,Medico Nursing & Homecare Ltd,734.55, 29-Dec-2011
1258,Revenue,CCHD,Elderly MH Home Care,Other Small Contracts,Medico Nursing & Homecare Ltd,1025.05, 29-Dec-2011
1259,Revenue,CCHD,Elderly MH non-res purchasing,Private & Voluntary Day Care,Medico Nursing & Homecare Ltd,149.4, 29-Dec-2011
1260,Revenue,CCHD,PWLD Home Care - Under 65 - PS,Private & Voluntary Home Care,Medico Nursing & Homecare Ltd,265.6, 29-Dec-2011
1261,Revenue,CCHD,PWLD Home Care - Under 65 - KD,Private & Voluntary Home Care,Medico Nursing & Homecare Ltd,124.5, 29-Dec-2011
1262,Revenue,CCHD,PWLD Home Care - Under 65 - KH,Private & Voluntary Home Care,Medico Nursing & Homecare Ltd,651.55, 29-Dec-2011
1263,Revenue,CCHD,Under 65s PWLD - KH,Residential Homes,Mencap,2173.8, 23-Dec-2011
1264,Revenue,CCHD,Supported Living (S28a),Private & Voluntary Home Care,Mencap - PSH West,3689, 13-Dec-2011
1265,Revenue,CCHD,Supported Living (S28a),Private & Voluntary Home Care,Mencap - PSH West,3689, 13-Dec-2011
1266,Revenue,CCHD,Supporting People Programme,Grants to Voluntary Bodies,Merlin Housing Society,920.55, 29-Dec-2011
1267,Revenue,CCHD,Supporting People Programme,Grants to Voluntary Bodies,Merlin Housing Society,2172.8, 29-Dec-2011
1268,Revenue,CCHD,Supporting People Programme,Grants to Voluntary Bodies,Merlin Housing Society,2186.3, 29-Dec-2011
1269,Revenue,CCHD,Supporting People Programme,Grants to Voluntary Bodies,Merlin Housing Society,2416.44, 29-Dec-2011
1270,Revenue,CCHD,Supporting People Programme,Grants to Voluntary Bodies,Merlin Housing Society,13808.8, 29-Dec-2011
1271,Revenue,CCHD,Supporting People Programme,Grants to Voluntary Bodies,Merlin Housing Society,41424.66, 29-Dec-2011
1272,Revenue,CCHD,Supporting People Programme,Grants to Voluntary Bodies,Merlin Housing Society,2416.44, 05-Dec-2011
1273,Revenue,CCHD,Supporting People Programme,Grants to Voluntary Bodies,Merlin Housing Society,13808.8, 05-Dec-2011
1274,Revenue,CCHD,Supporting People Programme,Grants to Voluntary Bodies,Merlin Housing Society,2172.8, 05-Dec-2011
1275,Revenue,CCHD,Supporting People Programme,Grants to Voluntary Bodies,Merlin Housing Society,920.55, 05-Dec-2011
1276,Revenue,CCHD,Supporting People Programme,Grants to Voluntary Bodies,Merlin Housing Society,41424.66, 05-Dec-2011
1277,Revenue,CCHD,Supporting People Programme,Grants to Voluntary Bodies,Merlin Housing Society,2186.3, 05-Dec-2011
1278,Revenue,CCHD,Tenancy Start Up Scheme,Other Supplies & Services,Individual,1300, 13-Dec-2011
1279,Revenue,CCHD,Home Care Purch South,Other Small Contracts,Milestones Outreach Dementia Services,536.25, 01-Dec-2011
1280,Revenue,CCHD,Home Care Purch North,Other Small Contracts,Milestones Outreach Dementia Services,63.75, 01-Dec-2011
1281,Revenue,CCHD,Day Care - South,Private & Voluntary Day Care,Milestones Outreach Dementia Services,45, 01-Dec-2011
1282,Revenue,CCHD,Day Care - North,Private & Voluntary Day Care,Milestones Outreach Dementia Services,97.5, 01-Dec-2011
1283,Revenue,CCHD,Elderly MH Home Care,Other Small Contracts,Milestones Outreach Dementia Services,723.75, 01-Dec-2011
1284,Revenue,CCHD,Elderly MH non-res purchasing,Private & Voluntary Day Care,Milestones Outreach Dementia Services,978.75, 01-Dec-2011
1285,Revenue,CCHD,Contracts & Commissioning Team,Other Small Contracts,Milestones Trust,3693.6, 23-Dec-2011
1286,Revenue,CCHD,Home Care Purch North,Other Small Contracts,Milestones Trust,1245.44, 12-Dec-2011
1287,Revenue,CCHD,Supported Living (S28a),Private & Voluntary Home Care,Milestones Trust,7281.94, 05-Dec-2011
1288,Revenue,CCHD,Supported Living - PS,Private & Voluntary Home Care,Milestones Trust,16532.55, 16-Dec-2011
1289,Revenue,CCHD,Supported Living - PS,Private & Voluntary Home Care,Milestones Trust,18506.75, 16-Dec-2011
1290,Revenue,CCHD,Supported Living - PS,Private & Voluntary Home Care,Milestones Trust,14225.4, 16-Dec-2011
1291,Revenue,CCHD,Supported Living - PS,Private & Voluntary Home Care,Milestones Trust,17738.25, 16-Dec-2011
1292,Revenue,CCHD,Supported Living - PS,Private & Voluntary Home Care,Milestones Trust,13319.15, 16-Dec-2011
1293,Revenue,CCHD,Supported Living - PS,Private & Voluntary Home Care,Milestones Trust,14776.4, 16-Dec-2011
1294,Revenue,CCHD,Elderly MH non-res purchasing,Private & Voluntary Day Care,Milestones Trust,680, 01-Dec-2011
1295,Revenue,CCHD,Elderly MH non-res purchasing,Private & Voluntary Day Care,Milestones Trust,1054.74, 01-Dec-2011
1296,Revenue,CCHD,Section 117 Placements MH Younger,Private & Voluntary Day Care,Milestones Trust,1053.07, 09-Dec-2011
1297,Revenue,CCHD,Younger MH non-res purchasing,Private & Voluntary Day Care,Milestones Trust,664.01, 09-Dec-2011
1298,Revenue,CCHD,Purchase of Non-Res Care - PS,Private & Voluntary Day Care,Milestones Trust,803.68, 05-Dec-2011
1299,Revenue,CCHD,Purchase of Non-Res Care - KH,Private & Voluntary Day Care,Milestones Trust,1237.18, 09-Dec-2011
1300,Revenue,CCHD,Purchase of Non-Res Care - PS,Private & Voluntary Day Care,Milestones Trust,1362.13, 20-Dec-2011
1301,Revenue,CCHD,Purchase of Non-Res Care - PS,Private & Voluntary Day Care,Milestones Trust,1197.68, 20-Dec-2011
1302,Revenue,CCHD,Purchase of Non-Res Care - PS,Private & Voluntary Day Care,Milestones Trust,1374.67, 06-Dec-2011
1303,Revenue,CCHD,Purchase of Non-Res Care - KH,Private & Voluntary Day Care,Milestones Trust,1589.19, 08-Dec-2011
1304,Revenue,CCHD,Purchase of Non-Res Care - KH,Private & Voluntary Day Care,Milestones Trust,1224.51, 16-Dec-2011
1305,Revenue,CCHD,Purchase of Non-Res Care - KH,Private & Voluntary Day Care,Milestones Trust,980.7, 16-Dec-2011
1306,Revenue,CCHD,Purchase of Non-Res Care - PS,Private & Voluntary Day Care,Milestones Trust,1249.23, 20-Dec-2011
1307,Revenue,CCHD,Purchase of Non-Res Care - KH,Private & Voluntary Day Care,Milestones Trust,1528.74, 16-Dec-2011
1308,Revenue,CCHD,Purchase of Non-Res Care - KH,Private & Voluntary Day Care,Milestones Trust,1320.47, 09-Dec-2011
1309,Revenue,CCHD,Supported Living (S28a),Private & Voluntary Home Care,Milestones Trust,4143.36, 05-Dec-2011
1310,Revenue,CCHD,Supported Living (S28a),Private & Voluntary Home Care,Milestones Trust,4143.36, 05-Dec-2011
1311,Revenue,CCHD,Supported Living (S28a),Private & Voluntary Home Care,Milestones Trust,3662.32, 05-Dec-2011
1312,Revenue,CCHD,Supported Living (S28a),Private & Voluntary Home Care,Milestones Trust,3662.32, 05-Dec-2011
1313,Revenue,CCHD,Supported Living (S28a),Private & Voluntary Home Care,Milestones Trust,3662.32, 05-Dec-2011
1314,Revenue,CCHD,Supported Living (S28a),Private & Voluntary Home Care,Milestones Trust,811.8, 05-Dec-2011
1315,Revenue,CCHD,Supported Living - PS,Private & Voluntary Home Care,Milestones Trust,785.07, 05-Dec-2011
1316,Revenue,CCHD,Supported Living - PS,Private & Voluntary Home Care,Milestones Trust,779.22, 05-Dec-2011
1317,Revenue,CCHD,Supported Living - KH,Private & Voluntary Home Care,Milestones Trust,1269.88, 09-Dec-2011
1318,Revenue,CCHD,Supported Living (S28a),Private & Voluntary Home Care,Milestones Trust,3689.05, 05-Dec-2011
1319,Revenue,CCHD,Supported Living (S28a),Private & Voluntary Home Care,Milestones Trust,10939.4, 05-Dec-2011
1320,Revenue,CCHD,Supported Living (S28a),Private & Voluntary Home Care,Milestones Trust,9399.84, 05-Dec-2011
1321,Revenue,CCHD,Supported Living (S28a),Private & Voluntary Home Care,Milestones Trust,5619.76, 05-Dec-2011
1322,Revenue,CCHD,Supported Living - KD,Private & Voluntary Home Care,Milestones Trust,4454.84, 08-Dec-2011
1323,Revenue,CCHD,Supported Living (S28a),Private & Voluntary Home Care,Milestones Trust,3187.3, 05-Dec-2011
1324,Revenue,CCHD,Supported Living (S28a),Private & Voluntary Home Care,Milestones Trust,3433.8, 05-Dec-2011
1325,Revenue,CCHD,Supported Living - KH,Private & Voluntary Home Care,Milestones Trust,2793.93, 15-Dec-2011
1326,Revenue,CCHD,Supported Living (S28a),Private & Voluntary Home Care,Milestones Trust,3161.53, 05-Dec-2011
1327,Revenue,CCHD,Supported Living - PS,Private & Voluntary Home Care,Milestones Trust,1147.07, 20-Dec-2011
1328,Revenue,CCHD,Supported Living - PS,Private & Voluntary Home Care,Milestones Trust,738.38, 06-Dec-2011
1329,Revenue,CCHD,Supported Living - PS,Private & Voluntary Home Care,Milestones Trust,1597.51, 06-Dec-2011
1330,Revenue,CCHD,Supported Living - PS,Private & Voluntary Home Care,Milestones Trust,738.62, 06-Dec-2011
1331,Revenue,CCHD,Supported Living (S28a),Private & Voluntary Home Care,Milestones Trust,570.8, 05-Dec-2011
1332,Revenue,CCHD,Supported Living - KD,Private & Voluntary Home Care,Milestones Trust,1712.48, 09-Dec-2011
1333,Revenue,CCHD,Elderly MH non-res purchasing,Private & Voluntary Day Care,Milestones Trust,635.25, 09-Dec-2011
1334,Revenue,CCHD,Stibbs and Fairburn,Private & Voluntary Respite Care,Milestones Trust,122736.57, 21-Dec-2011
1335,Revenue,CCHD,Elderly MH non-res purchasing,Private & Voluntary Day Care,Milestones Trust,720, 16-Dec-2011
1336,Revenue,CCHD,Elderly MH non-res purchasing,Private & Voluntary Day Care,Milestones Trust,705.85, 23-Dec-2011
1337,Revenue,CCHD,Elderly MH non-res purchasing,Private & Voluntary Day Care,Milestones Trust,528.22, 23-Dec-2011
1338,Revenue,CCHD,Elderly MH non-res purchasing,Private & Voluntary Day Care,Milestones Trust,564.72, 23-Dec-2011
1339,Revenue,CCHD,Elderly MH non-res purchasing,Private & Voluntary Day Care,Milestones Trust,668.74, 23-Dec-2011
1340,Revenue,CCHD,Section 117 Placements MH Younger,Private & Voluntary Day Care,Milestones Trust,1546.66, 23-Dec-2011
1341,Revenue,CCHD,Supported Living (S28a),Private & Voluntary Home Care,Milestones Trust,1070.1, 21-Dec-2011
1342,Revenue,CCHD,Under 65s PWLD - PS,Residential Homes,Miller Farm,3305, 23-Dec-2011
1343,Revenue,CCHD,Section 117 Placements,Nursing Homes,Mimosa Healthcare Holdings Ltd,1888, 23-Dec-2011
1344,Revenue,CCHD,Under 65s PWLD - KH,Residential Homes,Mmcg  Westcourt,15056.44, 23-Dec-2011
1345,Revenue,CCHD,Elderly Purchasing - North,Nursing Homes,Mortimer House Nursing Home,2552.88, 21-Dec-2011
1346,Revenue,CCHD,Elderly Purchasing - North,Nursing Homes,Mortimer House Nursing Home,1549.97, 21-Dec-2011
1347,Revenue,CCHD,S28A - Over 65,Nursing Homes,Mortimer House Nursing Home,2521.56, 21-Dec-2011
1348,Revenue,CCHD,S28A - Over 65,Nursing Homes,Mortimer House Nursing Home,1621, 21-Dec-2011
1349,Revenue,CCHD,S28A - Over 65,Nursing Homes,Mortimer House Nursing Home,2521.56, 21-Dec-2011
1350,Revenue,CCHD,S28A - Over 65,Nursing Homes,Mortimer House Nursing Home,1621, 21-Dec-2011
1351,Revenue,CCHD,S28A - Over 65,Nursing Homes,Mortimer House Nursing Home,3227.8, 21-Dec-2011
1352,Revenue,CCHD,Elderly PWLD - PS,Nursing Homes,Mortimer House Nursing Home,2910.2, 21-Dec-2011
1353,Revenue,CCHD,S28A - Over 65,Nursing Homes,Mortimer House Nursing Home,3233, 21-Dec-2011
1354,Revenue,CCHD,Southmead Hospital Purchasing,Residential Homes,Mostyn Lodge Residential Home,1253, 23-Dec-2011
1355,Revenue,CCHD,Section 117 Placements,Residential Homes,Mostyn Lodge Residential Home,1848, 23-Dec-2011
1356,Revenue,CCHD,Mental Illness SLA's,Grants to Voluntary Bodies,Mothers for Mothers,2100, 29-Dec-2011
1357,Revenue,CCHD,Supported Living - PS,Private & Voluntary Home Care,Moving On,6440.99, 01-Dec-2011
1358,Revenue,CCHD,Tenancy Start Up Scheme,Other Supplies & Services,Individual,625, 14-Dec-2011
1359,Revenue,CCHD,Under 65s PWLD - KH,Residential Homes,Mr J Davis & Mrs S Davis,1840, 06-Dec-2011
1360,Revenue,CCHD,Under 65s PWLD - KH,Residential Homes,Mr J Davis & Mrs S Davis,1840, 29-Dec-2011
1361,Revenue,CCHD,Homelessness Grant,Other Supplies & Services,Mr Jack Davis,565, 12-Dec-2011
1362,Revenue,CCHD,Homelessness Grant,Other Supplies & Services,Mr Peter Sargent,551.44, 12-Dec-2011
1363,Revenue,CCHD,Management & Support costs,Other Supplies & Services,Mr Philip Petchey,20000, 13-Dec-2011
1364,Revenue,CCHD,Elderly MH non-res purchasing,Private & Voluntary Day Care,Mrs B Kimber,1199.22, 01-Dec-2011
1365,Revenue,CCHD,Elderly MH non-res purchasing,Private & Voluntary Day Care,Mrs B Kimber,708.63, 01-Dec-2011
1366,Revenue,CCHD,Elderly MH non-res purchasing,Private & Voluntary Day Care,Mrs B Kimber,616.98, 01-Dec-2011
1367,Revenue,CCHD,Supported Living - PS,Private & Voluntary Home Care,Mrs B Kimber,8158.6, 16-Dec-2011
1368,Revenue,CCHD,Supported Living - PS,Private & Voluntary Home Care,Mrs B Kimber,10494.22, 16-Dec-2011
1369,Revenue,CCHD,Elderly MH non-res purchasing,Private & Voluntary Day Care,Mrs B Kimber,749.51, 23-Dec-2011
1370,Revenue,CCHD,Elderly MH non-res purchasing,Private & Voluntary Day Care,Mrs B Kimber,593.25, 23-Dec-2011
1371,Revenue,CCHD,Elderly MH non-res purchasing,Private & Voluntary Day Care,Mrs B Kimber,563.27, 23-Dec-2011
1372,Revenue,CCHD,Elderly MH non-res purchasing,Private & Voluntary Day Care,Mrs B Kimber,545.1, 23-Dec-2011
1373,Revenue,CCHD,Elderly MH non-res purchasing,Private & Voluntary Day Care,Mrs B Kimber,585.98, 23-Dec-2011
1374,Revenue,CCHD,Day Care - South,Private & Voluntary Day Care,Mrs B Kimber,654.04, 23-Dec-2011
1375,Revenue,CCHD,Purchase of Non-Res Care - KD,Private & Voluntary Day Care,Mrs B Kimber,816.38, 23-Dec-2011
1376,Revenue,CCHD,Supported Living - KD,Private & Voluntary Home Care,Mrs B Kimber,1058.47, 23-Dec-2011
1377,Revenue,CCHD,Day Care - South,Private & Voluntary Day Care,Mrs B Kimber,890.3, 23-Dec-2011
1378,Revenue,CCHD,Day Care - North,Private & Voluntary Day Care,Mrs B Kimber,1526.28, 29-Dec-2011
1379,Revenue,CCHD,Home Care Purch South,Other Small Contracts,Mrs B Kimber - Stepping Stones,2415.22, 08-Dec-2011
1380,Revenue,CCHD,Home Care Purch North,Other Small Contracts,Mrs B Kimber - Stepping Stones,2218.22, 08-Dec-2011
1381,Revenue,CCHD,Day Care - South,Private & Voluntary Day Care,Mrs B Kimber - Stepping Stones,748.6, 08-Dec-2011
1382,Revenue,CCHD,Day Care - North,Private & Voluntary Day Care,Mrs B Kimber - Stepping Stones,212.76, 08-Dec-2011
1383,Revenue,CCHD,Under 65s -MH  Home Care Purch,Other Small Contracts,Mrs B Kimber - Stepping Stones,224.58, 08-Dec-2011
1384,Revenue,CCHD,Elderly MH Home Care,Other Small Contracts,Mrs B Kimber - Stepping Stones,78.8, 08-Dec-2011
1385,Revenue,CCHD,Elderly MH non-res purchasing,Private & Voluntary Day Care,Mrs B Kimber - Stepping Stones,350.66, 08-Dec-2011
1386,Revenue,CCHD,Supported Living - KD,Private & Voluntary Home Care,Mrs B Kimber - Stepping Stones,764.36, 08-Dec-2011
1387,Revenue,CCHD,PWLD Home Care - Under 65 - KD,Private & Voluntary Home Care,Mrs B Kimber - Stepping Stones,47.28, 08-Dec-2011
1388,Revenue,CCHD,PWLD Home Care - Under 65 - KH,Private & Voluntary Home Care,Mrs B Kimber - Stepping Stones,149.72, 08-Dec-2011
1389,Revenue,CCHD,Home Care - Elderly LD - KD,Private & Voluntary Home Care,Mrs B Kimber - Stepping Stones,945.6, 08-Dec-2011
1390,Revenue,CCHD,Home Care Purch South,Other Small Contracts,Mrs B Kimber - Stepping Stones,2462.5, 28-Dec-2011
1391,Revenue,CCHD,Home Care Purch North,Other Small Contracts,Mrs B Kimber - Stepping Stones,2178.82, 28-Dec-2011
1392,Revenue,CCHD,Day Care - South,Private & Voluntary Day Care,Mrs B Kimber - Stepping Stones,760.42, 28-Dec-2011
1393,Revenue,CCHD,Day Care - North,Private & Voluntary Day Care,Mrs B Kimber - Stepping Stones,204.88, 28-Dec-2011
1394,Revenue,CCHD,Under 65s -MH  Home Care Purch,Other Small Contracts,Mrs B Kimber - Stepping Stones,228.52, 28-Dec-2011
1395,Revenue,CCHD,Elderly MH Home Care,Other Small Contracts,Mrs B Kimber - Stepping Stones,51.22, 28-Dec-2011
1396,Revenue,CCHD,Elderly MH non-res purchasing,Private & Voluntary Day Care,Mrs B Kimber - Stepping Stones,307.32, 28-Dec-2011
1397,Revenue,CCHD,Supported Living - KD,Private & Voluntary Home Care,Mrs B Kimber - Stepping Stones,760.42, 28-Dec-2011
1398,Revenue,CCHD,PWLD Home Care - Under 65 - KD,Private & Voluntary Home Care,Mrs B Kimber - Stepping Stones,47.28, 28-Dec-2011
1399,Revenue,CCHD,PWLD Home Care - Under 65 - KH,Private & Voluntary Home Care,Mrs B Kimber - Stepping Stones,149.72, 28-Dec-2011
1400,Revenue,CCHD,Home Care - Elderly LD - KD,Private & Voluntary Home Care,Mrs B Kimber - Stepping Stones,953.48, 28-Dec-2011
1401,Revenue,CCHD,Home Care Purch South,Other Small Contracts,Mrs B Kimber - Stepping Stones,2549.18, 01-Dec-2011
1402,Revenue,CCHD,Home Care Purch North,Other Small Contracts,Mrs B Kimber - Stepping Stones,2092.14, 01-Dec-2011
1403,Revenue,CCHD,Day Care - South,Private & Voluntary Day Care,Mrs B Kimber - Stepping Stones,736.78, 01-Dec-2011
1404,Revenue,CCHD,Day Care - North,Private & Voluntary Day Care,Mrs B Kimber - Stepping Stones,212.76, 01-Dec-2011
1405,Revenue,CCHD,Under 65s -MH  Home Care Purch,Other Small Contracts,Mrs B Kimber - Stepping Stones,200.94, 01-Dec-2011
1406,Revenue,CCHD,Elderly MH Home Care,Other Small Contracts,Mrs B Kimber - Stepping Stones,78.8, 01-Dec-2011
1407,Revenue,CCHD,Elderly MH non-res purchasing,Private & Voluntary Day Care,Mrs B Kimber - Stepping Stones,330.96, 01-Dec-2011
1408,Revenue,CCHD,Supported Living - KD,Private & Voluntary Home Care,Mrs B Kimber - Stepping Stones,776.18, 01-Dec-2011
1409,Revenue,CCHD,PWLD Home Care - Under 65 - KD,Private & Voluntary Home Care,Mrs B Kimber - Stepping Stones,47.28, 01-Dec-2011
1410,Revenue,CCHD,PWLD Home Care - Under 65 - KH,Private & Voluntary Home Care,Mrs B Kimber - Stepping Stones,145.78, 01-Dec-2011
1411,Revenue,CCHD,Home Care - Elderly LD - KD,Private & Voluntary Home Care,Mrs B Kimber - Stepping Stones,929.84, 01-Dec-2011
1412,Revenue,CCHD,Home Care Purch South,Other Small Contracts,Mrs B Kimber - Stepping Stones,2411.28, 28-Dec-2011
1413,Revenue,CCHD,Home Care Purch North,Other Small Contracts,Mrs B Kimber - Stepping Stones,2206.4, 28-Dec-2011
1414,Revenue,CCHD,Day Care - South,Private & Voluntary Day Care,Mrs B Kimber - Stepping Stones,736.78, 28-Dec-2011
1415,Revenue,CCHD,Day Care - North,Private & Voluntary Day Care,Mrs B Kimber - Stepping Stones,177.3, 28-Dec-2011
1416,Revenue,CCHD,Under 65s -MH  Home Care Purch,Other Small Contracts,Mrs B Kimber - Stepping Stones,193.06, 28-Dec-2011
1417,Revenue,CCHD,Elderly MH Home Care,Other Small Contracts,Mrs B Kimber - Stepping Stones,78.8, 28-Dec-2011
1418,Revenue,CCHD,Elderly MH non-res purchasing,Private & Voluntary Day Care,Mrs B Kimber - Stepping Stones,346.72, 28-Dec-2011
1419,Revenue,CCHD,Supported Living - KD,Private & Voluntary Home Care,Mrs B Kimber - Stepping Stones,843.16, 28-Dec-2011
1420,Revenue,CCHD,PWLD Home Care - Under 65 - KD,Private & Voluntary Home Care,Mrs B Kimber - Stepping Stones,78.8, 28-Dec-2011
1421,Revenue,CCHD,PWLD Home Care - Under 65 - KH,Private & Voluntary Home Care,Mrs B Kimber - Stepping Stones,145.78, 28-Dec-2011
1422,Revenue,CCHD,Home Care - Elderly LD - KD,Private & Voluntary Home Care,Mrs B Kimber - Stepping Stones,791.94, 28-Dec-2011
1423,Revenue,CCHD,Social Lettings Agency,Other Supplies & Services,Individual,700.01, 15-Dec-2011
1424,Revenue,CCHD,Younger MH non-res purchasing,Private & Voluntary Home Care,Mrs Felicity Cooksley,1676, 19-Dec-2011
1425,Revenue,CCHD,Purchase of Non-Res Care - KD,Private & Voluntary Day Care,Mrs W Thompson,1460, 15-Dec-2011
1426,Revenue,CCHD,Purchase of Non-Res Care - KD,Private & Voluntary Day Care,Mrs W Thompson,554, 15-Dec-2011
1427,Revenue,CCHD,Alexandra Way,Cleaning & Domestic Supplies,Muzzell Healthcare,518.58, 05-Dec-2011
1428,Revenue,CCHD,Alexandra Way,Cleaning & Domestic Supplies,Muzzell Healthcare,947.13, 23-Dec-2011
1429,Revenue,CCHD,Younger MH non-res purchasing,Private & Voluntary Day Care,NAS Services Limited,508.95, 16-Dec-2011
1430,Revenue,CCHD,Younger MH non-res purchasing,Private & Voluntary Day Care,NAS Services Limited,1319.5, 21-Dec-2011
1431,Revenue,CCHD,Purchase of Non-Res Care - KD,Private & Voluntary Day Care,Natureworks Training Community Interest,773.82, 23-Dec-2011
1432,Revenue,CCHD,Home Care Purch South,Other Small Contracts,Network Health & Social Care,544.32, 12-Dec-2011
1433,Revenue,CCHD,Home Care Purch North,Other Small Contracts,Network Health & Social Care,2145.33, 12-Dec-2011
1434,Revenue,CCHD,Elderly MH Home Care,Other Small Contracts,Network Health & Social Care,71.82, 12-Dec-2011
1435,Revenue,CCHD,Home Care Purch South,Other Small Contracts,Network Health & Social Care,525.42, 12-Dec-2011
1436,Revenue,CCHD,Home Care Purch North,Other Small Contracts,Network Health & Social Care,1782.72, 12-Dec-2011
1437,Revenue,CCHD,Elderly MH Home Care,Other Small Contracts,Network Health & Social Care,90.72, 12-Dec-2011
1438,Revenue,CCHD,Home Care Purch South,Other Small Contracts,Network Health & Social Care,559.44, 12-Dec-2011
1439,Revenue,CCHD,Home Care Purch North,Other Small Contracts,Network Health & Social Care,2065.88, 12-Dec-2011
1440,Revenue,CCHD,Elderly MH Home Care,Other Small Contracts,Network Health & Social Care,75.6, 12-Dec-2011
1441,Revenue,CCHD,Home Care Purch South,Other Small Contracts,Network Health & Social Care,536.76, 20-Dec-2011
1442,Revenue,CCHD,Home Care Purch North,Other Small Contracts,Network Health & Social Care,2107.87, 20-Dec-2011
1443,Revenue,CCHD,Elderly MH Home Care,Other Small Contracts,Network Health & Social Care,79.38, 20-Dec-2011
1444,Revenue,CCHD,Elderly Purchasing - North,Residential Homes,Newton House,850.48, 23-Dec-2011
1445,Revenue,CCHD,Purchase of Non-Res Care - KH,Private & Voluntary Day Care,Nightingale Care Homes,3085.94, 05-Dec-2011
1446,Revenue,CCHD,Under 65s PWLD - KH,Residential Homes,Nightingale Nursing Home,3037.08, 23-Dec-2011
1447,Revenue,CCHD,Delayed Transfers of Care Gran,Other Supplies & Services,North Bristol NHS Trust,1700, 16-Dec-2011
1448,Revenue,CCHD,Under 65s PWLD - PS,Residential Homes,Norwood   Broadway House,4784.72, 23-Dec-2011
1449,Revenue,CCHD,Home Care Purch South,Other Small Contracts,Nursing Solutions Limited,860.33, 08-Dec-2011
1450,Revenue,CCHD,Elderly MH Home Care,Other Small Contracts,Nursing Solutions Limited,329.73, 08-Dec-2011
1451,Revenue,CCHD,Elderly MH non-res purchasing,Private & Voluntary Day Care,Nursing Solutions Limited,197.08, 08-Dec-2011
1452,Revenue,CCHD,Home Care Purch South,Other Small Contracts,Nursing Solutions Limited,727.68, 08-Dec-2011
1453,Revenue,CCHD,Elderly MH Home Care,Other Small Contracts,Nursing Solutions Limited,325.94, 08-Dec-2011
1454,Revenue,CCHD,Elderly MH non-res purchasing,Private & Voluntary Day Care,Nursing Solutions Limited,197.08, 08-Dec-2011
1455,Revenue,CCHD,Home Care Purch South,Other Small Contracts,Nursing Solutions Limited,735.26, 08-Dec-2011
1456,Revenue,CCHD,Elderly MH Home Care,Other Small Contracts,Nursing Solutions Limited,306.99, 08-Dec-2011
1457,Revenue,CCHD,Elderly MH non-res purchasing,Private & Voluntary Day Care,Nursing Solutions Limited,197.08, 08-Dec-2011
1458,Revenue,CCHD,Home Care Purch South,Other Small Contracts,Nursing Solutions Limited,720.1, 08-Dec-2011
1459,Revenue,CCHD,Elderly MH Home Care,Other Small Contracts,Nursing Solutions Limited,325.94, 08-Dec-2011
1460,Revenue,CCHD,Elderly MH non-res purchasing,Private & Voluntary Day Care,Nursing Solutions Limited,197.08, 08-Dec-2011
1461,Revenue,CCHD,Home Care Purch South,Other Small Contracts,Nursing Solutions Limited,735.26, 28-Dec-2011
1462,Revenue,CCHD,Elderly MH Home Care,Other Small Contracts,Nursing Solutions Limited,341.1, 28-Dec-2011
1463,Revenue,CCHD,Elderly MH non-res purchasing,Private & Voluntary Day Care,Nursing Solutions Limited,197.08, 28-Dec-2011
1464,Revenue,CCHD,Home Care Purch South,Other Small Contracts,Nursing Solutions Limited,890.65, 28-Dec-2011
1465,Revenue,CCHD,Elderly MH Home Care,Other Small Contracts,Nursing Solutions Limited,337.31, 28-Dec-2011
1466,Revenue,CCHD,Elderly MH non-res purchasing,Private & Voluntary Day Care,Nursing Solutions Limited,197.08, 28-Dec-2011
1467,Revenue,CCHD,S28A - Under 65,Residential Homes,Orchard End Limited,7466.16, 23-Dec-2011
1468,Revenue,CCHD,Elderly Mental Health,Residential Homes,Osborne House,1404.12, 23-Dec-2011
1469,Revenue,CCHD,Elderly Purchasing - North,Residential Homes,Osbourne Court,967.84, 23-Dec-2011
1470,Revenue,CCHD,Elderly Mental Health,Residential Homes,Osbourne Court,3026.04, 23-Dec-2011
1471,Revenue,CCHD,Elderly Mental Health,Residential Homes,Osbourne Court,1389, 23-Dec-2011
1472,Revenue,CCHD,Section 117 Placements,Residential Homes,Osbourne Court,1848, 23-Dec-2011
1473,Revenue,CCHD,Section 117 Placements,Residential Homes,Osbourne Court,1688, 23-Dec-2011
1474,Revenue,CCHD,Elderly Purchasing - North,Residential Homes,Osbourne Court,1030.76, 23-Dec-2011
1475,Revenue,CCHD,Elderly Mental Health,Residential Homes,Osbourne Court,1421, 23-Dec-2011
1476,Revenue,CCHD,Section 117 Placements,Residential Homes,Osbourne Court,1848, 23-Dec-2011
1477,Revenue,CCHD,Elderly Purchasing - South,Residential Homes,Osbourne Court,3000, 23-Dec-2011
1478,Revenue,CCHD,Frenchay Hospital Purchasing,Residential Homes,Osbourne Court,1187.8, 23-Dec-2011
1479,Revenue,CCHD,Under 65s PWLD - PS,Residential Homes,Osprey Court,7741.52, 23-Dec-2011
1480,Revenue,CCHD,S28A - Under 65,Residential Homes,Osprey Court,4323.36, 23-Dec-2011
1481,Revenue,CCHD,S28A - Under 65,Residential Homes,Osprey Court,6566.88, 23-Dec-2011
1482,Revenue,CCHD,Research & Conferences,Other Supplies & Services,Oxford Brooks Enterprises Ltd,9450, 09-Dec-2011
1483,Revenue,CCHD,Research & Conferences,Other Supplies & Services,Oxford Brooks Enterprises Ltd,675, 29-Dec-2011
1484,Revenue,CCHD,Elderly Mental Health,Residential Homes,Park Farm House,1331.48, 23-Dec-2011
1485,Revenue,CCHD,Elderly Purchasing - South,Residential Homes,Park Farm House,1498.8, 23-Dec-2011
1486,Revenue,CCHD,Elderly Mental Health,Residential Homes,Park Farm House,1566.4, 23-Dec-2011
1487,Revenue,CCHD,Elderly Mental Health,Residential Homes,Park Farm House,1106, 23-Dec-2011
1488,Revenue,CCHD,Elderly PWLD - KH,Residential Homes,Park Hall,4785.48, 23-Dec-2011
1489,Revenue,CCHD,Under 65s PWLD - KH,Residential Homes,Park Hall,4196.32, 23-Dec-2011
1490,Revenue,CCHD,Under 65s PWLD - KH,Residential Homes,Park Hall,4825.08, 23-Dec-2011
1491,Revenue,CCHD,Under 65s PWLD - KH,Residential Homes,Park Hall,12336.4, 23-Dec-2011
1492,Revenue,CCHD,Under 65s PWLD - PS,Residential Homes,Park Hall,5420.4, 23-Dec-2011
1493,Revenue,CCHD,Elderly PWLD - KH,Residential Homes,Park Hall,2470.16, 23-Dec-2011
1494,Revenue,CCHD,Under 65s PWLD - KD,Residential Homes,Park Hall,2720.8, 23-Dec-2011
1495,Revenue,CCHD,S28A - Under 65,Residential Homes,Park Hall,4506.8, 23-Dec-2011
1496,Revenue,CCHD,S28A - Over 65,Residential Homes,Park Hall,5163.72, 23-Dec-2011
1497,Revenue,CCHD,Under 65s PWLD - KH,Residential Homes,Park Hall,6276.68, 23-Dec-2011
1498,Revenue,CCHD,Under 65s PWLD - KD,Residential Homes,Park Hall,2149.28, 23-Dec-2011
1499,Revenue,CCHD,Under 65s PWLD - KH,Residential Homes,Park Hall,4801.96, 23-Dec-2011
1500,Revenue,CCHD,S28A - Under 65,Residential Homes,Park Hall,16268.73, 23-Dec-2011
1501,Revenue,CCHD,S28A - Under 65,Residential Homes,Park Hall,20968.66, 23-Dec-2011
1502,Revenue,CCHD,Southmead Hospital Purchasing,Residential Homes,Park House,4001.88, 23-Dec-2011
1503,Revenue,CCHD,Southmead Hospital Purchasing,Residential Homes,Park House,4315.82, 23-Dec-2011
1504,Revenue,CCHD,Elderly Purchasing - South,Residential Homes,Park Street Home,2012.48, 23-Dec-2011
1505,Revenue,CCHD,Tenancy Start Up Scheme,Other Supplies & Services,Individual,1250, 16-Dec-2011
1506,Revenue,CCHD,Under 65s PWLD - KH,Residential Homes,Penleigh House Care Home,4389.32, 23-Dec-2011
1507,Revenue,CCHD,Under 65s PWLD - KD,Residential Homes,Penleigh House Care Home,5101.28, 23-Dec-2011
1508,Revenue,CCHD,Elderly PWLD - KD,Residential Homes,Penleigh House Care Home,4162.72, 23-Dec-2011
1509,Revenue,CCHD,Under 65s PWLD - KD,Residential Homes,Penleigh House Care Home,4326.72, 23-Dec-2011
1510,Revenue,CCHD,S28A - Under 65,Residential Homes,Penleigh House Care Home,5288.92, 23-Dec-2011
1511,Revenue,CCHD,Under 65s PWLD - KD,Residential Homes,Penleigh House Care Home,4778.72, 23-Dec-2011
1512,Revenue,CCHD,Southmead Hospital Purchasing,Residential Homes,Petersfield Ad Care Home,815.76, 23-Dec-2011
1513,Revenue,CCHD,Hydrotherapy,Cleaning & Domestic Supplies,PHS Group Plc,517.28, 15-Dec-2011
1514,Revenue,CCHD,Downend Day Centre,Cleaning & Domestic Supplies,PHS Group Plc,1196.8, 23-Dec-2011
1515,Revenue,CCHD,Occupational Therapy Team,Agency Staff (Operational)/PCT Pay,Piers Meadows Recruitment Limited,1015.98, 05-Dec-2011
1516,Revenue,CCHD,Bed and Breakfast,Bed & Breakfast,Pleasant Bed & Breakfast Limited,588, 08-Dec-2011
1517,Revenue,CCHD,Home Care Purch North,Other Small Contracts,Premier Homecare Limited,7151.1, 01-Dec-2011
1518,Revenue,CCHD,Day Care - North,Private & Voluntary Day Care,Premier Homecare Limited,674.56, 01-Dec-2011
1519,Revenue,CCHD,Elderly MH Home Care,Other Small Contracts,Premier Homecare Limited,506.86, 01-Dec-2011
1520,Revenue,CCHD,Elderly MH non-res purchasing,Private & Voluntary Day Care,Premier Homecare Limited,511.36, 01-Dec-2011
1521,Revenue,CCHD,Home Care Purch North,Other Small Contracts,Premier Homecare Limited,4956.63, 01-Dec-2011
1522,Revenue,CCHD,Day Care - North,Private & Voluntary Day Care,Premier Homecare Limited,177.2, 01-Dec-2011
1523,Revenue,CCHD,Elderly MH Home Care,Other Small Contracts,Premier Homecare Limited,305.67, 01-Dec-2011
1524,Revenue,CCHD,Elderly MH non-res purchasing,Private & Voluntary Day Care,Premier Homecare Limited,420.85, 01-Dec-2011
1525,Revenue,CCHD,Home Care Purch North,Other Small Contracts,Premier Homecare Limited,5572.94, 12-Dec-2011
1526,Revenue,CCHD,Day Care - North,Private & Voluntary Day Care,Premier Homecare Limited,177.2, 12-Dec-2011
1527,Revenue,CCHD,Elderly MH Home Care,Other Small Contracts,Premier Homecare Limited,305.67, 12-Dec-2011
1528,Revenue,CCHD,Elderly MH non-res purchasing,Private & Voluntary Day Care,Premier Homecare Limited,416.42, 12-Dec-2011
1529,Revenue,CCHD,Home Care Purch North,Other Small Contracts,Premier Homecare Limited,5320.43, 19-Dec-2011
1530,Revenue,CCHD,Day Care - North,Private & Voluntary Day Care,Premier Homecare Limited,141.76, 19-Dec-2011
1531,Revenue,CCHD,Elderly MH Home Care,Other Small Contracts,Premier Homecare Limited,305.67, 19-Dec-2011
1532,Revenue,CCHD,Elderly MH non-res purchasing,Private & Voluntary Day Care,Premier Homecare Limited,416.42, 19-Dec-2011
1533,Revenue,CCHD,Home Care Purch North,Other Small Contracts,Premier Homecare Limited,5608.38, 23-Dec-2011
1534,Revenue,CCHD,Day Care - North,Private & Voluntary Day Care,Premier Homecare Limited,234.79, 23-Dec-2011
1535,Revenue,CCHD,Elderly MH Home Care,Other Small Contracts,Premier Homecare Limited,305.67, 23-Dec-2011
1536,Revenue,CCHD,Elderly MH non-res purchasing,Private & Voluntary Day Care,Premier Homecare Limited,411.99, 23-Dec-2011
1537,Revenue,CCHD,Minor Adaptations Service,Maintenance by Contractor,Premier Service & Installation,488.5, 05-Dec-2011
1538,Revenue,CCHD,Home Care Purch South,Other Small Contracts,Prestige Nursing,701.4, 08-Dec-2011
1539,Revenue,CCHD,Home Care Purch North,Other Small Contracts,Prestige Nursing,1138.2, 08-Dec-2011
1540,Revenue,CCHD,Day Care - South,Private & Voluntary Day Care,Prestige Nursing,424.2, 08-Dec-2011
1541,Revenue,CCHD,Day Care - North,Private & Voluntary Day Care,Prestige Nursing,1302, 08-Dec-2011
1542,Revenue,CCHD,Elderly MH Home Care,Other Small Contracts,Prestige Nursing,285.6, 08-Dec-2011
1543,Revenue,CCHD,Elderly MH non-res purchasing,Private & Voluntary Day Care,Prestige Nursing,798, 08-Dec-2011
1544,Revenue,CCHD,Home Care Purch South,Other Small Contracts,Prestige Nursing,693, 01-Dec-2011
1545,Revenue,CCHD,Home Care Purch North,Other Small Contracts,Prestige Nursing,1016.4, 01-Dec-2011
1546,Revenue,CCHD,Day Care - South,Private & Voluntary Day Care,Prestige Nursing,415.8, 01-Dec-2011
1547,Revenue,CCHD,Day Care - North,Private & Voluntary Day Care,Prestige Nursing,1474.2, 01-Dec-2011
1548,Revenue,CCHD,Elderly MH Home Care,Other Small Contracts,Prestige Nursing,289.8, 01-Dec-2011
1549,Revenue,CCHD,Elderly MH non-res purchasing,Private & Voluntary Day Care,Prestige Nursing,743.4, 01-Dec-2011
1550,Revenue,CCHD,Home Care Purch South,Other Small Contracts,Prestige Nursing,701.4, 28-Dec-2011
1551,Revenue,CCHD,Home Care Purch North,Other Small Contracts,Prestige Nursing,831.6, 28-Dec-2011
1552,Revenue,CCHD,Day Care - South,Private & Voluntary Day Care,Prestige Nursing,420, 28-Dec-2011
1553,Revenue,CCHD,Day Care - North,Private & Voluntary Day Care,Prestige Nursing,1428, 28-Dec-2011
1554,Revenue,CCHD,Elderly MH Home Care,Other Small Contracts,Prestige Nursing,340.2, 28-Dec-2011
1555,Revenue,CCHD,Elderly MH non-res purchasing,Private & Voluntary Day Care,Prestige Nursing,655.2, 28-Dec-2011
1556,Revenue,CCHD,Home Care Purch South,Other Small Contracts,Prestige Nursing,705.6, 28-Dec-2011
1557,Revenue,CCHD,Home Care Purch North,Other Small Contracts,Prestige Nursing,659.4, 28-Dec-2011
1558,Revenue,CCHD,Day Care - South,Private & Voluntary Day Care,Prestige Nursing,386.4, 28-Dec-2011
1559,Revenue,CCHD,Day Care - North,Private & Voluntary Day Care,Prestige Nursing,1226.4, 28-Dec-2011
1560,Revenue,CCHD,Elderly MH Home Care,Other Small Contracts,Prestige Nursing,336, 28-Dec-2011
1561,Revenue,CCHD,Elderly MH non-res purchasing,Private & Voluntary Day Care,Prestige Nursing,743.4, 28-Dec-2011
1562,Revenue,CCHD,Carers STF,Grants to Voluntary Bodies,Princess Royal Trust Carers Centre,37500, 29-Dec-2011
1563,Revenue,CCHD,Carers STF,Grants to Voluntary Bodies,Princess Royal Trust Carers Centre,1930.75, 29-Dec-2011
1564,Revenue,CCHD,Purchasing Phys Dis - North,Nursing Homes,Prior Mews Care Home,5700.16, 23-Dec-2011
1565,Revenue,CCHD,South Glos Users in all other LA Homes,Nursing Homes,Prior Mews Care Home,598.4, 23-Dec-2011
1566,Revenue,CCHD,Kingswood District Office,Postages,Purchase Power,624, 05-Dec-2011
1567,Revenue,CCHD,Elderly Purchasing - South,Residential Homes,Quality Care Homes Ltd,1238.96, 23-Dec-2011
1568,Revenue,CCHD,Elderly Purchasing - South,Residential Homes,Quality Care Homes Ltd,1229, 23-Dec-2011
1569,Revenue,CCHD,Elderly Purchasing - South,Residential Homes,Quality Care Homes Ltd,1396, 23-Dec-2011
1570,Revenue,CCHD,Elderly Purchasing - South,Residential Homes,Quality Care Homes Ltd,1128.96, 23-Dec-2011
1571,Revenue,CCHD,Elderly Purchasing - South,Residential Homes,Quality Care Homes Ltd,1808, 23-Dec-2011
1572,Revenue,CCHD,Elderly Purchasing - South,Residential Homes,Quality Care Homes Ltd,1242.8, 23-Dec-2011
1573,Revenue,CCHD,Southmead Hospital Purchasing,Residential Homes,Quality Care Homes Ltd,1199.04, 23-Dec-2011
1574,Revenue,CCHD,Southmead Hospital Purchasing,Residential Homes,Quality Care Homes Ltd,1232.16, 23-Dec-2011
1575,Revenue,CCHD,Southmead Hospital Purchasing,Residential Homes,Quality Care Homes Ltd,2077.36, 23-Dec-2011
1576,Revenue,CCHD,Southmead Hospital Purchasing,Residential Homes,Quality Care Homes Ltd,1065.29, 23-Dec-2011
1577,Revenue,CCHD,Elderly Mental Health,Nursing Homes,Ravenswood,1266.8, 23-Dec-2011
1578,Revenue,CCHD,Elderly Mental Health,Residential Homes,Ravenswood,2148.24, 23-Dec-2011
1579,Revenue,CCHD,Section 117 Placements,Nursing Homes,Redholme Memory Care Limited,1912, 23-Dec-2011
1580,Revenue,CCHD,Elderly Purchasing - South,Nursing Homes,Regent House,1620.8, 23-Dec-2011
1581,Revenue,CCHD,Elderly Purchasing - South,Nursing Homes,Regent House,1620.8, 23-Dec-2011
1582,Revenue,CCHD,Elderly Purchasing - South,Nursing Homes,Regent House,621.2, 23-Dec-2011
1583,Revenue,CCHD,Southmead Hospital Purchasing,Nursing Homes,Regent House,1367, 23-Dec-2011
1584,Revenue,CCHD,Elderly Purchasing - South,Nursing Homes,Regent House,2465.2, 23-Dec-2011
1585,Revenue,CCHD,Elderly Purchasing - South,Nursing Homes,Regent House,1102.6, 23-Dec-2011
1586,Revenue,CCHD,Elderly Mental Health,Nursing Homes,Regent House,1906.2, 23-Dec-2011
1587,Revenue,CCHD,Elderly Mental Health,Nursing Homes,Regent House,1444.2, 23-Dec-2011
1588,Revenue,CCHD,Elderly Mental Health,Nursing Homes,Regent House,1053.04, 23-Dec-2011
1589,Revenue,CCHD,Elderly Mental Health,Nursing Homes,Regent House,1282.72, 23-Dec-2011
1590,Revenue,CCHD,Elderly PWLD - PS,Residential Homes,Renaissance,2156.6, 23-Dec-2011
1591,Revenue,CCHD,Under 65s PWLD - PS,Residential Homes,Ridgeway House,3373.32, 23-Dec-2011
1592,Revenue,CCHD,Under 65s PWLD - PS,Residential Homes,Ridingleaze,16591.71, 23-Dec-2011
1593,Revenue,CCHD,Elderly Purchasing - South,Nursing Homes,Riversway Nursing Home,1146.88, 23-Dec-2011
1594,Revenue,CCHD,Southmead Hospital Purchasing,Nursing Homes,Riversway Nursing Home,1334.52, 23-Dec-2011
1595,Revenue,CCHD,Southmead Hospital Purchasing,Nursing Homes,Riversway Nursing Home,1690.2, 23-Dec-2011
1596,Revenue,CCHD,Elderly PWLD - PS,Residential Homes,Rockleaze,2134.16, 23-Dec-2011
1597,Revenue,CCHD,Elderly PWLD - PS,Residential Homes,Rockleaze,1386.56, 23-Dec-2011
1598,Revenue,CCHD,S28A - Over 65,Residential Homes,Rockleaze,2015.52, 23-Dec-2011
1599,Revenue,CCHD,Under 65s PWLD - PS,Residential Homes,Rockleaze,2335.08, 23-Dec-2011
1600,Revenue,CCHD,Elderly PWLD - PS,Residential Homes,Rockleaze,1386.56, 23-Dec-2011
1601,Revenue,CCHD,Elderly Mental Health,Residential Homes,Ross Healthcare,1265.36, 23-Dec-2011
1602,Revenue,CCHD,Frenchay Hospital Purchasing,Residential Homes,Roundham Court,1229, 23-Dec-2011
1603,Revenue,CCHD,Elderly Purchasing - South,Residential Homes,Roundham Court,658.4, 23-Dec-2011
1604,Revenue,CCHD,Day Care - North,Private & Voluntary Day Care,Royal National Institute For Deaf People,510.78, 05-Dec-2011
1605,Revenue,CCHD,LD - Kingswood PCT,Agency Staff (Operational)/PCT Pay,Ryeford Cleaning Services Limited,628.33, 05-Dec-2011
1606,Revenue,CCHD,LD - Kingswood PCT,Agency Staff (Operational)/PCT Pay,Ryeford Cleaning Services Limited,628.33, 29-Dec-2011
1607,Revenue,CCHD,Under 65s PWLD - PS,Residential Homes,Salters Hill Barn,1964.08, 23-Dec-2011
1608,Revenue,CCHD,Learning Difficulties PSL,Rent,Individual,1400, 01-Dec-2011
1609,Revenue,CCHD,Learning Difficulties PSL,Rent,Individual,1400, 29-Dec-2011
1610,Revenue,CCHD,Woodleaze,"Provisions (Food, etc)",School Milk Services Limited,877.86, 29-Dec-2011
1611,Revenue,CCHD,Charlton,"Provisions (Food, etc)",School Milk Services Limited,699.17, 29-Dec-2011
1612,Revenue,CCHD,Under 65s PWLD - KH,Residential Homes,Scope   Accounts Dept,4926.6, 23-Dec-2011
1613,Revenue,CCHD,Under 65s PWLD - KH,Residential Homes,Scope   Accounts Dept,3016.28, 23-Dec-2011
1614,Revenue,CCHD,Purchase of Non-Res Care - KD,Private & Voluntary Day Care,Selborne Care Ltd,831.12, 22-Dec-2011
1615,Revenue,CCHD,Purchase of Non-Res Care - KD,Private & Voluntary Day Care,Selborne Care Ltd,816.64, 05-Dec-2011
1616,Revenue,CCHD,Supported Living - PS,Private & Voluntary Home Care,Selborne Care Ltd,1128.96, 29-Dec-2011
1617,Revenue,CCHD,Purchase of Non-Res Care - KD,Private & Voluntary Day Care,Selborne Care Ltd,1403.68, 23-Dec-2011
1618,Revenue,CCHD,Purchase of Non-Res Care - KD,Private & Voluntary Day Care,Selborne Care Ltd,878.08, 23-Dec-2011
1619,Revenue,CCHD,Purchase of Non-Res Care - KD,Private & Voluntary Day Care,Selborne Care Ltd,816.64, 23-Dec-2011
1620,Revenue,CCHD,Purchase of Non-Res Care - KD,Private & Voluntary Day Care,Selborne Care Ltd,765.52, 23-Dec-2011
1621,Revenue,CCHD,Purchase of Non-Res Care - KD,Private & Voluntary Day Care,Selborne Care Ltd,877.76, 23-Dec-2011
1622,Revenue,CCHD,Home Care Purch South,Other Small Contracts,Servoca Nursing & Care,1223.44, 01-Dec-2011
1623,Revenue,CCHD,Home Care Purch North,Other Small Contracts,Servoca Nursing & Care,111.9, 01-Dec-2011
1624,Revenue,CCHD,Day Care - South,Private & Voluntary Day Care,Servoca Nursing & Care,656.48, 01-Dec-2011
1625,Revenue,CCHD,Day Care - North,Private & Voluntary Day Care,Servoca Nursing & Care,343.16, 01-Dec-2011
1626,Revenue,CCHD,Younger MH non-res purchasing,Private & Voluntary Day Care,Servoca Nursing & Care,44.76, 01-Dec-2011
1627,Revenue,CCHD,Elderly MH non-res purchasing,Private & Voluntary Day Care,Servoca Nursing & Care,93.25, 01-Dec-2011
1628,Revenue,CCHD,Home Care Purch South,Other Small Contracts,Servoca Nursing & Care,1163.76, 08-Dec-2011
1629,Revenue,CCHD,Home Care Purch North,Other Small Contracts,Servoca Nursing & Care,134.28, 08-Dec-2011
1630,Revenue,CCHD,Day Care - South,Private & Voluntary Day Care,Servoca Nursing & Care,671.4, 08-Dec-2011
1631,Revenue,CCHD,Day Care - North,Private & Voluntary Day Care,Servoca Nursing & Care,339.43, 08-Dec-2011
1632,Revenue,CCHD,Younger MH non-res purchasing,Private & Voluntary Day Care,Servoca Nursing & Care,44.76, 08-Dec-2011
1633,Revenue,CCHD,Elderly MH non-res purchasing,Private & Voluntary Day Care,Servoca Nursing & Care,89.52, 08-Dec-2011
1634,Revenue,CCHD,Home Care Purch South,Other Small Contracts,Servoca Nursing & Care,1141.38, 19-Dec-2011
1635,Revenue,CCHD,Home Care Purch North,Other Small Contracts,Servoca Nursing & Care,134.28, 19-Dec-2011
1636,Revenue,CCHD,Day Care - South,Private & Voluntary Day Care,Servoca Nursing & Care,574.42, 19-Dec-2011
1637,Revenue,CCHD,Day Care - North,Private & Voluntary Day Care,Servoca Nursing & Care,343.16, 19-Dec-2011
1638,Revenue,CCHD,Younger MH non-res purchasing,Private & Voluntary Day Care,Servoca Nursing & Care,48.49, 19-Dec-2011
1639,Revenue,CCHD,Elderly MH non-res purchasing,Private & Voluntary Day Care,Servoca Nursing & Care,89.52, 19-Dec-2011
1640,Revenue,CCHD,Home Care Purch South,Other Small Contracts,Servoca Nursing & Care,1174.95, 23-Dec-2011
1641,Revenue,CCHD,Home Care Purch North,Other Small Contracts,Servoca Nursing & Care,115.63, 23-Dec-2011
1642,Revenue,CCHD,Day Care - South,Private & Voluntary Day Care,Servoca Nursing & Care,634.1, 23-Dec-2011
1643,Revenue,CCHD,Day Care - North,Private & Voluntary Day Care,Servoca Nursing & Care,343.16, 23-Dec-2011
1644,Revenue,CCHD,Younger MH non-res purchasing,Private & Voluntary Day Care,Servoca Nursing & Care,44.76, 23-Dec-2011
1645,Revenue,CCHD,Elderly MH non-res purchasing,Private & Voluntary Day Care,Servoca Nursing & Care,74.6, 23-Dec-2011
1646,Revenue,CCHD,Adult Learning Difficulties - Kingswood,Other Employee Expenses,Seven Social Care Limited,825, 05-Dec-2011
1647,Revenue,CCHD,Adult Learning Difficulties - Kingswood,Other Employee Expenses,Seven Social Care Limited,825, 09-Dec-2011
1648,Revenue,CCHD,Adult Learning Difficulties - Kingswood,Other Employee Expenses,Seven Social Care Limited,825, 09-Dec-2011
1649,Revenue,CCHD,Adult Learning Difficulties - Kingswood,Other Employee Expenses,Seven Social Care Limited,825, 20-Dec-2011
1650,Revenue,CCHD,Southmead Hospital Purchasing,Nursing Homes,Shaw Healthcare Ltd,1453, 23-Dec-2011
1651,Revenue,CCHD,Elderly Mental Health,Nursing Homes,Shaw Healthcare Ltd,1231.84, 23-Dec-2011
1652,Revenue,CCHD,S28A - Under 65,Residential Homes,Shaw Healthcare Ltd,10457.12, 23-Dec-2011
1653,Revenue,CCHD,S28A - Under 65,Residential Homes,Shaw Healthcare Ltd,10293.12, 23-Dec-2011
1654,Revenue,CCHD,S28A - Under 65,Residential Homes,Shaw Healthcare Ltd,10457.12, 23-Dec-2011
1655,Revenue,CCHD,S117 Placements PCT,Residential Homes,Shaw Healthcare Ltd,15106.96, 23-Dec-2011
1656,Revenue,CCHD,Under 65s PWLD - PS,Nursing Homes,Shaw Healthcare Ltd,9513.68, 23-Dec-2011
1657,Revenue,CCHD,Under 65s PWLD - KD,Residential Homes,Shaw Healthcare Ltd,8935.92, 23-Dec-2011
1658,Revenue,CCHD,S28A - Under 65,Residential Homes,Shaw Healthcare Ltd,10137, 23-Dec-2011
1659,Revenue,CCHD,S28A - Under 65,Residential Homes,Shaw Healthcare Ltd,11756.44, 23-Dec-2011
1660,Revenue,CCHD,S28A - Under 65,Residential Homes,Shaw Healthcare Ltd,4681.16, 23-Dec-2011
1661,Revenue,CCHD,S28A - Over 65,Residential Homes,Shaw Healthcare Ltd,4681.16, 23-Dec-2011
1662,Revenue,CCHD,Under 65s PWLD - PS,Nursing Homes,Shaw Healthcare Ltd,9842, 23-Dec-2011
1663,Revenue,CCHD,S28A - Over 65,Residential Homes,Shaw Healthcare Ltd,4681.16, 23-Dec-2011
1664,Revenue,CCHD,S28A - Over 65,Residential Homes,Shaw Healthcare Ltd,4681.16, 23-Dec-2011
1665,Revenue,CCHD,S28A - Over 65,Residential Homes,Shaw Healthcare Ltd,4688.84, 23-Dec-2011
1666,Revenue,CCHD,S28A - Under 65,Residential Homes,Shaw Healthcare Ltd,9131.32, 23-Dec-2011
1667,Revenue,CCHD,S28A - Over 65,Residential Homes,Shaw Healthcare Ltd,8935.92, 23-Dec-2011
1668,Revenue,CCHD,Purchase of Non-Res Care - KD,Private & Voluntary Day Care,Shaw Healthcare Specialist Services Ltd,599.36, 16-Dec-2011
1669,Revenue,CCHD,Occupational Therapy Team,Interpreting & Translation,Signingworks,552.8, 08-Dec-2011
1670,Revenue,CCHD,Training - Adult Services,Training Expenses,Sir Bernard Lovell School,630, 12-Dec-2011
1671,Revenue,CCHD,LD - Kingswood PCT,Refuse Collection Charges,SITA UK LTD,639.81, 08-Dec-2011
1672,Revenue,CCHD,Alexandra Way,Refuse Collection Charges,SITA UK LTD,614.11, 20-Dec-2011
1673,Revenue,CCHD,Day Care - South,Private & Voluntary Day Care,Smile Independent Living Support Limited,590.3, 05-Dec-2011
1674,Revenue,CCHD,Purchase of Non-Res Care - PS,Private & Voluntary Day Care,Smile Independent Living Support Limited,627.6, 20-Dec-2011
1675,Revenue,CCHD,Supported Living - KD,Private & Voluntary Home Care,Smile Independent Living Support Limited,4022.75, 16-Dec-2011
1676,Revenue,CCHD,Purchase of Non-Res Care - KD,Private & Voluntary Day Care,Smile Independent Living Support Limited,1241.6, 16-Dec-2011
1677,Revenue,CCHD,Supported Living - KD,Private & Voluntary Home Care,Smile Independent Living Support Limited,4207.25, 16-Dec-2011
1678,Revenue,CCHD,Purchase of Non-Res Care - KD,Private & Voluntary Day Care,Smile Independent Living Support Limited,1175.9, 16-Dec-2011
1679,Revenue,CCHD,Supported Living - KD,Private & Voluntary Home Care,Smile Independent Living Support Limited,954.65, 16-Dec-2011
1680,Revenue,CCHD,Supported Living - KD,Private & Voluntary Home Care,Smile Independent Living Support Limited,1881.45, 16-Dec-2011
1681,Revenue,CCHD,Purchase of Non-Res Care - KD,Private & Voluntary Day Care,Smile Independent Living Support Limited,1029.28, 16-Dec-2011
1682,Revenue,CCHD,Purchase of Non-Res Care - KD,Private & Voluntary Day Care,Smile Independent Living Support Limited,1263.19, 16-Dec-2011
1683,Revenue,CCHD,Supported Living - KD,Private & Voluntary Home Care,Smile Independent Living Support Limited,509.35, 16-Dec-2011
1684,Revenue,CCHD,Purchase of Non-Res Care - KD,Private & Voluntary Day Care,Smile Independent Living Support Limited,643.25, 16-Dec-2011
1685,Revenue,CCHD,Purchase of Non-Res Care - KD,Private & Voluntary Day Care,Smile Independent Living Support Limited,2726.69, 16-Dec-2011
1686,Revenue,CCHD,Purchase of Non-Res Care - KD,Private & Voluntary Day Care,Smile Indpendent Living Support Ltd,616.48, 16-Dec-2011
1687,Revenue,CCHD,Purchase of Non-Res Care - KD,Private & Voluntary Day Care,Smile Indpendent Living Support Ltd,942.55, 15-Dec-2011
1688,Revenue,CCHD,Preventative Technology Grant,Other Supplies & Services,South Gloucestershire Deaf Association,6000, 01-Dec-2011
1689,Revenue,CCHD,Under 65s PWLD - PS,Residential Homes,Spectrum,27974.18, 29-Dec-2011
1690,Revenue,CCHD,Training - Adult Services,Training Expenses,Sphere Leisure Limited,502.45, 22-Dec-2011
1691,Revenue,CCHD,Newton House,Cleaning & Domestic Supplies,Spot On Supplies (Hygiene) Limited,459.23, 09-Dec-2011
1692,Revenue,CCHD,Under 65s PWLD - KH,Residential Homes,St Brigas,2014.4, 23-Dec-2011
1693,Revenue,CCHD,Under 65s PWLD - PS,Residential Homes,St Brigas,2907.24, 23-Dec-2011
1694,Revenue,CCHD,Under 65s PWLD - KH,Residential Homes,St Brigas,1963.52, 23-Dec-2011
1695,Revenue,CCHD,Elderly Mental Health,Nursing Homes,St George Nursing Home,717.88, 23-Dec-2011
1696,Revenue,CCHD,Frenchay Hospital Purchasing,Nursing Homes,St George Nursing Home,1285, 23-Dec-2011
1697,Revenue,CCHD,Southmead Hospital Purchasing,Nursing Homes,St George Nursing Home,6066.97, 23-Dec-2011
1698,Revenue,CCHD,Elderly Purchasing - South,Nursing Homes,St George Nursing Home,1293, 23-Dec-2011
1699,Revenue,CCHD,Southmead Hospital Purchasing,Nursing Homes,St George Nursing Home,1293, 23-Dec-2011
1700,Revenue,CCHD,Elderly MH non-res purchasing,Private & Voluntary Day Care,St Georges Care Home Ltd,650, 09-Dec-2011
1701,Revenue,CCHD,Frenchay Hospital Purchasing,Residential Homes,St Monicas Trust,1232.16, 23-Dec-2011
1702,Revenue,CCHD,Elderly Purchasing - South,Nursing Homes,St Roses School,3961.2, 21-Dec-2011
1703,Revenue,CCHD,Frenchay Hospital Purchasing,Nursing Homes,St Teresa`S Nursing Home,3829.63, 23-Dec-2011
1704,Revenue,CCHD,Under 65s PWLD - PS,Residential Homes,Stepping Stones Re-Sett. Unit,8464.68, 23-Dec-2011
1705,Revenue,CCHD,Elderly Mental Health,Residential Homes,Stuart House,1809.24, 23-Dec-2011
1706,Revenue,CCHD,Southmead Hospital Purchasing,Residential Homes,Stuart House,1345.92, 23-Dec-2011
1707,Revenue,CCHD,Supporting People Programme,Grants to Voluntary Bodies,Supported Independence Ltd,2678.48, 29-Dec-2011
1708,Revenue,CCHD,Supporting People Programme,Grants to Voluntary Bodies,Supported Independence Ltd,5538.4, 29-Dec-2011
1709,Revenue,CCHD,Supporting People Programme,Grants to Voluntary Bodies,Supported Independence Ltd,2678.48, 01-Dec-2011
1710,Revenue,CCHD,Supporting People Programme,Grants to Voluntary Bodies,Supported Independence Ltd,5538.4, 01-Dec-2011
1711,Revenue,CCHD,Supported Living - KD,Private & Voluntary Home Care,Supported Independence Ltd,1842.75, 08-Dec-2011
1712,Revenue,CCHD,Supported Living - KD,Private & Voluntary Home Care,Supported Independence Ltd,1628.25, 05-Dec-2011
1713,Revenue,CCHD,Supported Living - KD,Private & Voluntary Home Care,Supported Independence Ltd,819, 05-Dec-2011
1714,Revenue,CCHD,Section 117 Placements MH Younger,Private & Voluntary Day Care,Supported Independence Ltd,2808, 07-Dec-2011
1715,Revenue,CCHD,Younger MH non-res purchasing,Private & Voluntary Day Care,Supported Independence Ltd,1498.48, 07-Dec-2011
1716,Revenue,CCHD,Younger MH non-res purchasing,Private & Voluntary Day Care,Supported Independence Ltd,507.6, 09-Dec-2011
1717,Revenue,CCHD,Younger MH non-res purchasing,Private & Voluntary Day Care,Supported Independence Ltd,994.5, 09-Dec-2011
1718,Revenue,CCHD,Supported Living - KD,Private & Voluntary Home Care,Supported Independence Ltd,663, 23-Dec-2011
1719,Revenue,CCHD,Younger MH non-res purchasing,Private & Voluntary Day Care,Supported Independence Ltd,711.75, 09-Dec-2011
1720,Revenue,CCHD,Section 117 Placements MH Younger,Private & Voluntary Day Care,Supported Independence Ltd,819, 09-Dec-2011
1721,Revenue,CCHD,Younger MH non-res purchasing,Private & Voluntary Day Care,Supported Independence Ltd,858, 09-Dec-2011
1722,Revenue,CCHD,Supported Living - PS,Private & Voluntary Home Care,Supported Independence Ltd,702, 09-Dec-2011
1723,Revenue,CCHD,Younger MH non-res purchasing,Private & Voluntary Day Care,Supported Independence Ltd,2310, 09-Dec-2011
1724,Revenue,CCHD,Younger MH non-res purchasing,Private & Voluntary Day Care,Supported Independence Ltd,526.5, 23-Dec-2011
1725,Revenue,CCHD,Younger MH non-res purchasing,Private & Voluntary Day Care,Supported Independence Ltd,819, 29-Dec-2011
1726,Revenue,CCHD,Supporting People Programme,Grants to Voluntary Bodies,Supported Independent Living Schemes,5388.32, 19-Dec-2011
1727,Revenue,CCHD,Supporting People Programme,Grants to Voluntary Bodies,Supported Independent Living Schemes,4465.92, 19-Dec-2011
1728,Revenue,CCHD,Supported Living - PS,Private & Voluntary Home Care,Supported Independent Living Schemes,642.96, 28-Dec-2011
1729,Revenue,CCHD,Supporting People Programme,Grants to Voluntary Bodies,Survive,81094, 23-Dec-2011
1730,Revenue,CCHD,Frenchay Hospital Purchasing,Residential Homes,T/A Stonebow House Residential Home,1218.16, 23-Dec-2011
1731,Revenue,CCHD,Preventative Technology Grant,Other Supplies & Services,Telecare Services Association,776, 22-Dec-2011
1732,Revenue,CCHD,Frenchay Hospital Purchasing,Residential Homes,The Beeches,1125.12, 23-Dec-2011
1733,Revenue,CCHD,Frenchay Hospital Purchasing,Residential Homes,The Beeches,686.44, 23-Dec-2011
1734,Revenue,CCHD,Elderly Purchasing - South,Residential Homes,The Beeches,1098.68, 23-Dec-2011
1735,Revenue,CCHD,Purchase of Non-Res Care - KD,Private & Voluntary Day Care,The Brandon Trust,684.42, 05-Dec-2011
1736,Revenue,CCHD,S28A - Under 65,Residential Homes,The Brandon Trust,27320.98, 21-Dec-2011
1737,Revenue,CCHD,Purchase of Non-Res Care - KD,Private & Voluntary Day Care,The Brandon Trust,1599, 05-Dec-2011
1738,Revenue,CCHD,Purchase of Non-Res Care - KD,Private & Voluntary Day Care,The Brandon Trust,1301.75, 05-Dec-2011
1739,Revenue,CCHD,Supported Living - KD,Private & Voluntary Home Care,The Brandon Trust,9151.46, 05-Dec-2011
1740,Revenue,CCHD,Purchase of Non-Res Care - KH,Private & Voluntary Day Care,The Brandon Trust,507.38, 19-Dec-2011
1741,Revenue,CCHD,Purchase of Non-Res Care - KH,Private & Voluntary Day Care,The Brandon Trust,1271, 23-Dec-2011
1742,Revenue,CCHD,Purchase of Non-Res Care - PS,Private & Voluntary Day Care,The Brandon Trust,625.25, 12-Dec-2011
1743,Revenue,CCHD,Purchase of Non-Res Care - KD,Private & Voluntary Day Care,The Brandon Trust,4592, 12-Dec-2011
1744,Revenue,CCHD,Purchase of Non-Res Care - KD,Private & Voluntary Day Care,The Brandon Trust,622.2, 09-Dec-2011
1745,Revenue,CCHD,Younger MH non-res purchasing,Private & Voluntary Day Care,The Brandon Trust,1244.4, 09-Dec-2011
1746,Revenue,CCHD,Purchase of Non-Res Care - KD,Private & Voluntary Day Care,The Brandon Trust,1163.38, 12-Dec-2011
1747,Revenue,CCHD,Purchase of Non-Res Care - KH,Private & Voluntary Day Care,The Brandon Trust,1219.75, 19-Dec-2011
1748,Revenue,CCHD,Supported Living - KH,Private & Voluntary Home Care,The Brandon Trust,746.64, 19-Dec-2011
1749,Revenue,CCHD,Purchase of Non-Res Care - PS,Private & Voluntary Day Care,The Brandon Trust,559.98, 13-Dec-2011
1750,Revenue,CCHD,Purchase of Non-Res Care - KH,Private & Voluntary Day Care,The Brandon Trust,3905.25, 22-Dec-2011
1751,Revenue,CCHD,Purchase of Non-Res Care - PS,Private & Voluntary Day Care,The Brandon Trust,1494.89, 08-Dec-2011
1752,Revenue,CCHD,Purchase of Non-Res Care - PS,Private & Voluntary Day Care,The Brandon Trust,1357.32, 08-Dec-2011
1753,Revenue,CCHD,Purchase of Non-Res Care - KH,Private & Voluntary Day Care,The Brandon Trust,5740, 19-Dec-2011
1754,Revenue,CCHD,Purchase of Non-Res Care - KD,Private & Voluntary Day Care,The Brandon Trust,777.75, 22-Dec-2011
1755,Revenue,CCHD,Younger MH non-res purchasing,Private & Voluntary Day Care,The Brandon Trust,1555.5, 16-Dec-2011
1756,Revenue,CCHD,Day Care - South,Private & Voluntary Day Care,The Brandon Trust,715.53, 23-Dec-2011
1757,Revenue,CCHD,Purchase of Non-Res Care - KH,Private & Voluntary Day Care,The Brandon Trust,746.64, 28-Dec-2011
1758,Revenue,CCHD,Day Care - North,Private & Voluntary Day Care,The Brandon Trust,615, 13-Dec-2011
1759,Revenue,CCHD,Supported Living - PS,Private & Voluntary Home Care,The Brandon Trust,502.25, 08-Dec-2011
1760,Revenue,CCHD,Under 65s PWLD - PS,Nursing Homes,The Brandon Trust  Olympus House,5641, 23-Dec-2011
1761,Revenue,CCHD,S28A - Over 65,Residential Homes,The Brandon Trust  Olympus House,3537.96, 23-Dec-2011
1762,Revenue,CCHD,Under 65s PWLD - PS,Residential Homes,The Brandon Trust  Olympus House,11149.88, 23-Dec-2011
1763,Revenue,CCHD,Under 65s PWLD - KD,Residential Homes,The Brandon Trust  Olympus House,3227.8, 23-Dec-2011
1764,Revenue,CCHD,Under 65s PWLD - KD,Residential Homes,The Brandon Trust  Olympus House,5108.24, 23-Dec-2011
1765,Revenue,CCHD,Elderly PWLD - PS,Residential Homes,The Brandon Trust  Olympus House,3338.16, 23-Dec-2011
1766,Revenue,CCHD,S28A - Over 65,Residential Homes,The Brandon Trust  Olympus House,3781.68, 23-Dec-2011
1767,Revenue,CCHD,Under 65s PWLD - PS,Nursing Homes,The Brandon Trust  Olympus House,5054.2, 23-Dec-2011
1768,Revenue,CCHD,S28A - Under 65,Residential Homes,The Brandon Trust  Olympus House,5944.52, 23-Dec-2011
1769,Revenue,CCHD,S28A - Under 65,Residential Homes,The Brandon Trust  Olympus House,4815.96, 23-Dec-2011
1770,Revenue,CCHD,S28A - Under 65,Residential Homes,The Brandon Trust  Olympus House,5944.52, 23-Dec-2011
1771,Revenue,CCHD,S28A - Under 65,Residential Homes,The Brandon Trust  Olympus House,5780.52, 23-Dec-2011
1772,Revenue,CCHD,S28A - Over 65,Nursing Homes,The Brandon Trust  Olympus House,5368.28, 23-Dec-2011
1773,Revenue,CCHD,S28A - Over 65,Nursing Homes,The Brandon Trust  Olympus House,5720.76, 23-Dec-2011
1774,Revenue,CCHD,S28A - Under 65,Residential Homes,The Brandon Trust  Olympus House,5189.52, 23-Dec-2011
1775,Revenue,CCHD,S28A - Under 65,Residential Homes,The Brandon Trust  Olympus House,5262.04, 23-Dec-2011
1776,Revenue,CCHD,S28A - Over 65,Residential Homes,The Brandon Trust  Olympus House,7104.36, 23-Dec-2011
1777,Revenue,CCHD,S28A - Under 65,Residential Homes,The Brandon Trust  Olympus House,5944.52, 23-Dec-2011
1778,Revenue,CCHD,S28A - Under 65,Residential Homes,The Brandon Trust  Olympus House,5944.48, 23-Dec-2011
1779,Revenue,CCHD,S28A - Under 65,Residential Homes,The Brandon Trust  Olympus House,4603.08, 23-Dec-2011
1780,Revenue,CCHD,S28A - Under 65,Residential Homes,The Brandon Trust  Olympus House,5262.08, 23-Dec-2011
1781,Revenue,CCHD,S28A - Over 65,Residential Homes,The Brandon Trust  Olympus House,4662.84, 23-Dec-2011
1782,Revenue,CCHD,S28A - Over 65,Residential Homes,The Brandon Trust  Olympus House,3969, 23-Dec-2011
1783,Revenue,CCHD,Elderly Mental Health,Residential Homes,The Cidermill,1105.34, 23-Dec-2011
1784,Revenue,CCHD,Elderly Mental Health,Nursing Homes,The Cidermill,954, 23-Dec-2011
1785,Revenue,CCHD,Elderly Mental Health,Residential Homes,The Cidermill,1389, 23-Dec-2011
1786,Revenue,CCHD,Elderly Mental Health,Nursing Homes,The Cidermill,1181.8, 23-Dec-2011
1787,Revenue,CCHD,Elderly Mental Health,Residential Homes,The Cidermill,1389, 23-Dec-2011
1788,Revenue,CCHD,Elderly Purchasing - South,Residential Homes,The Gables Residential Home,1285.04, 23-Dec-2011
1789,Revenue,CCHD,Frenchay Hospital Purchasing,Residential Homes,The Gables Residential Home,1229, 23-Dec-2011
1790,Revenue,CCHD,Elderly Purchasing - South,Residential Homes,The Gables Residential Home,1084.28, 23-Dec-2011
1791,Revenue,CCHD,Elderly Mental Health,Residential Homes,The Gables Residential Home,1172.52, 23-Dec-2011
1792,Revenue,CCHD,Section 117 Placements,Residential Homes,The Gables Residential Home,2156.84, 23-Dec-2011
1793,Revenue,CCHD,Elderly Mental Health,Residential Homes,The Grove,983.64, 23-Dec-2011
1794,Revenue,CCHD,Elderly Mental Health,Residential Homes,The Grove,1582.4, 23-Dec-2011
1795,Revenue,CCHD,Elderly Mental Health,Residential Homes,The Grove,1112.08, 23-Dec-2011
1796,Revenue,CCHD,Elderly Mental Health,Residential Homes,The Grove,580.64, 23-Dec-2011
1797,Revenue,CCHD,Section 117 Placements,Residential Homes,The Grove,2040, 23-Dec-2011
1798,Revenue,CCHD,Elderly Mental Health,Residential Homes,The Grove,1475.92, 23-Dec-2011
1799,Revenue,CCHD,Southmead Hospital Purchasing,Residential Homes,The Grove,1318.76, 23-Dec-2011
1800,Revenue,CCHD,Elderly Mental Health,Residential Homes,The Grove,1480.48, 23-Dec-2011
1801,Revenue,CCHD,Elderly Mental Health,Residential Homes,The Grove,939.52, 23-Dec-2011
1802,Revenue,CCHD,Frenchay Hospital Purchasing,Residential Homes,The Grove,814.32, 23-Dec-2011
1803,Revenue,CCHD,Supporting People Programme,Grants to Voluntary Bodies,The Hatch Camphill Community,1168.28, 29-Dec-2011
1804,Revenue,CCHD,Supporting People Programme,Grants to Voluntary Bodies,The Hatch Camphill Community,1168.28, 29-Dec-2011
1805,Revenue,CCHD,Supporting People Programme,Grants to Voluntary Bodies,The Hatch Camphill Community,1168.28, 29-Dec-2011
1806,Revenue,CCHD,Supporting People Programme,Grants to Voluntary Bodies,The Hatch Camphill Community,1168.28, 29-Dec-2011
1807,Revenue,CCHD,Supporting People Programme,Grants to Voluntary Bodies,The Hatch Camphill Community,1168.28, 29-Dec-2011
1808,Revenue,CCHD,Supporting People Programme,Grants to Voluntary Bodies,The Hatch Camphill Community,1168.28, 29-Dec-2011
1809,Revenue,CCHD,Supporting People Programme,Grants to Voluntary Bodies,The Hatch Camphill Community,1168.28, 29-Dec-2011
1810,Revenue,CCHD,Supporting People Programme,Grants to Voluntary Bodies,The Hatch Camphill Community,1168.28, 29-Dec-2011
1811,Revenue,CCHD,Supporting People Programme,Grants to Voluntary Bodies,The Hatch Camphill Community,1168.28, 29-Dec-2011
1812,Revenue,CCHD,Supporting People Programme,Grants to Voluntary Bodies,The Hatch Camphill Community,1168.28, 05-Dec-2011
1813,Revenue,CCHD,Supporting People Programme,Grants to Voluntary Bodies,The Hatch Camphill Community,1168.28, 05-Dec-2011
1814,Revenue,CCHD,Supporting People Programme,Grants to Voluntary Bodies,The Hatch Camphill Community,1168.28, 05-Dec-2011
1815,Revenue,CCHD,Supporting People Programme,Grants to Voluntary Bodies,The Hatch Camphill Community,1168.28, 05-Dec-2011
1816,Revenue,CCHD,Supporting People Programme,Grants to Voluntary Bodies,The Hatch Camphill Community,1168.28, 05-Dec-2011
1817,Revenue,CCHD,Supporting People Programme,Grants to Voluntary Bodies,The Hatch Camphill Community,1168.28, 05-Dec-2011
1818,Revenue,CCHD,Supporting People Programme,Grants to Voluntary Bodies,The Hatch Camphill Community,1168.28, 05-Dec-2011
1819,Revenue,CCHD,Supporting People Programme,Grants to Voluntary Bodies,The Hatch Camphill Community,1168.28, 05-Dec-2011
1820,Revenue,CCHD,Supporting People Programme,Grants to Voluntary Bodies,The Hatch Camphill Community,1168.28, 05-Dec-2011
1821,Revenue,CCHD,Frenchay Hospital Purchasing,Nursing Homes,The Heathers,1285, 23-Dec-2011
1822,Revenue,CCHD,Elderly Mental Health,Nursing Homes,The Heathers,1262.52, 23-Dec-2011
1823,Revenue,CCHD,Elderly Purchasing - South,Nursing Homes,The Heathers,1285, 23-Dec-2011
1824,Revenue,CCHD,Frenchay Hospital Purchasing,Nursing Homes,The Heathers,718.6, 23-Dec-2011
1825,Revenue,CCHD,Southmead Hospital Purchasing,Nursing Homes,The Heathers,1249.44, 23-Dec-2011
1826,Revenue,CCHD,Southmead Hospital Purchasing,Nursing Homes,The Heathers,996.6, 23-Dec-2011
1827,Revenue,CCHD,Frenchay Hospital Purchasing,Nursing Homes,The Heathers,1288.24, 23-Dec-2011
1828,Revenue,CCHD,Elderly Mental Health,Nursing Homes,The Heathers,3320.28, 23-Dec-2011
1829,Revenue,CCHD,Frenchay Hospital Purchasing,Nursing Homes,The Heathers,1183.28, 23-Dec-2011
1830,Revenue,CCHD,Elderly Mental Health,Nursing Homes,The Heathers,1075.92, 23-Dec-2011
1831,Revenue,CCHD,Frenchay Hospital Purchasing,Nursing Homes,The Heathers,1215.84, 23-Dec-2011
1832,Revenue,CCHD,Frenchay Hospital Purchasing,Nursing Homes,The Heathers,1286.64, 23-Dec-2011
1833,Revenue,CCHD,Southmead Hospital Purchasing,Nursing Homes,The Heathers,738.32, 23-Dec-2011
1834,Revenue,CCHD,Elderly Purchasing - North,Nursing Homes,The Heathers,1140.72, 23-Dec-2011
1835,Revenue,CCHD,Elderly Mental Health,Residential Homes,The Hollies,534.41, 23-Dec-2011
1836,Revenue,CCHD,Elderly Purchasing - North,Nursing Homes,The Hollies Nursing Home,1285, 23-Dec-2011
1837,Revenue,CCHD,Under 65s PWLD - KD,Residential Homes,The Manor House,624.16, 23-Dec-2011
1838,Revenue,CCHD,Under 65s PWLD - KH,Residential Homes,The Manor House,4779.6, 23-Dec-2011
1839,Revenue,CCHD,Under 65s PWLD - KH,Residential Homes,The Manor House,3398.2, 23-Dec-2011
1840,Revenue,CCHD,Under 65s PWLD - KH,Residential Homes,The Manor House,2607.12, 23-Dec-2011
1841,Revenue,CCHD,Under 65s PWLD - KD,Residential Homes,The Manor House,2713, 23-Dec-2011
1842,Revenue,CCHD,Under 65s PWLD - PS,Residential Homes,The Manor House,3177.2, 23-Dec-2011
1843,Revenue,CCHD,Under 65s PWLD - KD,Residential Homes,The Manor House,2755.4, 23-Dec-2011
1844,Revenue,CCHD,Under 65s PWLD - KH,Residential Homes,The Manor House,2607.12, 23-Dec-2011
1845,Revenue,CCHD,Under 65s PWLD - KH,Residential Homes,The Manor House,3249.44, 23-Dec-2011
1846,Revenue,CCHD,Under 65s PWLD - KH,Residential Homes,The Manor House,5850.64, 23-Dec-2011
1847,Revenue,CCHD,S28A - Under 65,Residential Homes,The Manor House,4723.6, 23-Dec-2011
1848,Revenue,CCHD,Under 65s PWLD - KH,Residential Homes,The Manor House,2655.68, 23-Dec-2011
1849,Revenue,CCHD,Under 65s PWLD - KH,Residential Homes,The Manor House,3315.88, 23-Dec-2011
1850,Revenue,CCHD,Under 65s PWLD - KH,Residential Homes,The Manor House,2898.32, 23-Dec-2011
1851,Revenue,CCHD,Under 65s PWLD - KH,Residential Homes,The Manor House,3227.2, 23-Dec-2011
1852,Revenue,CCHD,Under 65s PWLD - KH,Residential Homes,The Manor House,4799.32, 23-Dec-2011
1853,Revenue,CCHD,Under 65s PWLD - PS,Residential Homes,The Manor House,3011.72, 23-Dec-2011
1854,Revenue,CCHD,Under 65s PWLD - PS,Residential Homes,The Manor House,2829.88, 23-Dec-2011
1855,Revenue,CCHD,Under 65s PWLD - KH,Residential Homes,The Manor House,4322.32, 23-Dec-2011
1856,Revenue,CCHD,Under 65s PWLD - KH,Residential Homes,The Manor House,4204.96, 23-Dec-2011
1857,Revenue,CCHD,Under 65s PWLD - KD,Residential Homes,The Manor House,3155.32, 23-Dec-2011
1858,Revenue,CCHD,Under 65s PWLD - KD,Residential Homes,The Manor House,1248.9, 23-Dec-2011
1859,Revenue,CCHD,Elderly PWLD - KH,Residential Homes,The Manor House,2250.04, 23-Dec-2011
1860,Revenue,CCHD,Under 65s PWLD - PS,Residential Homes,The Manor House,3140.28, 23-Dec-2011
1861,Revenue,CCHD,Under 65s PWLD - KH,Residential Homes,The Manor House,1016.52, 23-Dec-2011
1862,Revenue,CCHD,Under 65s PWLD - KH,Residential Homes,The Manor House,4686.4, 23-Dec-2011
1863,Revenue,CCHD,Under 65s PWLD - KH,Residential Homes,The Manor House,2655.68, 23-Dec-2011
1864,Revenue,CCHD,Elderly Mental Health,Residential Homes,The Old Vicarage Residential Home,1378.84, 23-Dec-2011
1865,Revenue,CCHD,Home Care Purch North,Other Small Contracts,The Royal Bank of Scotland Commercial,1095, 07-Dec-2011
1866,Revenue,CCHD,Home Care Purch North,Other Small Contracts,The Royal Bank of Scotland Commercial,1095, 07-Dec-2011
1867,Revenue,CCHD,Home Care Purch North,Other Small Contracts,The Royal Bank of Scotland Commercial,1095, 21-Dec-2011
1868,Revenue,CCHD,Home Care Purch South,Other Small Contracts,The Royal Bank of Scotland Commercial,1780.92, 01-Dec-2011
1869,Revenue,CCHD,Home Care Purch North,Other Small Contracts,The Royal Bank of Scotland Commercial,2203.84, 01-Dec-2011
1870,Revenue,CCHD,Day Care - South,Private & Voluntary Day Care,The Royal Bank of Scotland Commercial,112.52, 01-Dec-2011
1871,Revenue,CCHD,Elderly MH Home Care,Other Small Contracts,The Royal Bank of Scotland Commercial,275.48, 01-Dec-2011
1872,Revenue,CCHD,Elderly MH non-res purchasing,Private & Voluntary Day Care,The Royal Bank of Scotland Commercial,376.36, 01-Dec-2011
1873,Revenue,CCHD,Under 65s PWLD - PS,Residential Homes,The Stanstead Centre,3477.88, 23-Dec-2011
1874,Revenue,CCHD,Under 65s PWLD - KD,Residential Homes,The Thomas Moore Project,1894.32, 23-Dec-2011
1875,Revenue,CCHD,Elderly Mental Health,Residential Homes,The Worthies,1383.2, 23-Dec-2011
1876,Revenue,CCHD,Elderly Mental Health,Residential Homes,The Worthies,1272.12, 23-Dec-2011
1877,Revenue,CCHD,Southmead Hospital Purchasing,Residential Homes,The Worthies,861.2, 23-Dec-2011
1878,Revenue,CCHD,Frenchay Hospital Purchasing,Residential Homes,The Worthies,570.6, 23-Dec-2011
1879,Revenue,CCHD,Tenancy Start Up Scheme,Other Supplies & Services,Thornbury Properties,2000, 13-Dec-2011
